{"text_format":"1","workbook":"xlsx","n_sheets":8,"sheets":["Clean Sheet","Class 1","Class 2","Class 3","Class 4","Class 5","Class 6","Test Sheet"],"not_rendered":{"charts":0,"images":0,"macros":0,"external_links":0,"defined_names":48,"comments":0,"pivot_tables":0},"unopened":[],"bounds":{"document_bytes":16777216,"sheet_cells":100000,"rows_first":2000,"rows_last":500,"rows_between":2000,"halvings":0,"cell_chars":16384,"cell_head_chars":4096},"cells_cut":0,"cells_raw":0,"read":"whole","date_system":"1900"}

{"sheet":"Clean Sheet","index":0,"n_rows":103,"n_cols":33,"rows_kept":103,"cut":false,"hidden":false,"merged":[[0,18,0,20],[0,21,0,22],[0,23,0,25],[0,29,0,30],[0,0,0,9],[0,10,0,11],[0,12,0,14],[0,15,0,16],[1,4,2,4],[1,5,2,5],[1,6,2,6],[1,7,2,7],[1,0,2,0],[1,1,2,1],[1,2,2,2],[1,3,2,3],[1,12,2,12],[1,13,2,13],[1,14,2,14],[1,15,2,15],[1,8,2,8],[1,9,2,9],[1,10,2,10],[1,11,2,11],[1,20,2,20],[1,21,2,21],[1,22,2,22],[1,23,2,23],[1,16,2,16],[1,17,2,17],[1,18,2,18],[1,19,2,19],[1,31,2,31],[1,32,2,32],[1,24,2,24],[1,25,2,25],[1,26,1,28],[1,30,2,30]]}
["Hunter Trials Scoresheet",null,null,null,null,null,null,null,null,null,"Date:",null,null,null,null,"Class:",null,null,"Height\nCm:",null,null,"Min",null,"Speed\nMpm",null,null,{"$f":"(IF(Height=80,435,IF(Height=90,450,IF(Height=100,475,250))))","v":250},"Timed \nDist (mtr)",529,"T/S Optimum:",null,null,{"$f":"TIME(INT((Distance*60/Speed)/3600),INT(MOD((Distance*60/Speed),3600)/60),MOD(MOD((Distance*60/Speed),3600),60))","v":"00:02:06"}]
["No.",1,2,3,4,5,6,7,8,9,10,11,12,13,14,15,16,17,18,19,20,21,22,23,24,25,"Timed Section",null,null,null,"Jump Total","Total Penalties","Position"]
[null,null,null,null,null,null,null,null,null,null,null,null,null,null,null,null,null,null,null,null,null,null,null,null,null,null,"Start","End","Elapsed","Variance"]
[null,0,0,0,0,0,0,0,0,0,0,0,0,0,0,0,20,null,null,null,null,null,null,null,null,null,0,"00:02:10",{"$f":"IF(AA4=\"\",\"\",AB4-AA4)","v":"00:02:10"},{"$f":"IF(AC4=\"\",\"\",ABS(AC4-BogeyTime))","v":4.6296296296296016E-5},{"$f":"IF(COUNTIF(B4:Z4,\"e\")>0,\"E\",(IF(AA4=\"\",\"\",SUM(B4:Z4))))","v":20},{"$f":"IF(OR(AA4=\"\",AE4=\"E\"),99999,(IF(AC4<BogeyTime,AD4*86401,AD4*86400)+AE4*100))","v":2004},{"$f":"IF(AF4=99999,\"\",RANK(AF4,Top:Bottom,1))","v":1}]
[null,null,null,null,null,null,null,null,null,null,null,null,null,null,null,null,null,null,null,null,null,null,null,null,null,null,null,null,"","","",99999,{"$f":"IF(AF5=99999,\"\",RANK(AF5,Top:Bottom,1))","v":""}]
[null,null,null,null,null,null,null,null,null,null,null,null,null,null,null,null,null,null,null,null,null,null,null,null,null,null,null,null,"","","",99999,{"$f":"IF(AF6=99999,\"\",RANK(AF6,Top:Bottom,1))","v":""}]
[null,null,null,null,null,null,null,null,null,null,null,null,null,null,null,null,null,null,null,null,null,null,null,null,null,null,null,null,"","","",99999,{"$f":"IF(AF7=99999,\"\",RANK(AF7,Top:Bottom,1))","v":""}]
[null,null,null,null,null,null,null,null,null,null,null,null,null,null,null,null,null,null,null,null,null,null,null,null,null,null,null,null,"","","",99999,{"$f":"IF(AF8=99999,\"\",RANK(AF8,Top:Bottom,1))","v":""}]
[null,null,null,null,null,null,null,null,null,null,null,null,null,null,null,null,null,null,null,null,null,null,null,null,null,null,null,null,"","","",99999,{"$f":"IF(AF9=99999,\"\",RANK(AF9,Top:Bottom,1))","v":""}]
[null,null,null,null,null,null,null,null,null,null,null,null,null,null,null,null,null,null,null,null,null,null,null,null,null,null,null,null,"","","",99999,{"$f":"IF(AF10=99999,\"\",RANK(AF10,Top:Bottom,1))","v":""}]
[null,null,null,null,null,null,null,null,null,null,null,null,null,null,null,null,null,null,null,null,null,null,null,null,null,null,null,null,"","","",99999,{"$f":"IF(AF11=99999,\"\",RANK(AF11,Top:Bottom,1))","v":""}]
[null,null,null,null,null,null,null,null,null,null,null,null,null,null,null,null,null,null,null,null,null,null,null,null,null,null,null,null,"","","",99999,{"$f":"IF(AF12=99999,\"\",RANK(AF12,Top:Bottom,1))","v":""}]
[null,null,null,null,null,null,null,null,null,null,null,null,null,null,null,null,null,null,null,null,null,null,null,null,null,null,null,null,"","","",99999,{"$f":"IF(AF13=99999,\"\",RANK(AF13,Top:Bottom,1))","v":""}]
[null,null,null,null,null,null,null,null,null,null,null,null,null,null,null,null,null,null,null,null,null,null,null,null,null,null,null,null,"","","",99999,{"$f":"IF(AF14=99999,\"\",RANK(AF14,Top:Bottom,1))","v":""}]
[null,null,null,null,null,null,null,null,null,null,null,null,null,null,null,null,null,null,null,null,null,null,null,null,null,null,null,null,"","","",99999,{"$f":"IF(AF15=99999,\"\",RANK(AF15,Top:Bottom,1))","v":""}]
[null,null,null,null,null,null,null,null,null,null,null,null,null,null,null,null,null,null,null,null,null,null,null,null,null,null,null,null,"","","",99999,{"$f":"IF(AF16=99999,\"\",RANK(AF16,Top:Bottom,1))","v":""}]
[null,null,null,null,null,null,null,null,null,null,null,null,null,null,null,null,null,null,null,null,null,null,null,null,null,null,null,null,"","","",99999,{"$f":"IF(AF17=99999,\"\",RANK(AF17,Top:Bottom,1))","v":""}]
[null,null,null,null,null,null,null,null,null,null,null,null,null,null,null,null,null,null,null,null,null,null,null,null,null,null,null,null,"","","",99999,{"$f":"IF(AF18=99999,\"\",RANK(AF18,Top:Bottom,1))","v":""}]
[null,null,null,null,null,null,null,null,null,null,null,null,null,null,null,null,null,null,null,null,null,null,null,null,null,null,null,null,"","","",99999,{"$f":"IF(AF19=99999,\"\",RANK(AF19,Top:Bottom,1))","v":""}]
[null,null,null,null,null,null,null,null,null,null,null,null,null,null,null,null,null,null,null,null,null,null,null,null,null,null,null,null,"","","",99999,{"$f":"IF(AF20=99999,\"\",RANK(AF20,Top:Bottom,1))","v":""}]
[null,null,null,null,null,null,null,null,null,null,null,null,null,null,null,null,null,null,null,null,null,null,null,null,null,null,null,null,"","","",99999,{"$f":"IF(AF21=99999,\"\",RANK(AF21,Top:Bottom,1))","v":""}]
[null,null,null,null,null,null,null,null,null,null,null,null,null,null,null,null,null,null,null,null,null,null,null,null,null,null,null,null,"","","",99999,{"$f":"IF(AF22=99999,\"\",RANK(AF22,Top:Bottom,1))","v":""}]
[null,null,null,null,null,null,null,null,null,null,null,null,null,null,null,null,null,null,null,null,null,null,null,null,null,null,null,null,"","","",99999,{"$f":"IF(AF23=99999,\"\",RANK(AF23,Top:Bottom,1))","v":""}]
[null,null,null,null,null,null,null,null,null,null,null,null,null,null,null,null,null,null,null,null,null,null,null,null,null,null,null,null,"","","",99999,{"$f":"IF(AF24=99999,\"\",RANK(AF24,Top:Bottom,1))","v":""}]
[null,null,null,null,null,null,null,null,null,null,null,null,null,null,null,null,null,null,null,null,null,null,null,null,null,null,null,null,"","","",99999,{"$f":"IF(AF25=99999,\"\",RANK(AF25,Top:Bottom,1))","v":""}]
[null,null,null,null,null,null,null,null,null,null,null,null,null,null,null,null,null,null,null,null,null,null,null,null,null,null,null,null,"","","",99999,{"$f":"IF(AF26=99999,\"\",RANK(AF26,Top:Bottom,1))","v":""}]
[null,null,null,null,null,null,null,null,null,null,null,null,null,null,null,null,null,null,null,null,null,null,null,null,null,null,null,null,"","","",99999,{"$f":"IF(AF27=99999,\"\",RANK(AF27,Top:Bottom,1))","v":""}]
[null,null,null,null,null,null,null,null,null,null,null,null,null,null,null,null,null,null,null,null,null,null,null,null,null,null,null,null,"","","",99999,{"$f":"IF(AF28=99999,\"\",RANK(AF28,Top:Bottom,1))","v":""}]
[null,null,null,null,null,null,null,null,null,null,null,null,null,null,null,null,null,null,null,null,null,null,null,null,null,null,null,null,"","","",99999,{"$f":"IF(AF29=99999,\"\",RANK(AF29,Top:Bottom,1))","v":""}]
[null,null,null,null,null,null,null,null,null,null,null,null,null,null,null,null,null,null,null,null,null,null,null,null,null,null,null,null,"","","",99999,{"$f":"IF(AF30=99999,\"\",RANK(AF30,Top:Bottom,1))","v":""}]
[null,null,null,null,null,null,null,null,null,null,null,null,null,null,null,null,null,null,null,null,null,null,null,null,null,null,null,null,"","","",99999,{"$f":"IF(AF31=99999,\"\",RANK(AF31,Top:Bottom,1))","v":""}]
[null,null,null,null,null,null,null,null,null,null,null,null,null,null,null,null,null,null,null,null,null,null,null,null,null,null,null,null,"","","",99999,{"$f":"IF(AF32=99999,\"\",RANK(AF32,Top:Bottom,1))","v":""}]
[null,null,null,null,null,null,null,null,null,null,null,null,null,null,null,null,null,null,null,null,null,null,null,null,null,null,null,null,"","","",99999,{"$f":"IF(AF33=99999,\"\",RANK(AF33,Top:Bottom,1))","v":""}]
[null,null,null,null,null,null,null,null,null,null,null,null,null,null,null,null,null,null,null,null,null,null,null,null,null,null,null,null,"","","",99999,{"$f":"IF(AF34=99999,\"\",RANK(AF34,Top:Bottom,1))","v":""}]
[null,null,null,null,null,null,null,null,null,null,null,null,null,null,null,null,null,null,null,null,null,null,null,null,null,null,null,null,"","","",99999,{"$f":"IF(AF35=99999,\"\",RANK(AF35,Top:Bottom,1))","v":""}]
[null,null,null,null,null,null,null,null,null,null,null,null,null,null,null,null,null,null,null,null,null,null,null,null,null,null,null,null,{"$f":"IF(AA36=\"\",\"\",AB36-AA36)","v":""},{"$f":"IF(AC36=\"\",\"\",ABS(AC36-BogeyTime))","v":""},{"$f":"IF(COUNTIF(B36:Z36,\"e\")>0,\"E\",(IF(AA36=\"\",\"\",SUM(B36:Z36))))","v":""},{"$f":"IF(OR(AA36=\"\",AE36=\"E\"),99999,(IF(AC36<BogeyTime,AD36*86401,AD36*86400)+AE36*100))","v":99999},{"$f":"IF(AF36=99999,\"\",RANK(AF36,Top:Bottom,1))","v":""}]
[null,null,null,null,null,null,null,null,null,null,null,null,null,null,null,null,null,null,null,null,null,null,null,null,null,null,null,null,"","","",99999,{"$f":"IF(AF37=99999,\"\",RANK(AF37,Top:Bottom,1))","v":""}]
[null,null,null,null,null,null,null,null,null,null,null,null,null,null,null,null,null,null,null,null,null,null,null,null,null,null,null,null,"","","",99999,{"$f":"IF(AF38=99999,\"\",RANK(AF38,Top:Bottom,1))","v":""}]
[null,null,null,null,null,null,null,null,null,null,null,null,null,null,null,null,null,null,null,null,null,null,null,null,null,null,null,null,"","","",99999,{"$f":"IF(AF39=99999,\"\",RANK(AF39,Top:Bottom,1))","v":""}]
[null,null,null,null,null,null,null,null,null,null,null,null,null,null,null,null,null,null,null,null,null,null,null,null,null,null,null,null,"","","",99999,{"$f":"IF(AF40=99999,\"\",RANK(AF40,Top:Bottom,1))","v":""}]
[null,null,null,null,null,null,null,null,null,null,null,null,null,null,null,null,null,null,null,null,null,null,null,null,null,null,null,null,"","","",99999,{"$f":"IF(AF41=99999,\"\",RANK(AF41,Top:Bottom,1))","v":""}]
[null,null,null,null,null,null,null,null,null,null,null,null,null,null,null,null,null,null,null,null,null,null,null,null,null,null,null,null,"","","",99999,{"$f":"IF(AF42=99999,\"\",RANK(AF42,Top:Bottom,1))","v":""}]
[null,null,null,null,null,null,null,null,null,null,null,null,null,null,null,null,null,null,null,null,null,null,null,null,null,null,null,null,"","","",99999,{"$f":"IF(AF43=99999,\"\",RANK(AF43,Top:Bottom,1))","v":""}]
[null,null,null,null,null,null,null,null,null,null,null,null,null,null,null,null,null,null,null,null,null,null,null,null,null,null,null,null,"","","",99999,{"$f":"IF(AF44=99999,\"\",RANK(AF44,Top:Bottom,1))","v":""}]
[null,null,null,null,null,null,null,null,null,null,null,null,null,null,null,null,null,null,null,null,null,null,null,null,null,null,null,null,"","","",99999,{"$f":"IF(AF45=99999,\"\",RANK(AF45,Top:Bottom,1))","v":""}]
[null,null,null,null,null,null,null,null,null,null,null,null,null,null,null,null,null,null,null,null,null,null,null,null,null,null,null,null,"","","",99999,{"$f":"IF(AF46=99999,\"\",RANK(AF46,Top:Bottom,1))","v":""}]
[null,null,null,null,null,null,null,null,null,null,null,null,null,null,null,null,null,null,null,null,null,null,null,null,null,null,null,null,"","","",99999,{"$f":"IF(AF47=99999,\"\",RANK(AF47,Top:Bottom,1))","v":""}]
[null,null,null,null,null,null,null,null,null,null,null,null,null,null,null,null,null,null,null,null,null,null,null,null,null,null,null,null,"","","",99999,{"$f":"IF(AF48=99999,\"\",RANK(AF48,Top:Bottom,1))","v":""}]
[null,null,null,null,null,null,null,null,null,null,null,null,null,null,null,null,null,null,null,null,null,null,null,null,null,null,null,null,"","","",99999,{"$f":"IF(AF49=99999,\"\",RANK(AF49,Top:Bottom,1))","v":""}]
[null,null,null,null,null,null,null,null,null,null,null,null,null,null,null,null,null,null,null,null,null,null,null,null,null,null,null,null,"","","",99999,{"$f":"IF(AF50=99999,\"\",RANK(AF50,Top:Bottom,1))","v":""}]
[null,null,null,null,null,null,null,null,null,null,null,null,null,null,null,null,null,null,null,null,null,null,null,null,null,null,null,null,"","","",99999,{"$f":"IF(AF51=99999,\"\",RANK(AF51,Top:Bottom,1))","v":""}]
[null,null,null,null,null,null,null,null,null,null,null,null,null,null,null,null,null,null,null,null,null,null,null,null,null,null,null,null,"","","",99999,{"$f":"IF(AF52=99999,\"\",RANK(AF52,Top:Bottom,1))","v":""}]
[null,null,null,null,null,null,null,null,null,null,null,null,null,null,null,null,null,null,null,null,null,null,null,null,null,null,null,null,"","","",99999,{"$f":"IF(AF53=99999,\"\",RANK(AF53,Top:Bottom,1))","v":""}]
[null,null,null,null,null,null,null,null,null,null,null,null,null,null,null,null,null,null,null,null,null,null,null,null,null,null,null,null,"","","",99999,{"$f":"IF(AF54=99999,\"\",RANK(AF54,Top:Bottom,1))","v":""}]
[null,null,null,null,null,null,null,null,null,null,null,null,null,null,null,null,null,null,null,null,null,null,null,null,null,null,null,null,"","","",99999,{"$f":"IF(AF55=99999,\"\",RANK(AF55,Top:Bottom,1))","v":""}]
[null,null,null,null,null,null,null,null,null,null,null,null,null,null,null,null,null,null,null,null,null,null,null,null,null,null,null,null,"","","",99999,{"$f":"IF(AF56=99999,\"\",RANK(AF56,Top:Bottom,1))","v":""}]
[null,null,null,null,null,null,null,null,null,null,null,null,null,null,null,null,null,null,null,null,null,null,null,null,null,null,null,null,"","","",99999,{"$f":"IF(AF57=99999,\"\",RANK(AF57,Top:Bottom,1))","v":""}]
[null,null,null,null,null,null,null,null,null,null,null,null,null,null,null,null,null,null,null,null,null,null,null,null,null,null,null,null,"","","",99999,{"$f":"IF(AF58=99999,\"\",RANK(AF58,Top:Bottom,1))","v":""}]
[null,null,null,null,null,null,null,null,null,null,null,null,null,null,null,null,null,null,null,null,null,null,null,null,null,null,null,null,"","","",99999,{"$f":"IF(AF59=99999,\"\",RANK(AF59,Top:Bottom,1))","v":""}]
[null,null,null,null,null,null,null,null,null,null,null,null,null,null,null,null,null,null,null,null,null,null,null,null,null,null,null,null,"","","",99999,{"$f":"IF(AF60=99999,\"\",RANK(AF60,Top:Bottom,1))","v":""}]
[null,null,null,null,null,null,null,null,null,null,null,null,null,null,null,null,null,null,null,null,null,null,null,null,null,null,null,null,"","","",99999,{"$f":"IF(AF61=99999,\"\",RANK(AF61,Top:Bottom,1))","v":""}]
[null,null,null,null,null,null,null,null,null,null,null,null,null,null,null,null,null,null,null,null,null,null,null,null,null,null,null,null,"","","",99999,{"$f":"IF(AF62=99999,\"\",RANK(AF62,Top:Bottom,1))","v":""}]
[null,null,null,null,null,null,null,null,null,null,null,null,null,null,null,null,null,null,null,null,null,null,null,null,null,null,null,null,"","","",99999,{"$f":"IF(AF63=99999,\"\",RANK(AF63,Top:Bottom,1))","v":""}]
[null,null,null,null,null,null,null,null,null,null,null,null,null,null,null,null,null,null,null,null,null,null,null,null,null,null,null,null,"","","",99999,{"$f":"IF(AF64=99999,\"\",RANK(AF64,Top:Bottom,1))","v":""}]
[null,null,null,null,null,null,null,null,null,null,null,null,null,null,null,null,null,null,null,null,null,null,null,null,null,null,null,null,"","","",99999,{"$f":"IF(AF65=99999,\"\",RANK(AF65,Top:Bottom,1))","v":""}]
[null,null,null,null,null,null,null,null,null,null,null,null,null,null,null,null,null,null,null,null,null,null,null,null,null,null,null,null,"","","",99999,{"$f":"IF(AF66=99999,\"\",RANK(AF66,Top:Bottom,1))","v":""}]
[null,null,null,null,null,null,null,null,null,null,null,null,null,null,null,null,null,null,null,null,null,null,null,null,null,null,null,null,"","","",99999,{"$f":"IF(AF67=99999,\"\",RANK(AF67,Top:Bottom,1))","v":""}]
[null,null,null,null,null,null,null,null,null,null,null,null,null,null,null,null,null,null,null,null,null,null,null,null,null,null,null,null,{"$f":"IF(AA68=\"\",\"\",AB68-AA68)","v":""},{"$f":"IF(AC68=\"\",\"\",ABS(AC68-BogeyTime))","v":""},{"$f":"IF(COUNTIF(B68:Z68,\"e\")>0,\"E\",(IF(AA68=\"\",\"\",SUM(B68:Z68))))","v":""},{"$f":"IF(OR(AA68=\"\",AE68=\"E\"),99999,(IF(AC68<BogeyTime,AD68*86401,AD68*86400)+AE68*100))","v":99999},{"$f":"IF(AF68=99999,\"\",RANK(AF68,Top:Bottom,1))","v":""}]
[null,null,null,null,null,null,null,null,null,null,null,null,null,null,null,null,null,null,null,null,null,null,null,null,null,null,null,null,"","","",99999,{"$f":"IF(AF69=99999,\"\",RANK(AF69,Top:Bottom,1))","v":""}]
[null,null,null,null,null,null,null,null,null,null,null,null,null,null,null,null,null,null,null,null,null,null,null,null,null,null,null,null,"","","",99999,{"$f":"IF(AF70=99999,\"\",RANK(AF70,Top:Bottom,1))","v":""}]
[null,null,null,null,null,null,null,null,null,null,null,null,null,null,null,null,null,null,null,null,null,null,null,null,null,null,null,null,"","","",99999,{"$f":"IF(AF71=99999,\"\",RANK(AF71,Top:Bottom,1))","v":""}]
[null,null,null,null,null,null,null,null,null,null,null,null,null,null,null,null,null,null,null,null,null,null,null,null,null,null,null,null,"","","",99999,{"$f":"IF(AF72=99999,\"\",RANK(AF72,Top:Bottom,1))","v":""}]
[null,null,null,null,null,null,null,null,null,null,null,null,null,null,null,null,null,null,null,null,null,null,null,null,null,null,null,null,"","","",99999,{"$f":"IF(AF73=99999,\"\",RANK(AF73,Top:Bottom,1))","v":""}]
[null,null,null,null,null,null,null,null,null,null,null,null,null,null,null,null,null,null,null,null,null,null,null,null,null,null,null,null,"","","",99999,{"$f":"IF(AF74=99999,\"\",RANK(AF74,Top:Bottom,1))","v":""}]
[null,null,null,null,null,null,null,null,null,null,null,null,null,null,null,null,null,null,null,null,null,null,null,null,null,null,null,null,"","","",99999,{"$f":"IF(AF75=99999,\"\",RANK(AF75,Top:Bottom,1))","v":""}]
[null,null,null,null,null,null,null,null,null,null,null,null,null,null,null,null,null,null,null,null,null,null,null,null,null,null,null,null,"","","",99999,{"$f":"IF(AF76=99999,\"\",RANK(AF76,Top:Bottom,1))","v":""}]
[null,null,null,null,null,null,null,null,null,null,null,null,null,null,null,null,null,null,null,null,null,null,null,null,null,null,null,null,"","","",99999,{"$f":"IF(AF77=99999,\"\",RANK(AF77,Top:Bottom,1))","v":""}]
[null,null,null,null,null,null,null,null,null,null,null,null,null,null,null,null,null,null,null,null,null,null,null,null,null,null,null,null,"","","",99999,{"$f":"IF(AF78=99999,\"\",RANK(AF78,Top:Bottom,1))","v":""}]
[null,null,null,null,null,null,null,null,null,null,null,null,null,null,null,null,null,null,null,null,null,null,null,null,null,null,null,null,"","","",99999,{"$f":"IF(AF79=99999,\"\",RANK(AF79,Top:Bottom,1))","v":""}]
[null,null,null,null,null,null,null,null,null,null,null,null,null,null,null,null,null,null,null,null,null,null,null,null,null,null,null,null,"","","",99999,{"$f":"IF(AF80=99999,\"\",RANK(AF80,Top:Bottom,1))","v":""}]
[null,null,null,null,null,null,null,null,null,null,null,null,null,null,null,null,null,null,null,null,null,null,null,null,null,null,null,null,"","","",99999,{"$f":"IF(AF81=99999,\"\",RANK(AF81,Top:Bottom,1))","v":""}]
[null,null,null,null,null,null,null,null,null,null,null,null,null,null,null,null,null,null,null,null,null,null,null,null,null,null,null,null,"","","",99999,{"$f":"IF(AF82=99999,\"\",RANK(AF82,Top:Bottom,1))","v":""}]
[null,null,null,null,null,null,null,null,null,null,null,null,null,null,null,null,null,null,null,null,null,null,null,null,null,null,null,null,"","","",99999,{"$f":"IF(AF83=99999,\"\",RANK(AF83,Top:Bottom,1))","v":""}]
[null,null,null,null,null,null,null,null,null,null,null,null,null,null,null,null,null,null,null,null,null,null,null,null,null,null,null,null,"","","",99999,{"$f":"IF(AF84=99999,\"\",RANK(AF84,Top:Bottom,1))","v":""}]
[null,null,null,null,null,null,null,null,null,null,null,null,null,null,null,null,null,null,null,null,null,null,null,null,null,null,null,null,"","","",99999,{"$f":"IF(AF85=99999,\"\",RANK(AF85,Top:Bottom,1))","v":""}]
[null,null,null,null,null,null,null,null,null,null,null,null,null,null,null,null,null,null,null,null,null,null,null,null,null,null,null,null,"","","",99999,{"$f":"IF(AF86=99999,\"\",RANK(AF86,Top:Bottom,1))","v":""}]
[null,null,null,null,null,null,null,null,null,null,null,null,null,null,null,null,null,null,null,null,null,null,null,null,null,null,null,null,"","","",99999,{"$f":"IF(AF87=99999,\"\",RANK(AF87,Top:Bottom,1))","v":""}]
[null,null,null,null,null,null,null,null,null,null,null,null,null,null,null,null,null,null,null,null,null,null,null,null,null,null,null,null,"","","",99999,{"$f":"IF(AF88=99999,\"\",RANK(AF88,Top:Bottom,1))","v":""}]
[null,null,null,null,null,null,null,null,null,null,null,null,null,null,null,null,null,null,null,null,null,null,null,null,null,null,null,null,"","","",99999,{"$f":"IF(AF89=99999,\"\",RANK(AF89,Top:Bottom,1))","v":""}]
[null,null,null,null,null,null,null,null,null,null,null,null,null,null,null,null,null,null,null,null,null,null,null,null,null,null,null,null,"","","",99999,{"$f":"IF(AF90=99999,\"\",RANK(AF90,Top:Bottom,1))","v":""}]
[null,null,null,null,null,null,null,null,null,null,null,null,null,null,null,null,null,null,null,null,null,null,null,null,null,null,null,null,"","","",99999,{"$f":"IF(AF91=99999,\"\",RANK(AF91,Top:Bottom,1))","v":""}]
[null,null,null,null,null,null,null,null,null,null,null,null,null,null,null,null,null,null,null,null,null,null,null,null,null,null,null,null,"","","",99999,{"$f":"IF(AF92=99999,\"\",RANK(AF92,Top:Bottom,1))","v":""}]
[null,null,null,null,null,null,null,null,null,null,null,null,null,null,null,null,null,null,null,null,null,null,null,null,null,null,null,null,"","","",99999,{"$f":"IF(AF93=99999,\"\",RANK(AF93,Top:Bottom,1))","v":""}]
[null,null,null,null,null,null,null,null,null,null,null,null,null,null,null,null,null,null,null,null,null,null,null,null,null,null,null,null,"","","",99999,{"$f":"IF(AF94=99999,\"\",RANK(AF94,Top:Bottom,1))","v":""}]
[null,null,null,null,null,null,null,null,null,null,null,null,null,null,null,null,null,null,null,null,null,null,null,null,null,null,null,null,"","","",99999,{"$f":"IF(AF95=99999,\"\",RANK(AF95,Top:Bottom,1))","v":""}]
[null,null,null,null,null,null,null,null,null,null,null,null,null,null,null,null,null,null,null,null,null,null,null,null,null,null,null,null,"","","",99999,{"$f":"IF(AF96=99999,\"\",RANK(AF96,Top:Bottom,1))","v":""}]
[null,null,null,null,null,null,null,null,null,null,null,null,null,null,null,null,null,null,null,null,null,null,null,null,null,null,null,null,"","","",99999,{"$f":"IF(AF97=99999,\"\",RANK(AF97,Top:Bottom,1))","v":""}]
[null,null,null,null,null,null,null,null,null,null,null,null,null,null,null,null,null,null,null,null,null,null,null,null,null,null,null,null,"","","",99999,{"$f":"IF(AF98=99999,\"\",RANK(AF98,Top:Bottom,1))","v":""}]
[null,null,null,null,null,null,null,null,null,null,null,null,null,null,null,null,null,null,null,null,null,null,null,null,null,null,null,null,"","","",99999,{"$f":"IF(AF99=99999,\"\",RANK(AF99,Top:Bottom,1))","v":""}]
[null,null,null,null,null,null,null,null,null,null,null,null,null,null,null,null,null,null,null,null,null,null,null,null,null,null,null,null,{"$f":"IF(AA100=\"\",\"\",AB100-AA100)","v":""},{"$f":"IF(AC100=\"\",\"\",ABS(AC100-BogeyTime))","v":""},"",{"$f":"IF(OR(AA100=\"\",AE100=\"E\"),99999,(IF(AC100<BogeyTime,AD100*86401,AD100*86400)+AE100*100))","v":99999},{"$f":"IF(AF100=99999,\"\",RANK(AF100,Top:Bottom,1))","v":""}]
[null,null,null,null,null,null,null,null,null,null,null,null,null,null,null,null,null,null,null,null,null,null,null,null,null,null,null,null,{"$f":"IF(AA101=\"\",\"\",AB101-AA101)","v":""},{"$f":"IF(AC101=\"\",\"\",ABS(AC101-BogeyTime))","v":""},"",{"$f":"IF(OR(AA101=\"\",AE101=\"E\"),99999,(IF(AC101<BogeyTime,AD101*86401,AD101*86400)+AE101*100))","v":99999},{"$f":"IF(AF101=99999,\"\",RANK(AF101,Top:Bottom,1))","v":""}]
[null,null,null,null,null,null,null,null,null,null,null,null,null,null,null,null,null,null,null,null,null,null,null,null,null,null,null,null,{"$f":"IF(AA102=\"\",\"\",AB102-AA102)","v":""},{"$f":"IF(AC102=\"\",\"\",ABS(AC102-BogeyTime))","v":""},"",{"$f":"IF(OR(AA102=\"\",AE102=\"E\"),99999,(IF(AC102<BogeyTime,AD102*86401,AD102*86400)+AE102*100))","v":99999},{"$f":"IF(AF102=99999,\"\",RANK(AF102,Top:Bottom,1))","v":""}]
["PJLH 15/03"]

{"sheet":"Class 1","index":1,"n_rows":103,"n_cols":33,"rows_kept":103,"cut":false,"hidden":false,"merged":[[0,18,0,20],[0,21,0,22],[0,23,0,25],[0,29,0,30],[0,0,0,9],[0,10,0,11],[0,12,0,14],[0,15,0,16],[1,4,2,4],[1,5,2,5],[1,6,2,6],[1,7,2,7],[1,0,2,0],[1,1,2,1],[1,2,2,2],[1,3,2,3],[1,12,2,12],[1,13,2,13],[1,14,2,14],[1,15,2,15],[1,8,2,8],[1,9,2,9],[1,10,2,10],[1,11,2,11],[1,20,2,20],[1,21,2,21],[1,22,2,22],[1,23,2,23],[1,16,2,16],[1,17,2,17],[1,18,2,18],[1,19,2,19],[1,31,2,31],[1,32,2,32],[1,24,2,24],[1,25,2,25],[1,26,1,28],[1,30,2,30]]}
["Hunter Trials Scoresheet",null,null,null,null,null,null,null,null,null,"Date:",null,"26/07/15",null,null,"Class:",null,"1","Height\nCm:",null,null,"Min",null,"Speed\nMpm",null,null,250,"Timed \nDist (mtr)",577,"T/S Optimum:",null,null,{"$f":"TIME(INT((Distance*60/Speed)/3600),INT(MOD((Distance*60/Speed),3600)/60),MOD(MOD((Distance*60/Speed),3600),60))","v":"00:02:18"}]
["No.",1,2,3,4,5,6,7,8,9,10,11,12,13,14,15,16,17,null,null,null,null,null,null,null,null,"Timed Section",null,null,null,"Jump Total","Total Penalties","Position"]
[null,null,null,null,null,null,null,null,null,null,null,null,null,null,null,null,null,null,null,null,null,null,null,null,null,null,"Start","End","Elapsed","Variance"]
[134,0,0,0,20,0,0,0,null,null,null,null,null,0,0,0,0,0,0,0,null,null,null,null,null,null,0,"00:01:47",{"$f":"IF(AA4=\"\",\"\",AB4-AA4)","v":"00:01:47"},{"$f":"IF(AC4=\"\",\"\",ABS(AC4-BogeyTime))","v":3.5879629629629629E-4},{"$f":"IF(COUNTIF(B4:Z4,\"e\")>0,\"E\",(IF(AA4=\"\",\"\",SUM(B4:Z4))))","v":20},{"$f":"IF(OR(AA4=\"\",AE4=\"E\"),99999,(IF(AC4<BogeyTime,AD4*86401,AD4*86400)+AE4*100))","v":2031.0003587962963},{"$f":"IF(AF4=99999,\"\",RANK(AF4,Top:Bottom,1))","v":7}]
[135,0,0,0,0,0,0,0,null,null,null,null,null,0,0,0,0,0,0,0,null,null,null,null,null,null,0,"00:01:42","00:01:42",4.1666666666666653E-4,{"$f":"IF(COUNTIF(B5:Z5,\"e\")>0,\"E\",(IF(AA5=\"\",\"\",SUM(B5:Z5))))","v":0},36.000416666666652,{"$f":"IF(AF5=99999,\"\",RANK(AF5,Top:Bottom,1))","v":4}]
[126,0,20,0,0,0,0,"E",null,null,null,null,null,0,0,0,0,0,0,0,null,null,null,null,null,null,0,"00:02:39","00:02:39",2.430555555555556E-4,"E",99999,{"$f":"IF(AF6=99999,\"\",RANK(AF6,Top:Bottom,1))","v":""}]
[137,"E",null,null,null,null,null,null,null,null,null,null,null,null,null,null,null,null,null,null,null,null,null,null,null,null,"00:00:00",null,"00:00:00",1.5972222222222221E-3,"E",99999,{"$f":"IF(AF7=99999,\"\",RANK(AF7,Top:Bottom,1))","v":""}]
[136,0,0,0,0,0,0,0,null,null,null,null,null,0,0,0,0,0,0,0,null,null,null,null,null,null,"00:00:00","00:01:40","00:01:40",4.3981481481481476E-4,0,38.000439814814811,{"$f":"IF(AF8=99999,\"\",RANK(AF8,Top:Bottom,1))","v":5}]
[129,0,0,0,20,0,0,0,null,null,null,null,null,0,0,0,0,0,0,0,null,null,null,null,null,null,"00:00:00","00:01:31","00:01:31",5.4398148148148144E-4,20,2047.0005439814815,{"$f":"IF(AF9=99999,\"\",RANK(AF9,Top:Bottom,1))","v":8}]
[130,0,0,0,0,0,0,0,null,null,null,null,null,0,0,0,0,0,0,0,null,null,null,null,null,null,"00:00:00","00:01:56","00:01:56",2.5462962962962961E-4,0,22.000254629629627,{"$f":"IF(AF10=99999,\"\",RANK(AF10,Top:Bottom,1))","v":1}]
[123,0,0,0,0,0,0,0,null,null,null,null,null,0,0,0,0,0,0,0,null,null,null,null,null,null,"00:00:00","00:01:56","00:01:56",2.5462962962962961E-4,0,22.000254629629627,{"$f":"IF(AF11=99999,\"\",RANK(AF11,Top:Bottom,1))","v":1}]
[131,20,0,20,0,0,0,"E",null,null,null,null,null,0,0,0,0,0,0,0,null,null,null,null,null,null,"00:00:00",null,"00:00:00",1.5972222222222221E-3,"E",99999,{"$f":"IF(AF12=99999,\"\",RANK(AF12,Top:Bottom,1))","v":""}]
[132,0,0,0,0,0,0,0,null,null,null,null,null,0,0,0,0,0,0,0,null,null,null,null,null,null,"00:00:00","00:01:31","00:01:31",5.4398148148148144E-4,0,47.000543981481478,{"$f":"IF(AF13=99999,\"\",RANK(AF13,Top:Bottom,1))","v":6}]
[124,0,0,0,0,0,0,0,null,null,null,null,null,0,0,0,0,0,0,0,null,null,null,null,null,null,"00:00:00","00:01:53","00:01:53",2.8935185185185162E-4,0,25.000289351851833,{"$f":"IF(AF14=99999,\"\",RANK(AF14,Top:Bottom,1))","v":3}]
[]
[]
[]
[]
[]
[]
[]
[]
[null,null,null,null,null,null,null,null,null,null,null,null,null,null,null,null,null,null,null,null,null,null,null,null,null,null,null,null,"","","",99999,{"$f":"IF(AF23=99999,\"\",RANK(AF23,Top:Bottom,1))","v":""}]
[null,null,null,null,null,null,null,null,null,null,null,null,null,null,null,null,null,null,null,null,null,null,null,null,null,null,null,null,"","","",99999,{"$f":"IF(AF24=99999,\"\",RANK(AF24,Top:Bottom,1))","v":""}]
[null,null,null,null,null,null,null,null,null,null,null,null,null,null,null,null,null,null,null,null,null,null,null,null,null,null,null,null,"","","",99999,{"$f":"IF(AF25=99999,\"\",RANK(AF25,Top:Bottom,1))","v":""}]
[null,null,null,null,null,null,null,null,null,null,null,null,null,null,null,null,null,null,null,null,null,null,null,null,null,null,null,null,"","","",99999,{"$f":"IF(AF26=99999,\"\",RANK(AF26,Top:Bottom,1))","v":""}]
[null,null,null,null,null,null,null,null,null,null,null,null,null,null,null,null,null,null,null,null,null,null,null,null,null,null,null,null,"","","",99999,{"$f":"IF(AF27=99999,\"\",RANK(AF27,Top:Bottom,1))","v":""}]
[null,null,null,null,null,null,null,null,null,null,null,null,null,null,null,null,null,null,null,null,null,null,null,null,null,null,null,null,"","","",99999,{"$f":"IF(AF28=99999,\"\",RANK(AF28,Top:Bottom,1))","v":""}]
[null,null,null,null,null,null,null,null,null,null,null,null,null,null,null,null,null,null,null,null,null,null,null,null,null,null,null,null,"","","",99999,{"$f":"IF(AF29=99999,\"\",RANK(AF29,Top:Bottom,1))","v":""}]
[null,null,null,null,null,null,null,null,null,null,null,null,null,null,null,null,null,null,null,null,null,null,null,null,null,null,null,null,"","","",99999,{"$f":"IF(AF30=99999,\"\",RANK(AF30,Top:Bottom,1))","v":""}]
[null,null,null,null,null,null,null,null,null,null,null,null,null,null,null,null,null,null,null,null,null,null,null,null,null,null,null,null,"","","",99999,{"$f":"IF(AF31=99999,\"\",RANK(AF31,Top:Bottom,1))","v":""}]
[null,null,null,null,null,null,null,null,null,null,null,null,null,null,null,null,null,null,null,null,null,null,null,null,null,null,null,null,"","","",99999,{"$f":"IF(AF32=99999,\"\",RANK(AF32,Top:Bottom,1))","v":""}]
[null,null,null,null,null,null,null,null,null,null,null,null,null,null,null,null,null,null,null,null,null,null,null,null,null,null,null,null,"","","",99999,{"$f":"IF(AF33=99999,\"\",RANK(AF33,Top:Bottom,1))","v":""}]
[null,null,null,null,null,null,null,null,null,null,null,null,null,null,null,null,null,null,null,null,null,null,null,null,null,null,null,null,"","","",99999,{"$f":"IF(AF34=99999,\"\",RANK(AF34,Top:Bottom,1))","v":""}]
[null,null,null,null,null,null,null,null,null,null,null,null,null,null,null,null,null,null,null,null,null,null,null,null,null,null,null,null,"","","",99999,{"$f":"IF(AF35=99999,\"\",RANK(AF35,Top:Bottom,1))","v":""}]
[null,null,null,null,null,null,null,null,null,null,null,null,null,null,null,null,null,null,null,null,null,null,null,null,null,null,null,null,{"$f":"IF(AA36=\"\",\"\",AB36-AA36)","v":""},{"$f":"IF(AC36=\"\",\"\",ABS(AC36-BogeyTime))","v":""},{"$f":"IF(COUNTIF(B36:Z36,\"e\")>0,\"E\",(IF(AA36=\"\",\"\",SUM(B36:Z36))))","v":""},{"$f":"IF(OR(AA36=\"\",AE36=\"E\"),99999,(IF(AC36<BogeyTime,AD36*86401,AD36*86400)+AE36*100))","v":99999},{"$f":"IF(AF36=99999,\"\",RANK(AF36,Top:Bottom,1))","v":""}]
[null,null,null,null,null,null,null,null,null,null,null,null,null,null,null,null,null,null,null,null,null,null,null,null,null,null,null,null,"","","",99999,{"$f":"IF(AF37=99999,\"\",RANK(AF37,Top:Bottom,1))","v":""}]
[null,null,null,null,null,null,null,null,null,null,null,null,null,null,null,null,null,null,null,null,null,null,null,null,null,null,null,null,"","","",99999,{"$f":"IF(AF38=99999,\"\",RANK(AF38,Top:Bottom,1))","v":""}]
[null,null,null,null,null,null,null,null,null,null,null,null,null,null,null,null,null,null,null,null,null,null,null,null,null,null,null,null,"","","",99999,{"$f":"IF(AF39=99999,\"\",RANK(AF39,Top:Bottom,1))","v":""}]
[null,null,null,null,null,null,null,null,null,null,null,null,null,null,null,null,null,null,null,null,null,null,null,null,null,null,null,null,"","","",99999,{"$f":"IF(AF40=99999,\"\",RANK(AF40,Top:Bottom,1))","v":""}]
[null,null,null,null,null,null,null,null,null,null,null,null,null,null,null,null,null,null,null,null,null,null,null,null,null,null,null,null,"","","",99999,{"$f":"IF(AF41=99999,\"\",RANK(AF41,Top:Bottom,1))","v":""}]
[null,null,null,null,null,null,null,null,null,null,null,null,null,null,null,null,null,null,null,null,null,null,null,null,null,null,null,null,"","","",99999,{"$f":"IF(AF42=99999,\"\",RANK(AF42,Top:Bottom,1))","v":""}]
[null,null,null,null,null,null,null,null,null,null,null,null,null,null,null,null,null,null,null,null,null,null,null,null,null,null,null,null,"","","",99999,{"$f":"IF(AF43=99999,\"\",RANK(AF43,Top:Bottom,1))","v":""}]
[null,null,null,null,null,null,null,null,null,null,null,null,null,null,null,null,null,null,null,null,null,null,null,null,null,null,null,null,"","","",99999,{"$f":"IF(AF44=99999,\"\",RANK(AF44,Top:Bottom,1))","v":""}]
[null,null,null,null,null,null,null,null,null,null,null,null,null,null,null,null,null,null,null,null,null,null,null,null,null,null,null,null,"","","",99999,{"$f":"IF(AF45=99999,\"\",RANK(AF45,Top:Bottom,1))","v":""}]
[null,null,null,null,null,null,null,null,null,null,null,null,null,null,null,null,null,null,null,null,null,null,null,null,null,null,null,null,"","","",99999,{"$f":"IF(AF46=99999,\"\",RANK(AF46,Top:Bottom,1))","v":""}]
[null,null,null,null,null,null,null,null,null,null,null,null,null,null,null,null,null,null,null,null,null,null,null,null,null,null,null,null,"","","",99999,{"$f":"IF(AF47=99999,\"\",RANK(AF47,Top:Bottom,1))","v":""}]
[null,null,null,null,null,null,null,null,null,null,null,null,null,null,null,null,null,null,null,null,null,null,null,null,null,null,null,null,"","","",99999,{"$f":"IF(AF48=99999,\"\",RANK(AF48,Top:Bottom,1))","v":""}]
[null,null,null,null,null,null,null,null,null,null,null,null,null,null,null,null,null,null,null,null,null,null,null,null,null,null,null,null,"","","",99999,{"$f":"IF(AF49=99999,\"\",RANK(AF49,Top:Bottom,1))","v":""}]
[null,null,null,null,null,null,null,null,null,null,null,null,null,null,null,null,null,null,null,null,null,null,null,null,null,null,null,null,"","","",99999,{"$f":"IF(AF50=99999,\"\",RANK(AF50,Top:Bottom,1))","v":""}]
[null,null,null,null,null,null,null,null,null,null,null,null,null,null,null,null,null,null,null,null,null,null,null,null,null,null,null,null,"","","",99999,{"$f":"IF(AF51=99999,\"\",RANK(AF51,Top:Bottom,1))","v":""}]
[null,null,null,null,null,null,null,null,null,null,null,null,null,null,null,null,null,null,null,null,null,null,null,null,null,null,null,null,"","","",99999,{"$f":"IF(AF52=99999,\"\",RANK(AF52,Top:Bottom,1))","v":""}]
[null,null,null,null,null,null,null,null,null,null,null,null,null,null,null,null,null,null,null,null,null,null,null,null,null,null,null,null,"","","",99999,{"$f":"IF(AF53=99999,\"\",RANK(AF53,Top:Bottom,1))","v":""}]
[null,null,null,null,null,null,null,null,null,null,null,null,null,null,null,null,null,null,null,null,null,null,null,null,null,null,null,null,"","","",99999,{"$f":"IF(AF54=99999,\"\",RANK(AF54,Top:Bottom,1))","v":""}]
[null,null,null,null,null,null,null,null,null,null,null,null,null,null,null,null,null,null,null,null,null,null,null,null,null,null,null,null,"","","",99999,{"$f":"IF(AF55=99999,\"\",RANK(AF55,Top:Bottom,1))","v":""}]
[null,null,null,null,null,null,null,null,null,null,null,null,null,null,null,null,null,null,null,null,null,null,null,null,null,null,null,null,"","","",99999,{"$f":"IF(AF56=99999,\"\",RANK(AF56,Top:Bottom,1))","v":""}]
[null,null,null,null,null,null,null,null,null,null,null,null,null,null,null,null,null,null,null,null,null,null,null,null,null,null,null,null,"","","",99999,{"$f":"IF(AF57=99999,\"\",RANK(AF57,Top:Bottom,1))","v":""}]
[null,null,null,null,null,null,null,null,null,null,null,null,null,null,null,null,null,null,null,null,null,null,null,null,null,null,null,null,"","","",99999,{"$f":"IF(AF58=99999,\"\",RANK(AF58,Top:Bottom,1))","v":""}]
[null,null,null,null,null,null,null,null,null,null,null,null,null,null,null,null,null,null,null,null,null,null,null,null,null,null,null,null,"","","",99999,{"$f":"IF(AF59=99999,\"\",RANK(AF59,Top:Bottom,1))","v":""}]
[null,null,null,null,null,null,null,null,null,null,null,null,null,null,null,null,null,null,null,null,null,null,null,null,null,null,null,null,"","","",99999,{"$f":"IF(AF60=99999,\"\",RANK(AF60,Top:Bottom,1))","v":""}]
[null,null,null,null,null,null,null,null,null,null,null,null,null,null,null,null,null,null,null,null,null,null,null,null,null,null,null,null,"","","",99999,{"$f":"IF(AF61=99999,\"\",RANK(AF61,Top:Bottom,1))","v":""}]
[null,null,null,null,null,null,null,null,null,null,null,null,null,null,null,null,null,null,null,null,null,null,null,null,null,null,null,null,"","","",99999,{"$f":"IF(AF62=99999,\"\",RANK(AF62,Top:Bottom,1))","v":""}]
[null,null,null,null,null,null,null,null,null,null,null,null,null,null,null,null,null,null,null,null,null,null,null,null,null,null,null,null,"","","",99999,{"$f":"IF(AF63=99999,\"\",RANK(AF63,Top:Bottom,1))","v":""}]
[null,null,null,null,null,null,null,null,null,null,null,null,null,null,null,null,null,null,null,null,null,null,null,null,null,null,null,null,"","","",99999,{"$f":"IF(AF64=99999,\"\",RANK(AF64,Top:Bottom,1))","v":""}]
[null,null,null,null,null,null,null,null,null,null,null,null,null,null,null,null,null,null,null,null,null,null,null,null,null,null,null,null,"","","",99999,{"$f":"IF(AF65=99999,\"\",RANK(AF65,Top:Bottom,1))","v":""}]
[null,null,null,null,null,null,null,null,null,null,null,null,null,null,null,null,null,null,null,null,null,null,null,null,null,null,null,null,"","","",99999,{"$f":"IF(AF66=99999,\"\",RANK(AF66,Top:Bottom,1))","v":""}]
[null,null,null,null,null,null,null,null,null,null,null,null,null,null,null,null,null,null,null,null,null,null,null,null,null,null,null,null,"","","",99999,{"$f":"IF(AF67=99999,\"\",RANK(AF67,Top:Bottom,1))","v":""}]
[null,null,null,null,null,null,null,null,null,null,null,null,null,null,null,null,null,null,null,null,null,null,null,null,null,null,null,null,{"$f":"IF(AA68=\"\",\"\",AB68-AA68)","v":""},{"$f":"IF(AC68=\"\",\"\",ABS(AC68-BogeyTime))","v":""},{"$f":"IF(COUNTIF(B68:Z68,\"e\")>0,\"E\",(IF(AA68=\"\",\"\",SUM(B68:Z68))))","v":""},{"$f":"IF(OR(AA68=\"\",AE68=\"E\"),99999,(IF(AC68<BogeyTime,AD68*86401,AD68*86400)+AE68*100))","v":99999},{"$f":"IF(AF68=99999,\"\",RANK(AF68,Top:Bottom,1))","v":""}]
[null,null,null,null,null,null,null,null,null,null,null,null,null,null,null,null,null,null,null,null,null,null,null,null,null,null,null,null,"","","",99999,{"$f":"IF(AF69=99999,\"\",RANK(AF69,Top:Bottom,1))","v":""}]
[null,null,null,null,null,null,null,null,null,null,null,null,null,null,null,null,null,null,null,null,null,null,null,null,null,null,null,null,"","","",99999,{"$f":"IF(AF70=99999,\"\",RANK(AF70,Top:Bottom,1))","v":""}]
[null,null,null,null,null,null,null,null,null,null,null,null,null,null,null,null,null,null,null,null,null,null,null,null,null,null,null,null,"","","",99999,{"$f":"IF(AF71=99999,\"\",RANK(AF71,Top:Bottom,1))","v":""}]
[null,null,null,null,null,null,null,null,null,null,null,null,null,null,null,null,null,null,null,null,null,null,null,null,null,null,null,null,"","","",99999,{"$f":"IF(AF72=99999,\"\",RANK(AF72,Top:Bottom,1))","v":""}]
[null,null,null,null,null,null,null,null,null,null,null,null,null,null,null,null,null,null,null,null,null,null,null,null,null,null,null,null,"","","",99999,{"$f":"IF(AF73=99999,\"\",RANK(AF73,Top:Bottom,1))","v":""}]
[null,null,null,null,null,null,null,null,null,null,null,null,null,null,null,null,null,null,null,null,null,null,null,null,null,null,null,null,"","","",99999,{"$f":"IF(AF74=99999,\"\",RANK(AF74,Top:Bottom,1))","v":""}]
[null,null,null,null,null,null,null,null,null,null,null,null,null,null,null,null,null,null,null,null,null,null,null,null,null,null,null,null,"","","",99999,{"$f":"IF(AF75=99999,\"\",RANK(AF75,Top:Bottom,1))","v":""}]
[null,null,null,null,null,null,null,null,null,null,null,null,null,null,null,null,null,null,null,null,null,null,null,null,null,null,null,null,"","","",99999,{"$f":"IF(AF76=99999,\"\",RANK(AF76,Top:Bottom,1))","v":""}]
[null,null,null,null,null,null,null,null,null,null,null,null,null,null,null,null,null,null,null,null,null,null,null,null,null,null,null,null,"","","",99999,{"$f":"IF(AF77=99999,\"\",RANK(AF77,Top:Bottom,1))","v":""}]
[null,null,null,null,null,null,null,null,null,null,null,null,null,null,null,null,null,null,null,null,null,null,null,null,null,null,null,null,"","","",99999,{"$f":"IF(AF78=99999,\"\",RANK(AF78,Top:Bottom,1))","v":""}]
[null,null,null,null,null,null,null,null,null,null,null,null,null,null,null,null,null,null,null,null,null,null,null,null,null,null,null,null,"","","",99999,{"$f":"IF(AF79=99999,\"\",RANK(AF79,Top:Bottom,1))","v":""}]
[null,null,null,null,null,null,null,null,null,null,null,null,null,null,null,null,null,null,null,null,null,null,null,null,null,null,null,null,"","","",99999,{"$f":"IF(AF80=99999,\"\",RANK(AF80,Top:Bottom,1))","v":""}]
[null,null,null,null,null,null,null,null,null,null,null,null,null,null,null,null,null,null,null,null,null,null,null,null,null,null,null,null,"","","",99999,{"$f":"IF(AF81=99999,\"\",RANK(AF81,Top:Bottom,1))","v":""}]
[null,null,null,null,null,null,null,null,null,null,null,null,null,null,null,null,null,null,null,null,null,null,null,null,null,null,null,null,"","","",99999,{"$f":"IF(AF82=99999,\"\",RANK(AF82,Top:Bottom,1))","v":""}]
[null,null,null,null,null,null,null,null,null,null,null,null,null,null,null,null,null,null,null,null,null,null,null,null,null,null,null,null,"","","",99999,{"$f":"IF(AF83=99999,\"\",RANK(AF83,Top:Bottom,1))","v":""}]
[null,null,null,null,null,null,null,null,null,null,null,null,null,null,null,null,null,null,null,null,null,null,null,null,null,null,null,null,"","","",99999,{"$f":"IF(AF84=99999,\"\",RANK(AF84,Top:Bottom,1))","v":""}]
[null,null,null,null,null,null,null,null,null,null,null,null,null,null,null,null,null,null,null,null,null,null,null,null,null,null,null,null,"","","",99999,{"$f":"IF(AF85=99999,\"\",RANK(AF85,Top:Bottom,1))","v":""}]
[null,null,null,null,null,null,null,null,null,null,null,null,null,null,null,null,null,null,null,null,null,null,null,null,null,null,null,null,"","","",99999,{"$f":"IF(AF86=99999,\"\",RANK(AF86,Top:Bottom,1))","v":""}]
[null,null,null,null,null,null,null,null,null,null,null,null,null,null,null,null,null,null,null,null,null,null,null,null,null,null,null,null,"","","",99999,{"$f":"IF(AF87=99999,\"\",RANK(AF87,Top:Bottom,1))","v":""}]
[null,null,null,null,null,null,null,null,null,null,null,null,null,null,null,null,null,null,null,null,null,null,null,null,null,null,null,null,"","","",99999,{"$f":"IF(AF88=99999,\"\",RANK(AF88,Top:Bottom,1))","v":""}]
[null,null,null,null,null,null,null,null,null,null,null,null,null,null,null,null,null,null,null,null,null,null,null,null,null,null,null,null,"","","",99999,{"$f":"IF(AF89=99999,\"\",RANK(AF89,Top:Bottom,1))","v":""}]
[null,null,null,null,null,null,null,null,null,null,null,null,null,null,null,null,null,null,null,null,null,null,null,null,null,null,null,null,"","","",99999,{"$f":"IF(AF90=99999,\"\",RANK(AF90,Top:Bottom,1))","v":""}]
[null,null,null,null,null,null,null,null,null,null,null,null,null,null,null,null,null,null,null,null,null,null,null,null,null,null,null,null,"","","",99999,{"$f":"IF(AF91=99999,\"\",RANK(AF91,Top:Bottom,1))","v":""}]
[null,null,null,null,null,null,null,null,null,null,null,null,null,null,null,null,null,null,null,null,null,null,null,null,null,null,null,null,"","","",99999,{"$f":"IF(AF92=99999,\"\",RANK(AF92,Top:Bottom,1))","v":""}]
[null,null,null,null,null,null,null,null,null,null,null,null,null,null,null,null,null,null,null,null,null,null,null,null,null,null,null,null,"","","",99999,{"$f":"IF(AF93=99999,\"\",RANK(AF93,Top:Bottom,1))","v":""}]
[null,null,null,null,null,null,null,null,null,null,null,null,null,null,null,null,null,null,null,null,null,null,null,null,null,null,null,null,"","","",99999,{"$f":"IF(AF94=99999,\"\",RANK(AF94,Top:Bottom,1))","v":""}]
[null,null,null,null,null,null,null,null,null,null,null,null,null,null,null,null,null,null,null,null,null,null,null,null,null,null,null,null,"","","",99999,{"$f":"IF(AF95=99999,\"\",RANK(AF95,Top:Bottom,1))","v":""}]
[null,null,null,null,null,null,null,null,null,null,null,null,null,null,null,null,null,null,null,null,null,null,null,null,null,null,null,null,"","","",99999,{"$f":"IF(AF96=99999,\"\",RANK(AF96,Top:Bottom,1))","v":""}]
[null,null,null,null,null,null,null,null,null,null,null,null,null,null,null,null,null,null,null,null,null,null,null,null,null,null,null,null,"","","",99999,{"$f":"IF(AF97=99999,\"\",RANK(AF97,Top:Bottom,1))","v":""}]
[null,null,null,null,null,null,null,null,null,null,null,null,null,null,null,null,null,null,null,null,null,null,null,null,null,null,null,null,"","","",99999,{"$f":"IF(AF98=99999,\"\",RANK(AF98,Top:Bottom,1))","v":""}]
[null,null,null,null,null,null,null,null,null,null,null,null,null,null,null,null,null,null,null,null,null,null,null,null,null,null,null,null,"","","",99999,{"$f":"IF(AF99=99999,\"\",RANK(AF99,Top:Bottom,1))","v":""}]
[null,null,null,null,null,null,null,null,null,null,null,null,null,null,null,null,null,null,null,null,null,null,null,null,null,null,null,null,{"$f":"IF(AA100=\"\",\"\",AB100-AA100)","v":""},{"$f":"IF(AC100=\"\",\"\",ABS(AC100-BogeyTime))","v":""},"",{"$f":"IF(OR(AA100=\"\",AE100=\"E\"),99999,(IF(AC100<BogeyTime,AD100*86401,AD100*86400)+AE100*100))","v":99999},{"$f":"IF(AF100=99999,\"\",RANK(AF100,Top:Bottom,1))","v":""}]
[null,null,null,null,null,null,null,null,null,null,null,null,null,null,null,null,null,null,null,null,null,null,null,null,null,null,null,null,{"$f":"IF(AA101=\"\",\"\",AB101-AA101)","v":""},{"$f":"IF(AC101=\"\",\"\",ABS(AC101-BogeyTime))","v":""},"",{"$f":"IF(OR(AA101=\"\",AE101=\"E\"),99999,(IF(AC101<BogeyTime,AD101*86401,AD101*86400)+AE101*100))","v":99999},{"$f":"IF(AF101=99999,\"\",RANK(AF101,Top:Bottom,1))","v":""}]
[null,null,null,null,null,null,null,null,null,null,null,null,null,null,null,null,null,null,null,null,null,null,null,null,null,null,null,null,{"$f":"IF(AA102=\"\",\"\",AB102-AA102)","v":""},{"$f":"IF(AC102=\"\",\"\",ABS(AC102-BogeyTime))","v":""},"",{"$f":"IF(OR(AA102=\"\",AE102=\"E\"),99999,(IF(AC102<BogeyTime,AD102*86401,AD102*86400)+AE102*100))","v":99999},{"$f":"IF(AF102=99999,\"\",RANK(AF102,Top:Bottom,1))","v":""}]
["PJLH 15/03"]

{"sheet":"Class 2","index":2,"n_rows":104,"n_cols":33,"rows_kept":104,"cut":false,"hidden":false,"merged":[[1,20,2,20],[1,21,2,21],[1,22,2,22],[1,23,2,23],[1,31,2,31],[1,32,2,32],[1,24,2,24],[1,25,2,25],[1,26,1,28],[1,30,2,30],[1,14,2,14],[1,15,2,15],[1,16,2,16],[1,17,2,17],[1,18,2,18],[1,19,2,19],[1,8,2,8],[1,9,2,9],[1,10,2,10],[1,11,2,11],[1,12,2,12],[1,13,2,13],[0,23,0,25],[0,29,0,30],[1,0,2,0],[1,1,2,1],[1,2,2,2],[1,3,2,3],[1,4,2,4],[1,5,2,5],[1,6,2,6],[1,7,2,7],[0,0,0,9],[0,10,0,11],[0,12,0,14],[0,15,0,16],[0,18,0,20],[0,21,0,22]]}
["Hunter Trials Scoresheet",null,null,null,null,null,null,null,null,null,"Date:",null,"26/07/15",null,null,"Class:",null,"2","Height\nCm:",null,null,80,null,"Speed\nMpm",null,null,{"$f":"(IF(Height=80,435,IF(Height=90,450,IF(Height=100,475,250))))","v":435},"Timed \nDist (mtr)",610,"T/S Optimum:",null,null,{"$f":"TIME(INT((Distance*60/Speed)/3600),INT(MOD((Distance*60/Speed),3600)/60),MOD(MOD((Distance*60/Speed),3600),60))","v":"00:01:24"}]
["No.",1,2,3,4,5,6,7,8,9,10,11,12,13,14,15,16,17,18,19,20,null,null,null,null,null,"Timed Section",null,null,null,"Jump Total","Total Penalties","Position"]
[null,null,null,null,null,null,null,null,null,null,null,null,null,null,null,null,null,null,null,null,null,null,null,null,null,null,"Start","End","Elapsed","Variance"]
[208,0,20,0,20,20,0,0,null,null,null,null,null,null,0,0,0,0,"E",0,0,null,null,null,null,null,0,"00:01:40",{"$f":"IF(AA4=\"\",\"\",AB4-AA4)","v":"00:01:40"},{"$f":"IF(AC4=\"\",\"\",ABS(AC4-BogeyTime))","v":1.8518518518518526E-4},{"$f":"IF(COUNTIF(B4:Z4,\"e\")>0,\"E\",(IF(AA4=\"\",\"\",SUM(B4:Z4))))","v":"E"},{"$f":"IF(OR(AA4=\"\",AE4=\"E\"),99999,(IF(AC4<BogeyTime,AD4*86401,AD4*86400)+AE4*100))","v":99999},{"$f":"IF(AF4=99999,\"\",RANK(AF4,Top:Bottom,1))","v":""}]
[209,0,0,0,0,0,0,0,null,null,null,null,null,null,0,0,0,0,0,0,0,null,null,null,null,null,0,"00:01:34","00:01:34",1.157407407407408E-4,0,10.000000000000005,{"$f":"IF(AF5=99999,\"\",RANK(AF5,Top:Bottom,1))","v":3}]
[222,0,0,0,0,0,0,0,null,null,null,null,null,null,0,0,0,0,0,0,0,null,null,null,null,null,0,"00:01:28","00:01:28",4.6296296296296558E-5,0,4.0000000000000222,{"$f":"IF(AF6=99999,\"\",RANK(AF6,Top:Bottom,1))","v":2}]
[203,0,0,0,0,0,0,0,null,null,null,null,null,null,0,0,0,0,0,0,0,null,null,null,null,null,"00:00:00","00:01:34","00:01:34",1.157407407407408E-4,0,10.000000000000005,{"$f":"IF(AF7=99999,\"\",RANK(AF7,Top:Bottom,1))","v":3}]
[215,0,0,0,0,0,0,0,null,null,null,null,null,null,0,0,0,0,0,0,0,null,null,null,null,null,"00:00:00","00:02:30","00:02:30",7.6388888888888893E-4,0,66,{"$f":"IF(AF8=99999,\"\",RANK(AF8,Top:Bottom,1))","v":8}]
[211,0,0,0,0,0,0,0,null,null,null,null,null,null,0,0,0,0,0,0,0,null,null,null,null,null,"00:00:00","00:01:56","00:01:56",3.7037037037037041E-4,0,32,{"$f":"IF(AF9=99999,\"\",RANK(AF9,Top:Bottom,1))","v":7}]
[223,0,0,0,0,20,"E","E",null,null,null,null,null,null,0,0,0,0,0,0,0,null,null,null,null,null,"00:00:00",null,"00:00:00",9.7222222222222209E-4,"E",99999,{"$f":"IF(AF10=99999,\"\",RANK(AF10,Top:Bottom,1))","v":""}]
[221,0,0,0,0,20,0,"E",null,null,null,null,null,null,0,0,0,0,0,0,0,null,null,null,null,null,"00:00:00",null,"00:00:00",9.7222222222222209E-4,"E",99999,{"$f":"IF(AF11=99999,\"\",RANK(AF11,Top:Bottom,1))","v":""}]
[213,0,0,0,0,0,0,0,null,null,null,null,null,null,20,0,0,0,0,0,0,null,null,null,null,null,"00:00:00","00:01:58","00:01:58",3.9351851851851885E-4,20,2034,{"$f":"IF(AF12=99999,\"\",RANK(AF12,Top:Bottom,1))","v":11}]
[219,0,0,0,0,0,0,0,null,null,null,null,null,null,0,0,0,0,0,0,0,null,null,null,null,null,"00:00:00","00:01:42","00:01:42",2.0833333333333348E-4,0,18.000000000000014,{"$f":"IF(AF13=99999,\"\",RANK(AF13,Top:Bottom,1))","v":5}]
[206,0,0,0,0,0,0,0,null,null,null,null,null,null,0,0,0,0,0,0,0,null,null,null,null,null,"00:00:00","00:03:08","00:03:08",1.2037037037037038E-3,0,104.00000000000001,{"$f":"IF(AF14=99999,\"\",RANK(AF14,Top:Bottom,1))","v":9}]
[207,0,0,0,20,0,0,0,null,null,null,null,null,null,0,0,0,0,20,0,0,null,null,null,null,null,"00:00:00","00:01:47","00:01:47",2.6620370370370372E-4,40,4023,{"$f":"IF(AF15=99999,\"\",RANK(AF15,Top:Bottom,1))","v":12}]
[210,0,0,0,0,0,0,0,null,null,null,null,null,null,0,0,0,0,0,0,0,null,null,null,null,null,"00:00:00","00:01:22","00:01:22",2.3148148148148008E-5,0,2.0000231481481361,{"$f":"IF(AF16=99999,\"\",RANK(AF16,Top:Bottom,1))","v":1}]
[226,0,0,20,0,0,20,"E",null,null,null,null,null,null,0,0,0,0,0,0,0,null,null,null,null,null,"00:00:00","00:02:00","00:02:00",4.1666666666666686E-4,"E",99999,{"$f":"IF(AF17=99999,\"\",RANK(AF17,Top:Bottom,1))","v":""}]
[225,0,0,0,0,0,0,0,null,null,null,null,null,null,0,0,0,0,0,0,0,null,null,null,null,null,"00:00:00","00:01:46","00:01:46",2.5462962962962972E-4,0,22.000000000000007,{"$f":"IF(AF18=99999,\"\",RANK(AF18,Top:Bottom,1))","v":6}]
[220,0,0,0,0,20,0,0,null,null,null,null,null,null,0,0,0,0,0,0,0,null,null,null,null,null,"00:00:00","00:01:35","00:01:35",1.2731481481481502E-4,20,2011,{"$f":"IF(AF19=99999,\"\",RANK(AF19,Top:Bottom,1))","v":10}]
[]
[]
[]
[]
[]
[]
[]
[]
[]
[]
[]
[]
[]
[]
[]
[]
[]
[]
[]
[]
[]
[]
[]
[]
[]
[]
[]
[]
[]
[]
[]
[]
[]
[null,null,null,null,null,null,null,null,null,null,null,null,null,null,null,null,null,null,null,null,null,null,null,null,null,null,null,null,{"$f":"IF(AA53=\"\",\"\",AB53-AA53)","v":""},{"$f":"IF(AC53=\"\",\"\",ABS(AC53-BogeyTime))","v":""},{"$f":"IF(COUNTIF(B53:Z53,\"e\")>0,\"E\",(IF(AA53=\"\",\"\",SUM(B53:Z53))))","v":""},{"$f":"IF(OR(AA53=\"\",AE53=\"E\"),99999,(IF(AC53<BogeyTime,AD53*86401,AD53*86400)+AE53*100))","v":99999},{"$f":"IF(AF53=99999,\"\",RANK(AF53,Top:Bottom,1))","v":""}]
[null,null,null,null,null,null,null,null,null,null,null,null,null,null,null,null,null,null,null,null,null,null,null,null,null,null,null,null,"","","",99999,{"$f":"IF(AF54=99999,\"\",RANK(AF54,Top:Bottom,1))","v":""}]
[null,null,null,null,null,null,null,null,null,null,null,null,null,null,null,null,null,null,null,null,null,null,null,null,null,null,null,null,"","","",99999,{"$f":"IF(AF55=99999,\"\",RANK(AF55,Top:Bottom,1))","v":""}]
[null,null,null,null,null,null,null,null,null,null,null,null,null,null,null,null,null,null,null,null,null,null,null,null,null,null,null,null,"","","",99999,{"$f":"IF(AF56=99999,\"\",RANK(AF56,Top:Bottom,1))","v":""}]
[null,null,null,null,null,null,null,null,null,null,null,null,null,null,null,null,null,null,null,null,null,null,null,null,null,null,null,null,"","","",99999,{"$f":"IF(AF57=99999,\"\",RANK(AF57,Top:Bottom,1))","v":""}]
[null,null,null,null,null,null,null,null,null,null,null,null,null,null,null,null,null,null,null,null,null,null,null,null,null,null,null,null,"","","",99999,{"$f":"IF(AF58=99999,\"\",RANK(AF58,Top:Bottom,1))","v":""}]
[null,null,null,null,null,null,null,null,null,null,null,null,null,null,null,null,null,null,null,null,null,null,null,null,null,null,null,null,"","","",99999,{"$f":"IF(AF59=99999,\"\",RANK(AF59,Top:Bottom,1))","v":""}]
[null,null,null,null,null,null,null,null,null,null,null,null,null,null,null,null,null,null,null,null,null,null,null,null,null,null,null,null,"","","",99999,{"$f":"IF(AF60=99999,\"\",RANK(AF60,Top:Bottom,1))","v":""}]
[null,null,null,null,null,null,null,null,null,null,null,null,null,null,null,null,null,null,null,null,null,null,null,null,null,null,null,null,"","","",99999,{"$f":"IF(AF61=99999,\"\",RANK(AF61,Top:Bottom,1))","v":""}]
[null,null,null,null,null,null,null,null,null,null,null,null,null,null,null,null,null,null,null,null,null,null,null,null,null,null,null,null,"","","",99999,{"$f":"IF(AF62=99999,\"\",RANK(AF62,Top:Bottom,1))","v":""}]
[null,null,null,null,null,null,null,null,null,null,null,null,null,null,null,null,null,null,null,null,null,null,null,null,null,null,null,null,"","","",99999,{"$f":"IF(AF63=99999,\"\",RANK(AF63,Top:Bottom,1))","v":""}]
[null,null,null,null,null,null,null,null,null,null,null,null,null,null,null,null,null,null,null,null,null,null,null,null,null,null,null,null,"","","",99999,{"$f":"IF(AF64=99999,\"\",RANK(AF64,Top:Bottom,1))","v":""}]
[null,null,null,null,null,null,null,null,null,null,null,null,null,null,null,null,null,null,null,null,null,null,null,null,null,null,null,null,"","","",99999,{"$f":"IF(AF65=99999,\"\",RANK(AF65,Top:Bottom,1))","v":""}]
[null,null,null,null,null,null,null,null,null,null,null,null,null,null,null,null,null,null,null,null,null,null,null,null,null,null,null,null,"","","",99999,{"$f":"IF(AF66=99999,\"\",RANK(AF66,Top:Bottom,1))","v":""}]
[null,null,null,null,null,null,null,null,null,null,null,null,null,null,null,null,null,null,null,null,null,null,null,null,null,null,null,null,"","","",99999,{"$f":"IF(AF67=99999,\"\",RANK(AF67,Top:Bottom,1))","v":""}]
[null,null,null,null,null,null,null,null,null,null,null,null,null,null,null,null,null,null,null,null,null,null,null,null,null,null,null,null,"","","",99999,{"$f":"IF(AF68=99999,\"\",RANK(AF68,Top:Bottom,1))","v":""}]
[null,null,null,null,null,null,null,null,null,null,null,null,null,null,null,null,null,null,null,null,null,null,null,null,null,null,null,null,{"$f":"IF(AA69=\"\",\"\",AB69-AA69)","v":""},{"$f":"IF(AC69=\"\",\"\",ABS(AC69-BogeyTime))","v":""},{"$f":"IF(COUNTIF(B69:Z69,\"e\")>0,\"E\",(IF(AA69=\"\",\"\",SUM(B69:Z69))))","v":""},{"$f":"IF(OR(AA69=\"\",AE69=\"E\"),99999,(IF(AC69<BogeyTime,AD69*86401,AD69*86400)+AE69*100))","v":99999},{"$f":"IF(AF69=99999,\"\",RANK(AF69,Top:Bottom,1))","v":""}]
[null,null,null,null,null,null,null,null,null,null,null,null,null,null,null,null,null,null,null,null,null,null,null,null,null,null,null,null,"","","",99999,{"$f":"IF(AF70=99999,\"\",RANK(AF70,Top:Bottom,1))","v":""}]
[null,null,null,null,null,null,null,null,null,null,null,null,null,null,null,null,null,null,null,null,null,null,null,null,null,null,null,null,"","","",99999,{"$f":"IF(AF71=99999,\"\",RANK(AF71,Top:Bottom,1))","v":""}]
[null,null,null,null,null,null,null,null,null,null,null,null,null,null,null,null,null,null,null,null,null,null,null,null,null,null,null,null,"","","",99999,{"$f":"IF(AF72=99999,\"\",RANK(AF72,Top:Bottom,1))","v":""}]
[null,null,null,null,null,null,null,null,null,null,null,null,null,null,null,null,null,null,null,null,null,null,null,null,null,null,null,null,"","","",99999,{"$f":"IF(AF73=99999,\"\",RANK(AF73,Top:Bottom,1))","v":""}]
[null,null,null,null,null,null,null,null,null,null,null,null,null,null,null,null,null,null,null,null,null,null,null,null,null,null,null,null,"","","",99999,{"$f":"IF(AF74=99999,\"\",RANK(AF74,Top:Bottom,1))","v":""}]
[null,null,null,null,null,null,null,null,null,null,null,null,null,null,null,null,null,null,null,null,null,null,null,null,null,null,null,null,"","","",99999,{"$f":"IF(AF75=99999,\"\",RANK(AF75,Top:Bottom,1))","v":""}]
[null,null,null,null,null,null,null,null,null,null,null,null,null,null,null,null,null,null,null,null,null,null,null,null,null,null,null,null,"","","",99999,{"$f":"IF(AF76=99999,\"\",RANK(AF76,Top:Bottom,1))","v":""}]
[null,null,null,null,null,null,null,null,null,null,null,null,null,null,null,null,null,null,null,null,null,null,null,null,null,null,null,null,"","","",99999,{"$f":"IF(AF77=99999,\"\",RANK(AF77,Top:Bottom,1))","v":""}]
[null,null,null,null,null,null,null,null,null,null,null,null,null,null,null,null,null,null,null,null,null,null,null,null,null,null,null,null,"","","",99999,{"$f":"IF(AF78=99999,\"\",RANK(AF78,Top:Bottom,1))","v":""}]
[null,null,null,null,null,null,null,null,null,null,null,null,null,null,null,null,null,null,null,null,null,null,null,null,null,null,null,null,"","","",99999,{"$f":"IF(AF79=99999,\"\",RANK(AF79,Top:Bottom,1))","v":""}]
[null,null,null,null,null,null,null,null,null,null,null,null,null,null,null,null,null,null,null,null,null,null,null,null,null,null,null,null,"","","",99999,{"$f":"IF(AF80=99999,\"\",RANK(AF80,Top:Bottom,1))","v":""}]
[null,null,null,null,null,null,null,null,null,null,null,null,null,null,null,null,null,null,null,null,null,null,null,null,null,null,null,null,"","","",99999,{"$f":"IF(AF81=99999,\"\",RANK(AF81,Top:Bottom,1))","v":""}]
[null,null,null,null,null,null,null,null,null,null,null,null,null,null,null,null,null,null,null,null,null,null,null,null,null,null,null,null,"","","",99999,{"$f":"IF(AF82=99999,\"\",RANK(AF82,Top:Bottom,1))","v":""}]
[null,null,null,null,null,null,null,null,null,null,null,null,null,null,null,null,null,null,null,null,null,null,null,null,null,null,null,null,"","","",99999,{"$f":"IF(AF83=99999,\"\",RANK(AF83,Top:Bottom,1))","v":""}]
[null,null,null,null,null,null,null,null,null,null,null,null,null,null,null,null,null,null,null,null,null,null,null,null,null,null,null,null,"","","",99999,{"$f":"IF(AF84=99999,\"\",RANK(AF84,Top:Bottom,1))","v":""}]
[null,null,null,null,null,null,null,null,null,null,null,null,null,null,null,null,null,null,null,null,null,null,null,null,null,null,null,null,"","","",99999,{"$f":"IF(AF85=99999,\"\",RANK(AF85,Top:Bottom,1))","v":""}]
[null,null,null,null,null,null,null,null,null,null,null,null,null,null,null,null,null,null,null,null,null,null,null,null,null,null,null,null,"","","",99999,{"$f":"IF(AF86=99999,\"\",RANK(AF86,Top:Bottom,1))","v":""}]
[null,null,null,null,null,null,null,null,null,null,null,null,null,null,null,null,null,null,null,null,null,null,null,null,null,null,null,null,"","","",99999,{"$f":"IF(AF87=99999,\"\",RANK(AF87,Top:Bottom,1))","v":""}]
[null,null,null,null,null,null,null,null,null,null,null,null,null,null,null,null,null,null,null,null,null,null,null,null,null,null,null,null,"","","",99999,{"$f":"IF(AF88=99999,\"\",RANK(AF88,Top:Bottom,1))","v":""}]
[null,null,null,null,null,null,null,null,null,null,null,null,null,null,null,null,null,null,null,null,null,null,null,null,null,null,null,null,"","","",99999,{"$f":"IF(AF89=99999,\"\",RANK(AF89,Top:Bottom,1))","v":""}]
[null,null,null,null,null,null,null,null,null,null,null,null,null,null,null,null,null,null,null,null,null,null,null,null,null,null,null,null,"","","",99999,{"$f":"IF(AF90=99999,\"\",RANK(AF90,Top:Bottom,1))","v":""}]
[null,null,null,null,null,null,null,null,null,null,null,null,null,null,null,null,null,null,null,null,null,null,null,null,null,null,null,null,"","","",99999,{"$f":"IF(AF91=99999,\"\",RANK(AF91,Top:Bottom,1))","v":""}]
[null,null,null,null,null,null,null,null,null,null,null,null,null,null,null,null,null,null,null,null,null,null,null,null,null,null,null,null,"","","",99999,{"$f":"IF(AF92=99999,\"\",RANK(AF92,Top:Bottom,1))","v":""}]
[null,null,null,null,null,null,null,null,null,null,null,null,null,null,null,null,null,null,null,null,null,null,null,null,null,null,null,null,"","","",99999,{"$f":"IF(AF93=99999,\"\",RANK(AF93,Top:Bottom,1))","v":""}]
[null,null,null,null,null,null,null,null,null,null,null,null,null,null,null,null,null,null,null,null,null,null,null,null,null,null,null,null,"","","",99999,{"$f":"IF(AF94=99999,\"\",RANK(AF94,Top:Bottom,1))","v":""}]
[null,null,null,null,null,null,null,null,null,null,null,null,null,null,null,null,null,null,null,null,null,null,null,null,null,null,null,null,"","","",99999,{"$f":"IF(AF95=99999,\"\",RANK(AF95,Top:Bottom,1))","v":""}]
[null,null,null,null,null,null,null,null,null,null,null,null,null,null,null,null,null,null,null,null,null,null,null,null,null,null,null,null,"","","",99999,{"$f":"IF(AF96=99999,\"\",RANK(AF96,Top:Bottom,1))","v":""}]
[null,null,null,null,null,null,null,null,null,null,null,null,null,null,null,null,null,null,null,null,null,null,null,null,null,null,null,null,"","","",99999,{"$f":"IF(AF97=99999,\"\",RANK(AF97,Top:Bottom,1))","v":""}]
[null,null,null,null,null,null,null,null,null,null,null,null,null,null,null,null,null,null,null,null,null,null,null,null,null,null,null,null,"","","",99999,{"$f":"IF(AF98=99999,\"\",RANK(AF98,Top:Bottom,1))","v":""}]
[null,null,null,null,null,null,null,null,null,null,null,null,null,null,null,null,null,null,null,null,null,null,null,null,null,null,null,null,"","","",99999,{"$f":"IF(AF99=99999,\"\",RANK(AF99,Top:Bottom,1))","v":""}]
[null,null,null,null,null,null,null,null,null,null,null,null,null,null,null,null,null,null,null,null,null,null,null,null,null,null,null,null,"","","",99999,{"$f":"IF(AF100=99999,\"\",RANK(AF100,Top:Bottom,1))","v":""}]
[null,null,null,null,null,null,null,null,null,null,null,null,null,null,null,null,null,null,null,null,null,null,null,null,null,null,null,null,{"$f":"IF(AA101=\"\",\"\",AB101-AA101)","v":""},{"$f":"IF(AC101=\"\",\"\",ABS(AC101-BogeyTime))","v":""},"",{"$f":"IF(OR(AA101=\"\",AE101=\"E\"),99999,(IF(AC101<BogeyTime,AD101*86401,AD101*86400)+AE101*100))","v":99999},{"$f":"IF(AF101=99999,\"\",RANK(AF101,Top:Bottom,1))","v":""}]
[null,null,null,null,null,null,null,null,null,null,null,null,null,null,null,null,null,null,null,null,null,null,null,null,null,null,null,null,{"$f":"IF(AA102=\"\",\"\",AB102-AA102)","v":""},{"$f":"IF(AC102=\"\",\"\",ABS(AC102-BogeyTime))","v":""},"",{"$f":"IF(OR(AA102=\"\",AE102=\"E\"),99999,(IF(AC102<BogeyTime,AD102*86401,AD102*86400)+AE102*100))","v":99999},{"$f":"IF(AF102=99999,\"\",RANK(AF102,Top:Bottom,1))","v":""}]
[null,null,null,null,null,null,null,null,null,null,null,null,null,null,null,null,null,null,null,null,null,null,null,null,null,null,null,null,{"$f":"IF(AA103=\"\",\"\",AB103-AA103)","v":""},{"$f":"IF(AC103=\"\",\"\",ABS(AC103-BogeyTime))","v":""},"",{"$f":"IF(OR(AA103=\"\",AE103=\"E\"),99999,(IF(AC103<BogeyTime,AD103*86401,AD103*86400)+AE103*100))","v":99999},{"$f":"IF(AF103=99999,\"\",RANK(AF103,Top:Bottom,1))","v":""}]
["PJLH 15/03"]

{"sheet":"Class 3","index":3,"n_rows":103,"n_cols":36,"rows_kept":103,"cut":false,"hidden":false,"merged":[[1,23,2,23],[1,24,2,24],[1,25,2,25],[1,26,2,26],[1,34,2,34],[1,35,2,35],[1,27,2,27],[1,28,2,28],[1,29,1,31],[1,33,2,33],[1,14,2,14],[1,15,2,15],[1,16,2,16],[1,17,2,17],[1,18,2,18],[1,22,2,22],[1,8,2,8],[1,9,2,9],[1,10,2,10],[1,11,2,11],[1,12,2,12],[1,13,2,13],[0,26,0,28],[0,32,0,33],[1,0,2,0],[1,1,2,1],[1,2,2,2],[1,3,2,3],[1,4,2,4],[1,5,2,5],[1,6,2,6],[1,7,2,7],[0,0,0,9],[0,10,0,11],[0,12,0,14],[0,15,0,16],[0,18,0,23],[0,24,0,25]]}
["Hunter Trials Scoresheet",null,null,null,null,null,null,null,null,null,"Date:",null,"26/07/15",null,null,"Class:",null,"3","Height\nCm:",null,null,null,null,null,80,null,"Speed\nMpm",null,null,435,"Timed \nDist (mtr)",610,"T/S Optimum:",null,null,{"$f":"TIME(INT((Distance*60/Speed)/3600),INT(MOD((Distance*60/Speed),3600)/60),MOD(MOD((Distance*60/Speed),3600),60))","v":"00:01:24"}]
["No.",1,2,3,4,5,6,7,8,9,10,11,12,13,14,15,16,17,18,null,null,null,"Pairs F16","Pairs F19",null,null,null,null,null,"Timed Section",null,null,null,"Jump Total","Total Penalties","Position"]
[null,null,null,null,null,null,null,null,null,null,null,null,null,null,null,null,null,null,null,19,20,null,null,null,null,null,null,null,null,"Start","End","Elapsed","Variance"]
[301,60,0,0,0,"E",0,null,null,null,null,null,null,null,0,0,0,0,0,0,0,null,10,0,null,null,null,null,null,0,"00:02:29",{"$f":"IF(AD4=\"\",\"\",AE4-AD4)","v":"00:02:29"},{"$f":"IF(AF4=\"\",\"\",ABS(AF4-BogeyTime))","v":7.5231481481481514E-4},{"$f":"IF(COUNTIF(B4:AC4,\"e\")>0,\"E\",(IF(AD4=\"\",\"\",SUM(B4:AC4))))","v":"E"},{"$f":"IF(OR(AD4=\"\",AH4=\"E\"),99999,(IF(AF4<BogeyTime,AG4*86401,AG4*86400)+AH4*100))","v":99999},{"$f":"IF(AI4=99999,\"\",RANK(AI4,Top:Bottom,1))","v":""}]
[303,0,0,0,0,0,0,0,null,null,null,null,null,null,0,0,0,0,0,0,0,null,15,15,null,null,null,null,null,0,"00:01:43","00:01:43",2.1990740740740749E-4,30,3019,{"$f":"IF(AI5=99999,\"\",RANK(AI5,Top:Bottom,1))","v":2}]
[304,0,0,0,0,0,0,0,null,null,null,null,null,null,0,0,0,0,0,0,0,null,5,0,null,null,null,null,null,0,"00:01:27","00:01:27",3.4722222222222337E-5,5,503,{"$f":"IF(AI6=99999,\"\",RANK(AI6,Top:Bottom,1))","v":1}]
[302,0,0,0,0,20,0,"E",null,null,null,null,null,null,0,0,0,0,0,0,0,null,15,15,null,null,null,null,null,"00:00:00","00:01:57","00:01:57",3.8194444444444463E-4,"E",99999,{"$f":"IF(AI7=99999,\"\",RANK(AI7,Top:Bottom,1))","v":""}]
[null,null,null,null,null,null,null,null,null,null,null,null,null,null,null,null,null,null,null,null,null,null,null,null,null,null,null,null,null,null,null,null,"","",99999,{"$f":"IF(AI8=99999,\"\",RANK(AI8,Top:Bottom,1))","v":""}]
[null,null,null,null,null,null,null,null,null,null,null,null,null,null,null,null,null,null,null,null,null,null,null,null,null,null,null,null,null,null,null,null,"","",99999,{"$f":"IF(AI9=99999,\"\",RANK(AI9,Top:Bottom,1))","v":""}]
[null,null,null,null,null,null,null,null,null,null,null,null,null,null,null,null,null,null,null,null,null,null,null,null,null,null,null,null,null,null,null,null,"","",99999,{"$f":"IF(AI10=99999,\"\",RANK(AI10,Top:Bottom,1))","v":""}]
[null,null,null,null,null,null,null,null,null,null,null,null,null,null,null,null,null,null,null,null,null,null,null,null,null,null,null,null,null,null,null,null,"","",99999,{"$f":"IF(AI11=99999,\"\",RANK(AI11,Top:Bottom,1))","v":""}]
[null,null,null,null,null,null,null,null,null,null,null,null,null,null,null,null,null,null,null,null,null,null,null,null,null,null,null,null,null,null,null,null,"","",99999,{"$f":"IF(AI12=99999,\"\",RANK(AI12,Top:Bottom,1))","v":""}]
[null,null,null,null,null,null,null,null,null,null,null,null,null,null,null,null,null,null,null,null,null,null,null,null,null,null,null,null,null,null,null,null,"","",99999,{"$f":"IF(AI13=99999,\"\",RANK(AI13,Top:Bottom,1))","v":""}]
[null,null,null,null,null,null,null,null,null,null,null,null,null,null,null,null,null,null,null,null,null,null,null,null,null,null,null,null,null,null,null,null,"","",99999,{"$f":"IF(AI14=99999,\"\",RANK(AI14,Top:Bottom,1))","v":""}]
[null,null,null,null,null,null,null,null,null,null,null,null,null,null,null,null,null,null,null,null,null,null,null,null,null,null,null,null,null,null,null,null,"","",99999,{"$f":"IF(AI15=99999,\"\",RANK(AI15,Top:Bottom,1))","v":""}]
[null,null,null,null,null,null,null,null,null,null,null,null,null,null,null,null,null,null,null,null,null,null,null,null,null,null,null,null,null,null,null,null,"","",99999,{"$f":"IF(AI16=99999,\"\",RANK(AI16,Top:Bottom,1))","v":""}]
[null,null,null,null,null,null,null,null,null,null,null,null,null,null,null,null,null,null,null,null,null,null,null,null,null,null,null,null,null,null,null,null,"","",99999,{"$f":"IF(AI17=99999,\"\",RANK(AI17,Top:Bottom,1))","v":""}]
[null,null,null,null,null,null,null,null,null,null,null,null,null,null,null,null,null,null,null,null,null,null,null,null,null,null,null,null,null,null,null,null,"","",99999,{"$f":"IF(AI18=99999,\"\",RANK(AI18,Top:Bottom,1))","v":""}]
[null,null,null,null,null,null,null,null,null,null,null,null,null,null,null,null,null,null,null,null,null,null,null,null,null,null,null,null,null,null,null,null,"","",99999,{"$f":"IF(AI19=99999,\"\",RANK(AI19,Top:Bottom,1))","v":""}]
[null,null,null,null,null,null,null,null,null,null,null,null,null,null,null,null,null,null,null,null,null,null,null,null,null,null,null,null,null,null,null,null,"","",99999,{"$f":"IF(AI20=99999,\"\",RANK(AI20,Top:Bottom,1))","v":""}]
[null,null,null,null,null,null,null,null,null,null,null,null,null,null,null,null,null,null,null,null,null,null,null,null,null,null,null,null,null,null,null,null,"","",99999,{"$f":"IF(AI21=99999,\"\",RANK(AI21,Top:Bottom,1))","v":""}]
[null,null,null,null,null,null,null,null,null,null,null,null,null,null,null,null,null,null,null,null,null,null,null,null,null,null,null,null,null,null,null,"","","",99999,{"$f":"IF(AI22=99999,\"\",RANK(AI22,Top:Bottom,1))","v":""}]
[null,null,null,null,null,null,null,null,null,null,null,null,null,null,null,null,null,null,null,null,null,null,null,null,null,null,null,null,null,null,null,"","","",99999,{"$f":"IF(AI23=99999,\"\",RANK(AI23,Top:Bottom,1))","v":""}]
[null,null,null,null,null,null,null,null,null,null,null,null,null,null,null,null,null,null,null,null,null,null,null,null,null,null,null,null,null,null,null,"","","",99999,{"$f":"IF(AI24=99999,\"\",RANK(AI24,Top:Bottom,1))","v":""}]
[null,null,null,null,null,null,null,null,null,null,null,null,null,null,null,null,null,null,null,null,null,null,null,null,null,null,null,null,null,null,null,"","","",99999,{"$f":"IF(AI25=99999,\"\",RANK(AI25,Top:Bottom,1))","v":""}]
[null,null,null,null,null,null,null,null,null,null,null,null,null,null,null,null,null,null,null,null,null,null,null,null,null,null,null,null,null,null,null,"","","",99999,{"$f":"IF(AI26=99999,\"\",RANK(AI26,Top:Bottom,1))","v":""}]
[null,null,null,null,null,null,null,null,null,null,null,null,null,null,null,null,null,null,null,null,null,null,null,null,null,null,null,null,null,null,null,"","","",99999,{"$f":"IF(AI27=99999,\"\",RANK(AI27,Top:Bottom,1))","v":""}]
[null,null,null,null,null,null,null,null,null,null,null,null,null,null,null,null,null,null,null,null,null,null,null,null,null,null,null,null,null,null,null,"","","",99999,{"$f":"IF(AI28=99999,\"\",RANK(AI28,Top:Bottom,1))","v":""}]
[null,null,null,null,null,null,null,null,null,null,null,null,null,null,null,null,null,null,null,null,null,null,null,null,null,null,null,null,null,null,null,"","","",99999,{"$f":"IF(AI29=99999,\"\",RANK(AI29,Top:Bottom,1))","v":""}]
[null,null,null,null,null,null,null,null,null,null,null,null,null,null,null,null,null,null,null,null,null,null,null,null,null,null,null,null,null,null,null,"","","",99999,{"$f":"IF(AI30=99999,\"\",RANK(AI30,Top:Bottom,1))","v":""}]
[null,null,null,null,null,null,null,null,null,null,null,null,null,null,null,null,null,null,null,null,null,null,null,null,null,null,null,null,null,null,null,"","","",99999,{"$f":"IF(AI31=99999,\"\",RANK(AI31,Top:Bottom,1))","v":""}]
[null,null,null,null,null,null,null,null,null,null,null,null,null,null,null,null,null,null,null,null,null,null,null,null,null,null,null,null,null,null,null,"","","",99999,{"$f":"IF(AI32=99999,\"\",RANK(AI32,Top:Bottom,1))","v":""}]
[null,null,null,null,null,null,null,null,null,null,null,null,null,null,null,null,null,null,null,null,null,null,null,null,null,null,null,null,null,null,null,"","","",99999,{"$f":"IF(AI33=99999,\"\",RANK(AI33,Top:Bottom,1))","v":""}]
[null,null,null,null,null,null,null,null,null,null,null,null,null,null,null,null,null,null,null,null,null,null,null,null,null,null,null,null,null,null,null,"","","",99999,{"$f":"IF(AI34=99999,\"\",RANK(AI34,Top:Bottom,1))","v":""}]
[null,null,null,null,null,null,null,null,null,null,null,null,null,null,null,null,null,null,null,null,null,null,null,null,null,null,null,null,null,null,null,"","","",99999,{"$f":"IF(AI35=99999,\"\",RANK(AI35,Top:Bottom,1))","v":""}]
[null,null,null,null,null,null,null,null,null,null,null,null,null,null,null,null,null,null,null,null,null,null,null,null,null,null,null,null,null,null,null,{"$f":"IF(AD36=\"\",\"\",AE36-AD36)","v":""},{"$f":"IF(AF36=\"\",\"\",ABS(AF36-BogeyTime))","v":""},{"$f":"IF(COUNTIF(B36:AC36,\"e\")>0,\"E\",(IF(AD36=\"\",\"\",SUM(B36:AC36))))","v":""},{"$f":"IF(OR(AD36=\"\",AH36=\"E\"),99999,(IF(AF36<BogeyTime,AG36*86401,AG36*86400)+AH36*100))","v":99999},{"$f":"IF(AI36=99999,\"\",RANK(AI36,Top:Bottom,1))","v":""}]
[null,null,null,null,null,null,null,null,null,null,null,null,null,null,null,null,null,null,null,null,null,null,null,null,null,null,null,null,null,null,null,"","","",99999,{"$f":"IF(AI37=99999,\"\",RANK(AI37,Top:Bottom,1))","v":""}]
[null,null,null,null,null,null,null,null,null,null,null,null,null,null,null,null,null,null,null,null,null,null,null,null,null,null,null,null,null,null,null,"","","",99999,{"$f":"IF(AI38=99999,\"\",RANK(AI38,Top:Bottom,1))","v":""}]
[null,null,null,null,null,null,null,null,null,null,null,null,null,null,null,null,null,null,null,null,null,null,null,null,null,null,null,null,null,null,null,"","","",99999,{"$f":"IF(AI39=99999,\"\",RANK(AI39,Top:Bottom,1))","v":""}]
[null,null,null,null,null,null,null,null,null,null,null,null,null,null,null,null,null,null,null,null,null,null,null,null,null,null,null,null,null,null,null,"","","",99999,{"$f":"IF(AI40=99999,\"\",RANK(AI40,Top:Bottom,1))","v":""}]
[null,null,null,null,null,null,null,null,null,null,null,null,null,null,null,null,null,null,null,null,null,null,null,null,null,null,null,null,null,null,null,"","","",99999,{"$f":"IF(AI41=99999,\"\",RANK(AI41,Top:Bottom,1))","v":""}]
[null,null,null,null,null,null,null,null,null,null,null,null,null,null,null,null,null,null,null,null,null,null,null,null,null,null,null,null,null,null,null,"","","",99999,{"$f":"IF(AI42=99999,\"\",RANK(AI42,Top:Bottom,1))","v":""}]
[null,null,null,null,null,null,null,null,null,null,null,null,null,null,null,null,null,null,null,null,null,null,null,null,null,null,null,null,null,null,null,"","","",99999,{"$f":"IF(AI43=99999,\"\",RANK(AI43,Top:Bottom,1))","v":""}]
[null,null,null,null,null,null,null,null,null,null,null,null,null,null,null,null,null,null,null,null,null,null,null,null,null,null,null,null,null,null,null,"","","",99999,{"$f":"IF(AI44=99999,\"\",RANK(AI44,Top:Bottom,1))","v":""}]
[null,null,null,null,null,null,null,null,null,null,null,null,null,null,null,null,null,null,null,null,null,null,null,null,null,null,null,null,null,null,null,"","","",99999,{"$f":"IF(AI45=99999,\"\",RANK(AI45,Top:Bottom,1))","v":""}]
[null,null,null,null,null,null,null,null,null,null,null,null,null,null,null,null,null,null,null,null,null,null,null,null,null,null,null,null,null,null,null,"","","",99999,{"$f":"IF(AI46=99999,\"\",RANK(AI46,Top:Bottom,1))","v":""}]
[null,null,null,null,null,null,null,null,null,null,null,null,null,null,null,null,null,null,null,null,null,null,null,null,null,null,null,null,null,null,null,"","","",99999,{"$f":"IF(AI47=99999,\"\",RANK(AI47,Top:Bottom,1))","v":""}]
[null,null,null,null,null,null,null,null,null,null,null,null,null,null,null,null,null,null,null,null,null,null,null,null,null,null,null,null,null,null,null,"","","",99999,{"$f":"IF(AI48=99999,\"\",RANK(AI48,Top:Bottom,1))","v":""}]
[null,null,null,null,null,null,null,null,null,null,null,null,null,null,null,null,null,null,null,null,null,null,null,null,null,null,null,null,null,null,null,"","","",99999,{"$f":"IF(AI49=99999,\"\",RANK(AI49,Top:Bottom,1))","v":""}]
[null,null,null,null,null,null,null,null,null,null,null,null,null,null,null,null,null,null,null,null,null,null,null,null,null,null,null,null,null,null,null,"","","",99999,{"$f":"IF(AI50=99999,\"\",RANK(AI50,Top:Bottom,1))","v":""}]
[null,null,null,null,null,null,null,null,null,null,null,null,null,null,null,null,null,null,null,null,null,null,null,null,null,null,null,null,null,null,null,"","","",99999,{"$f":"IF(AI51=99999,\"\",RANK(AI51,Top:Bottom,1))","v":""}]
[null,null,null,null,null,null,null,null,null,null,null,null,null,null,null,null,null,null,null,null,null,null,null,null,null,null,null,null,null,null,null,"","","",99999,{"$f":"IF(AI52=99999,\"\",RANK(AI52,Top:Bottom,1))","v":""}]
[null,null,null,null,null,null,null,null,null,null,null,null,null,null,null,null,null,null,null,null,null,null,null,null,null,null,null,null,null,null,null,"","","",99999,{"$f":"IF(AI53=99999,\"\",RANK(AI53,Top:Bottom,1))","v":""}]
[null,null,null,null,null,null,null,null,null,null,null,null,null,null,null,null,null,null,null,null,null,null,null,null,null,null,null,null,null,null,null,"","","",99999,{"$f":"IF(AI54=99999,\"\",RANK(AI54,Top:Bottom,1))","v":""}]
[null,null,null,null,null,null,null,null,null,null,null,null,null,null,null,null,null,null,null,null,null,null,null,null,null,null,null,null,null,null,null,"","","",99999,{"$f":"IF(AI55=99999,\"\",RANK(AI55,Top:Bottom,1))","v":""}]
[null,null,null,null,null,null,null,null,null,null,null,null,null,null,null,null,null,null,null,null,null,null,null,null,null,null,null,null,null,null,null,"","","",99999,{"$f":"IF(AI56=99999,\"\",RANK(AI56,Top:Bottom,1))","v":""}]
[null,null,null,null,null,null,null,null,null,null,null,null,null,null,null,null,null,null,null,null,null,null,null,null,null,null,null,null,null,null,null,"","","",99999,{"$f":"IF(AI57=99999,\"\",RANK(AI57,Top:Bottom,1))","v":""}]
[null,null,null,null,null,null,null,null,null,null,null,null,null,null,null,null,null,null,null,null,null,null,null,null,null,null,null,null,null,null,null,"","","",99999,{"$f":"IF(AI58=99999,\"\",RANK(AI58,Top:Bottom,1))","v":""}]
[null,null,null,null,null,null,null,null,null,null,null,null,null,null,null,null,null,null,null,null,null,null,null,null,null,null,null,null,null,null,null,"","","",99999,{"$f":"IF(AI59=99999,\"\",RANK(AI59,Top:Bottom,1))","v":""}]
[null,null,null,null,null,null,null,null,null,null,null,null,null,null,null,null,null,null,null,null,null,null,null,null,null,null,null,null,null,null,null,"","","",99999,{"$f":"IF(AI60=99999,\"\",RANK(AI60,Top:Bottom,1))","v":""}]
[null,null,null,null,null,null,null,null,null,null,null,null,null,null,null,null,null,null,null,null,null,null,null,null,null,null,null,null,null,null,null,"","","",99999,{"$f":"IF(AI61=99999,\"\",RANK(AI61,Top:Bottom,1))","v":""}]
[null,null,null,null,null,null,null,null,null,null,null,null,null,null,null,null,null,null,null,null,null,null,null,null,null,null,null,null,null,null,null,"","","",99999,{"$f":"IF(AI62=99999,\"\",RANK(AI62,Top:Bottom,1))","v":""}]
[null,null,null,null,null,null,null,null,null,null,null,null,null,null,null,null,null,null,null,null,null,null,null,null,null,null,null,null,null,null,null,"","","",99999,{"$f":"IF(AI63=99999,\"\",RANK(AI63,Top:Bottom,1))","v":""}]
[null,null,null,null,null,null,null,null,null,null,null,null,null,null,null,null,null,null,null,null,null,null,null,null,null,null,null,null,null,null,null,"","","",99999,{"$f":"IF(AI64=99999,\"\",RANK(AI64,Top:Bottom,1))","v":""}]
[null,null,null,null,null,null,null,null,null,null,null,null,null,null,null,null,null,null,null,null,null,null,null,null,null,null,null,null,null,null,null,"","","",99999,{"$f":"IF(AI65=99999,\"\",RANK(AI65,Top:Bottom,1))","v":""}]
[null,null,null,null,null,null,null,null,null,null,null,null,null,null,null,null,null,null,null,null,null,null,null,null,null,null,null,null,null,null,null,"","","",99999,{"$f":"IF(AI66=99999,\"\",RANK(AI66,Top:Bottom,1))","v":""}]
[null,null,null,null,null,null,null,null,null,null,null,null,null,null,null,null,null,null,null,null,null,null,null,null,null,null,null,null,null,null,null,"","","",99999,{"$f":"IF(AI67=99999,\"\",RANK(AI67,Top:Bottom,1))","v":""}]
[null,null,null,null,null,null,null,null,null,null,null,null,null,null,null,null,null,null,null,null,null,null,null,null,null,null,null,null,null,null,null,{"$f":"IF(AD68=\"\",\"\",AE68-AD68)","v":""},{"$f":"IF(AF68=\"\",\"\",ABS(AF68-BogeyTime))","v":""},{"$f":"IF(COUNTIF(B68:AC68,\"e\")>0,\"E\",(IF(AD68=\"\",\"\",SUM(B68:AC68))))","v":""},{"$f":"IF(OR(AD68=\"\",AH68=\"E\"),99999,(IF(AF68<BogeyTime,AG68*86401,AG68*86400)+AH68*100))","v":99999},{"$f":"IF(AI68=99999,\"\",RANK(AI68,Top:Bottom,1))","v":""}]
[null,null,null,null,null,null,null,null,null,null,null,null,null,null,null,null,null,null,null,null,null,null,null,null,null,null,null,null,null,null,null,"","","",99999,{"$f":"IF(AI69=99999,\"\",RANK(AI69,Top:Bottom,1))","v":""}]
[null,null,null,null,null,null,null,null,null,null,null,null,null,null,null,null,null,null,null,null,null,null,null,null,null,null,null,null,null,null,null,"","","",99999,{"$f":"IF(AI70=99999,\"\",RANK(AI70,Top:Bottom,1))","v":""}]
[null,null,null,null,null,null,null,null,null,null,null,null,null,null,null,null,null,null,null,null,null,null,null,null,null,null,null,null,null,null,null,"","","",99999,{"$f":"IF(AI71=99999,\"\",RANK(AI71,Top:Bottom,1))","v":""}]
[null,null,null,null,null,null,null,null,null,null,null,null,null,null,null,null,null,null,null,null,null,null,null,null,null,null,null,null,null,null,null,"","","",99999,{"$f":"IF(AI72=99999,\"\",RANK(AI72,Top:Bottom,1))","v":""}]
[null,null,null,null,null,null,null,null,null,null,null,null,null,null,null,null,null,null,null,null,null,null,null,null,null,null,null,null,null,null,null,"","","",99999,{"$f":"IF(AI73=99999,\"\",RANK(AI73,Top:Bottom,1))","v":""}]
[null,null,null,null,null,null,null,null,null,null,null,null,null,null,null,null,null,null,null,null,null,null,null,null,null,null,null,null,null,null,null,"","","",99999,{"$f":"IF(AI74=99999,\"\",RANK(AI74,Top:Bottom,1))","v":""}]
[null,null,null,null,null,null,null,null,null,null,null,null,null,null,null,null,null,null,null,null,null,null,null,null,null,null,null,null,null,null,null,"","","",99999,{"$f":"IF(AI75=99999,\"\",RANK(AI75,Top:Bottom,1))","v":""}]
[null,null,null,null,null,null,null,null,null,null,null,null,null,null,null,null,null,null,null,null,null,null,null,null,null,null,null,null,null,null,null,"","","",99999,{"$f":"IF(AI76=99999,\"\",RANK(AI76,Top:Bottom,1))","v":""}]
[null,null,null,null,null,null,null,null,null,null,null,null,null,null,null,null,null,null,null,null,null,null,null,null,null,null,null,null,null,null,null,"","","",99999,{"$f":"IF(AI77=99999,\"\",RANK(AI77,Top:Bottom,1))","v":""}]
[null,null,null,null,null,null,null,null,null,null,null,null,null,null,null,null,null,null,null,null,null,null,null,null,null,null,null,null,null,null,null,"","","",99999,{"$f":"IF(AI78=99999,\"\",RANK(AI78,Top:Bottom,1))","v":""}]
[null,null,null,null,null,null,null,null,null,null,null,null,null,null,null,null,null,null,null,null,null,null,null,null,null,null,null,null,null,null,null,"","","",99999,{"$f":"IF(AI79=99999,\"\",RANK(AI79,Top:Bottom,1))","v":""}]
[null,null,null,null,null,null,null,null,null,null,null,null,null,null,null,null,null,null,null,null,null,null,null,null,null,null,null,null,null,null,null,"","","",99999,{"$f":"IF(AI80=99999,\"\",RANK(AI80,Top:Bottom,1))","v":""}]
[null,null,null,null,null,null,null,null,null,null,null,null,null,null,null,null,null,null,null,null,null,null,null,null,null,null,null,null,null,null,null,"","","",99999,{"$f":"IF(AI81=99999,\"\",RANK(AI81,Top:Bottom,1))","v":""}]
[null,null,null,null,null,null,null,null,null,null,null,null,null,null,null,null,null,null,null,null,null,null,null,null,null,null,null,null,null,null,null,"","","",99999,{"$f":"IF(AI82=99999,\"\",RANK(AI82,Top:Bottom,1))","v":""}]
[null,null,null,null,null,null,null,null,null,null,null,null,null,null,null,null,null,null,null,null,null,null,null,null,null,null,null,null,null,null,null,"","","",99999,{"$f":"IF(AI83=99999,\"\",RANK(AI83,Top:Bottom,1))","v":""}]
[null,null,null,null,null,null,null,null,null,null,null,null,null,null,null,null,null,null,null,null,null,null,null,null,null,null,null,null,null,null,null,"","","",99999,{"$f":"IF(AI84=99999,\"\",RANK(AI84,Top:Bottom,1))","v":""}]
[null,null,null,null,null,null,null,null,null,null,null,null,null,null,null,null,null,null,null,null,null,null,null,null,null,null,null,null,null,null,null,"","","",99999,{"$f":"IF(AI85=99999,\"\",RANK(AI85,Top:Bottom,1))","v":""}]
[null,null,null,null,null,null,null,null,null,null,null,null,null,null,null,null,null,null,null,null,null,null,null,null,null,null,null,null,null,null,null,"","","",99999,{"$f":"IF(AI86=99999,\"\",RANK(AI86,Top:Bottom,1))","v":""}]
[null,null,null,null,null,null,null,null,null,null,null,null,null,null,null,null,null,null,null,null,null,null,null,null,null,null,null,null,null,null,null,"","","",99999,{"$f":"IF(AI87=99999,\"\",RANK(AI87,Top:Bottom,1))","v":""}]
[null,null,null,null,null,null,null,null,null,null,null,null,null,null,null,null,null,null,null,null,null,null,null,null,null,null,null,null,null,null,null,"","","",99999,{"$f":"IF(AI88=99999,\"\",RANK(AI88,Top:Bottom,1))","v":""}]
[null,null,null,null,null,null,null,null,null,null,null,null,null,null,null,null,null,null,null,null,null,null,null,null,null,null,null,null,null,null,null,"","","",99999,{"$f":"IF(AI89=99999,\"\",RANK(AI89,Top:Bottom,1))","v":""}]
[null,null,null,null,null,null,null,null,null,null,null,null,null,null,null,null,null,null,null,null,null,null,null,null,null,null,null,null,null,null,null,"","","",99999,{"$f":"IF(AI90=99999,\"\",RANK(AI90,Top:Bottom,1))","v":""}]
[null,null,null,null,null,null,null,null,null,null,null,null,null,null,null,null,null,null,null,null,null,null,null,null,null,null,null,null,null,null,null,"","","",99999,{"$f":"IF(AI91=99999,\"\",RANK(AI91,Top:Bottom,1))","v":""}]
[null,null,null,null,null,null,null,null,null,null,null,null,null,null,null,null,null,null,null,null,null,null,null,null,null,null,null,null,null,null,null,"","","",99999,{"$f":"IF(AI92=99999,\"\",RANK(AI92,Top:Bottom,1))","v":""}]
[null,null,null,null,null,null,null,null,null,null,null,null,null,null,null,null,null,null,null,null,null,null,null,null,null,null,null,null,null,null,null,"","","",99999,{"$f":"IF(AI93=99999,\"\",RANK(AI93,Top:Bottom,1))","v":""}]
[null,null,null,null,null,null,null,null,null,null,null,null,null,null,null,null,null,null,null,null,null,null,null,null,null,null,null,null,null,null,null,"","","",99999,{"$f":"IF(AI94=99999,\"\",RANK(AI94,Top:Bottom,1))","v":""}]
[null,null,null,null,null,null,null,null,null,null,null,null,null,null,null,null,null,null,null,null,null,null,null,null,null,null,null,null,null,null,null,"","","",99999,{"$f":"IF(AI95=99999,\"\",RANK(AI95,Top:Bottom,1))","v":""}]
[null,null,null,null,null,null,null,null,null,null,null,null,null,null,null,null,null,null,null,null,null,null,null,null,null,null,null,null,null,null,null,"","","",99999,{"$f":"IF(AI96=99999,\"\",RANK(AI96,Top:Bottom,1))","v":""}]
[null,null,null,null,null,null,null,null,null,null,null,null,null,null,null,null,null,null,null,null,null,null,null,null,null,null,null,null,null,null,null,"","","",99999,{"$f":"IF(AI97=99999,\"\",RANK(AI97,Top:Bottom,1))","v":""}]
[null,null,null,null,null,null,null,null,null,null,null,null,null,null,null,null,null,null,null,null,null,null,null,null,null,null,null,null,null,null,null,"","","",99999,{"$f":"IF(AI98=99999,\"\",RANK(AI98,Top:Bottom,1))","v":""}]
[null,null,null,null,null,null,null,null,null,null,null,null,null,null,null,null,null,null,null,null,null,null,null,null,null,null,null,null,null,null,null,"","","",99999,{"$f":"IF(AI99=99999,\"\",RANK(AI99,Top:Bottom,1))","v":""}]
[null,null,null,null,null,null,null,null,null,null,null,null,null,null,null,null,null,null,null,null,null,null,null,null,null,null,null,null,null,null,null,{"$f":"IF(AD100=\"\",\"\",AE100-AD100)","v":""},{"$f":"IF(AF100=\"\",\"\",ABS(AF100-BogeyTime))","v":""},"",{"$f":"IF(OR(AD100=\"\",AH100=\"E\"),99999,(IF(AF100<BogeyTime,AG100*86401,AG100*86400)+AH100*100))","v":99999},{"$f":"IF(AI100=99999,\"\",RANK(AI100,Top:Bottom,1))","v":""}]
[null,null,null,null,null,null,null,null,null,null,null,null,null,null,null,null,null,null,null,null,null,null,null,null,null,null,null,null,null,null,null,{"$f":"IF(AD101=\"\",\"\",AE101-AD101)","v":""},{"$f":"IF(AF101=\"\",\"\",ABS(AF101-BogeyTime))","v":""},"",{"$f":"IF(OR(AD101=\"\",AH101=\"E\"),99999,(IF(AF101<BogeyTime,AG101*86401,AG101*86400)+AH101*100))","v":99999},{"$f":"IF(AI101=99999,\"\",RANK(AI101,Top:Bottom,1))","v":""}]
[null,null,null,null,null,null,null,null,null,null,null,null,null,null,null,null,null,null,null,null,null,null,null,null,null,null,null,null,null,null,null,{"$f":"IF(AD102=\"\",\"\",AE102-AD102)","v":""},{"$f":"IF(AF102=\"\",\"\",ABS(AF102-BogeyTime))","v":""},"",{"$f":"IF(OR(AD102=\"\",AH102=\"E\"),99999,(IF(AF102<BogeyTime,AG102*86401,AG102*86400)+AH102*100))","v":99999},{"$f":"IF(AI102=99999,\"\",RANK(AI102,Top:Bottom,1))","v":""}]
["PJLH 15/03"]

{"sheet":"Class 4","index":4,"n_rows":103,"n_cols":33,"rows_kept":103,"cut":false,"hidden":false,"merged":[[1,20,2,20],[1,21,2,21],[1,22,2,22],[1,23,2,23],[1,31,2,31],[1,32,2,32],[1,24,2,24],[1,25,2,25],[1,26,1,28],[1,30,2,30],[1,14,2,14],[1,15,2,15],[1,16,2,16],[1,17,2,17],[1,18,2,18],[1,19,2,19],[1,8,2,8],[1,9,2,9],[1,10,2,10],[1,11,2,11],[1,12,2,12],[1,13,2,13],[0,23,0,25],[0,29,0,30],[1,0,2,0],[1,1,2,1],[1,2,2,2],[1,3,2,3],[1,4,2,4],[1,5,2,5],[1,6,2,6],[1,7,2,7],[0,0,0,9],[0,10,0,11],[0,12,0,14],[0,15,0,16],[0,18,0,20],[0,21,0,22]]}
["Hunter Trials Scoresheet",null,null,null,null,null,null,null,null,null,"Date:",null,"26/07/15",null,null,"Class:",null,"4","Height\nCm:",null,null,90,null,"Speed\nMpm",null,null,{"$f":"(IF(Height=80,435,IF(Height=90,450,IF(Height=100,475,250))))","v":450},"Timed \nDist (mtr)",600,"T/S Optimum:",null,null,{"$f":"TIME(INT((Distance*60/Speed)/3600),INT(MOD((Distance*60/Speed),3600)/60),MOD(MOD((Distance*60/Speed),3600),60))","v":"00:01:20"}]
["No.",1,2,3,4,5,6,7,8,9,10,11,12,13,14,15,16,17,18,19,20,null,null,null,null,null,"Timed Section",null,null,null,"Jump Total","Total Penalties","Position"]
[null,null,null,null,null,null,null,null,null,null,null,null,null,null,null,null,null,null,null,null,null,null,null,null,null,null,"Start","End","Elapsed","Variance"]
[456,0,0,0,"e",0,0,"e",null,null,null,null,null,null,0,0,0,0,0,0,0,null,null,null,null,null,0,"00:01:58",{"$f":"IF(AA4=\"\",\"\",AB4-AA4)","v":"00:01:58"},{"$f":"IF(AC4=\"\",\"\",ABS(AC4-BogeyTime))","v":4.3981481481481508E-4},{"$f":"IF(COUNTIF(B4:Z4,\"e\")>0,\"E\",(IF(AA4=\"\",\"\",SUM(B4:Z4))))","v":"E"},{"$f":"IF(OR(AA4=\"\",AE4=\"E\"),99999,(IF(AC4<BogeyTime,AD4*86401,AD4*86400)+AE4*100))","v":99999},{"$f":"IF(AF4=99999,\"\",RANK(AF4,Top:Bottom,1))","v":""}]
[455,0,0,0,20,20,"e",0,null,null,null,null,null,null,0,0,0,0,0,0,0,null,null,null,null,null,0,"00:01:43","00:01:43",2.6620370370370372E-4,"E",99999,{"$f":"IF(AF5=99999,\"\",RANK(AF5,Top:Bottom,1))","v":""}]
[444,0,0,60,"e",0,0,0,null,null,null,null,null,null,0,0,0,0,0,0,0,null,null,null,null,null,0,"00:02:10","00:02:10",5.7870370370370356E-4,"E",99999,{"$f":"IF(AF6=99999,\"\",RANK(AF6,Top:Bottom,1))","v":""}]
[457,0,0,0,"e",0,0,"e",null,null,null,null,null,null,0,0,0,0,0,0,0,null,null,null,null,null,"00:00:00",null,"00:00:00",9.2592592592592585E-4,"E",99999,{"$f":"IF(AF7=99999,\"\",RANK(AF7,Top:Bottom,1))","v":""}]
[454,0,0,0,75,0,0,0,null,null,null,null,null,null,0,0,0,0,0,0,0,null,null,null,null,null,"00:00:00","00:01:30","00:01:30",1.157407407407408E-4,75,7510,{"$f":"IF(AF8=99999,\"\",RANK(AF8,Top:Bottom,1))","v":5}]
[448,0,0,0,15,0,0,0,null,null,null,null,null,null,0,0,0,0,0,0,0,null,null,null,null,null,"00:00:00","00:01:50","00:01:50",3.472222222222224E-4,15,1530,{"$f":"IF(AF9=99999,\"\",RANK(AF9,Top:Bottom,1))","v":3}]
[447,0,0,0,"e",0,60,"e",null,null,null,null,null,null,0,0,"e",0,0,0,0,null,null,null,null,null,"00:00:00",null,"00:00:00",9.2592592592592585E-4,"E",99999,{"$f":"IF(AF10=99999,\"\",RANK(AF10,Top:Bottom,1))","v":""}]
[445,0,0,0,0,0,0,0,null,null,null,null,null,null,0,0,0,0,0,0,0,null,null,null,null,null,"00:00:00","00:01:24","00:01:24",4.6296296296296233E-5,0,3.9999999999999947,{"$f":"IF(AF11=99999,\"\",RANK(AF11,Top:Bottom,1))","v":1}]
[453,0,0,0,0,0,0,0,null,null,null,null,null,null,0,0,0,0,0,0,0,null,null,null,null,null,"00:00:00","00:01:28","00:01:28",9.2592592592592791E-5,0,8.0000000000000178,{"$f":"IF(AF12=99999,\"\",RANK(AF12,Top:Bottom,1))","v":2}]
[450,0,0,20,0,0,0,0,null,null,null,null,null,null,0,0,0,0,0,0,0,null,null,null,null,null,"00:00:00","00:01:44","00:01:44",2.7777777777777794E-4,20,2024,{"$f":"IF(AF13=99999,\"\",RANK(AF13,Top:Bottom,1))","v":4}]
[]
[]
[]
[]
[]
[]
[]
[]
[]
[]
[]
[]
[]
[]
[]
[]
[]
[]
[]
[]
[]
[]
[]
[]
[]
[]
[]
[]
[]
[]
[]
[]
[]
[]
[]
[]
[]
[]
[]
[]
[]
[]
[]
[]
[]
[]
[]
[null,null,null,null,null,null,null,null,null,null,null,null,null,null,null,null,null,null,null,null,null,null,null,null,null,null,null,null,{"$f":"IF(AA61=\"\",\"\",AB61-AA61)","v":""},{"$f":"IF(AC61=\"\",\"\",ABS(AC61-BogeyTime))","v":""},{"$f":"IF(COUNTIF(B61:Z61,\"e\")>0,\"E\",(IF(AA61=\"\",\"\",SUM(B61:Z61))))","v":""},{"$f":"IF(OR(AA61=\"\",AE61=\"E\"),99999,(IF(AC61<BogeyTime,AD61*86401,AD61*86400)+AE61*100))","v":99999},{"$f":"IF(AF61=99999,\"\",RANK(AF61,Top:Bottom,1))","v":""}]
[null,null,null,null,null,null,null,null,null,null,null,null,null,null,null,null,null,null,null,null,null,null,null,null,null,null,null,null,"","","",99999,{"$f":"IF(AF62=99999,\"\",RANK(AF62,Top:Bottom,1))","v":""}]
[null,null,null,null,null,null,null,null,null,null,null,null,null,null,null,null,null,null,null,null,null,null,null,null,null,null,null,null,"","","",99999,{"$f":"IF(AF63=99999,\"\",RANK(AF63,Top:Bottom,1))","v":""}]
[null,null,null,null,null,null,null,null,null,null,null,null,null,null,null,null,null,null,null,null,null,null,null,null,null,null,null,null,"","","",99999,{"$f":"IF(AF64=99999,\"\",RANK(AF64,Top:Bottom,1))","v":""}]
[null,null,null,null,null,null,null,null,null,null,null,null,null,null,null,null,null,null,null,null,null,null,null,null,null,null,null,null,"","","",99999,{"$f":"IF(AF65=99999,\"\",RANK(AF65,Top:Bottom,1))","v":""}]
[null,null,null,null,null,null,null,null,null,null,null,null,null,null,null,null,null,null,null,null,null,null,null,null,null,null,null,null,"","","",99999,{"$f":"IF(AF66=99999,\"\",RANK(AF66,Top:Bottom,1))","v":""}]
[null,null,null,null,null,null,null,null,null,null,null,null,null,null,null,null,null,null,null,null,null,null,null,null,null,null,null,null,"","","",99999,{"$f":"IF(AF67=99999,\"\",RANK(AF67,Top:Bottom,1))","v":""}]
[null,null,null,null,null,null,null,null,null,null,null,null,null,null,null,null,null,null,null,null,null,null,null,null,null,null,null,null,{"$f":"IF(AA68=\"\",\"\",AB68-AA68)","v":""},{"$f":"IF(AC68=\"\",\"\",ABS(AC68-BogeyTime))","v":""},{"$f":"IF(COUNTIF(B68:Z68,\"e\")>0,\"E\",(IF(AA68=\"\",\"\",SUM(B68:Z68))))","v":""},{"$f":"IF(OR(AA68=\"\",AE68=\"E\"),99999,(IF(AC68<BogeyTime,AD68*86401,AD68*86400)+AE68*100))","v":99999},{"$f":"IF(AF68=99999,\"\",RANK(AF68,Top:Bottom,1))","v":""}]
[null,null,null,null,null,null,null,null,null,null,null,null,null,null,null,null,null,null,null,null,null,null,null,null,null,null,null,null,"","","",99999,{"$f":"IF(AF69=99999,\"\",RANK(AF69,Top:Bottom,1))","v":""}]
[null,null,null,null,null,null,null,null,null,null,null,null,null,null,null,null,null,null,null,null,null,null,null,null,null,null,null,null,"","","",99999,{"$f":"IF(AF70=99999,\"\",RANK(AF70,Top:Bottom,1))","v":""}]
[null,null,null,null,null,null,null,null,null,null,null,null,null,null,null,null,null,null,null,null,null,null,null,null,null,null,null,null,"","","",99999,{"$f":"IF(AF71=99999,\"\",RANK(AF71,Top:Bottom,1))","v":""}]
[null,null,null,null,null,null,null,null,null,null,null,null,null,null,null,null,null,null,null,null,null,null,null,null,null,null,null,null,"","","",99999,{"$f":"IF(AF72=99999,\"\",RANK(AF72,Top:Bottom,1))","v":""}]
[null,null,null,null,null,null,null,null,null,null,null,null,null,null,null,null,null,null,null,null,null,null,null,null,null,null,null,null,"","","",99999,{"$f":"IF(AF73=99999,\"\",RANK(AF73,Top:Bottom,1))","v":""}]
[null,null,null,null,null,null,null,null,null,null,null,null,null,null,null,null,null,null,null,null,null,null,null,null,null,null,null,null,"","","",99999,{"$f":"IF(AF74=99999,\"\",RANK(AF74,Top:Bottom,1))","v":""}]
[null,null,null,null,null,null,null,null,null,null,null,null,null,null,null,null,null,null,null,null,null,null,null,null,null,null,null,null,"","","",99999,{"$f":"IF(AF75=99999,\"\",RANK(AF75,Top:Bottom,1))","v":""}]
[null,null,null,null,null,null,null,null,null,null,null,null,null,null,null,null,null,null,null,null,null,null,null,null,null,null,null,null,"","","",99999,{"$f":"IF(AF76=99999,\"\",RANK(AF76,Top:Bottom,1))","v":""}]
[null,null,null,null,null,null,null,null,null,null,null,null,null,null,null,null,null,null,null,null,null,null,null,null,null,null,null,null,"","","",99999,{"$f":"IF(AF77=99999,\"\",RANK(AF77,Top:Bottom,1))","v":""}]
[null,null,null,null,null,null,null,null,null,null,null,null,null,null,null,null,null,null,null,null,null,null,null,null,null,null,null,null,"","","",99999,{"$f":"IF(AF78=99999,\"\",RANK(AF78,Top:Bottom,1))","v":""}]
[null,null,null,null,null,null,null,null,null,null,null,null,null,null,null,null,null,null,null,null,null,null,null,null,null,null,null,null,"","","",99999,{"$f":"IF(AF79=99999,\"\",RANK(AF79,Top:Bottom,1))","v":""}]
[null,null,null,null,null,null,null,null,null,null,null,null,null,null,null,null,null,null,null,null,null,null,null,null,null,null,null,null,"","","",99999,{"$f":"IF(AF80=99999,\"\",RANK(AF80,Top:Bottom,1))","v":""}]
[null,null,null,null,null,null,null,null,null,null,null,null,null,null,null,null,null,null,null,null,null,null,null,null,null,null,null,null,"","","",99999,{"$f":"IF(AF81=99999,\"\",RANK(AF81,Top:Bottom,1))","v":""}]
[null,null,null,null,null,null,null,null,null,null,null,null,null,null,null,null,null,null,null,null,null,null,null,null,null,null,null,null,"","","",99999,{"$f":"IF(AF82=99999,\"\",RANK(AF82,Top:Bottom,1))","v":""}]
[null,null,null,null,null,null,null,null,null,null,null,null,null,null,null,null,null,null,null,null,null,null,null,null,null,null,null,null,"","","",99999,{"$f":"IF(AF83=99999,\"\",RANK(AF83,Top:Bottom,1))","v":""}]
[null,null,null,null,null,null,null,null,null,null,null,null,null,null,null,null,null,null,null,null,null,null,null,null,null,null,null,null,"","","",99999,{"$f":"IF(AF84=99999,\"\",RANK(AF84,Top:Bottom,1))","v":""}]
[null,null,null,null,null,null,null,null,null,null,null,null,null,null,null,null,null,null,null,null,null,null,null,null,null,null,null,null,"","","",99999,{"$f":"IF(AF85=99999,\"\",RANK(AF85,Top:Bottom,1))","v":""}]
[null,null,null,null,null,null,null,null,null,null,null,null,null,null,null,null,null,null,null,null,null,null,null,null,null,null,null,null,"","","",99999,{"$f":"IF(AF86=99999,\"\",RANK(AF86,Top:Bottom,1))","v":""}]
[null,null,null,null,null,null,null,null,null,null,null,null,null,null,null,null,null,null,null,null,null,null,null,null,null,null,null,null,"","","",99999,{"$f":"IF(AF87=99999,\"\",RANK(AF87,Top:Bottom,1))","v":""}]
[null,null,null,null,null,null,null,null,null,null,null,null,null,null,null,null,null,null,null,null,null,null,null,null,null,null,null,null,"","","",99999,{"$f":"IF(AF88=99999,\"\",RANK(AF88,Top:Bottom,1))","v":""}]
[null,null,null,null,null,null,null,null,null,null,null,null,null,null,null,null,null,null,null,null,null,null,null,null,null,null,null,null,"","","",99999,{"$f":"IF(AF89=99999,\"\",RANK(AF89,Top:Bottom,1))","v":""}]
[null,null,null,null,null,null,null,null,null,null,null,null,null,null,null,null,null,null,null,null,null,null,null,null,null,null,null,null,"","","",99999,{"$f":"IF(AF90=99999,\"\",RANK(AF90,Top:Bottom,1))","v":""}]
[null,null,null,null,null,null,null,null,null,null,null,null,null,null,null,null,null,null,null,null,null,null,null,null,null,null,null,null,"","","",99999,{"$f":"IF(AF91=99999,\"\",RANK(AF91,Top:Bottom,1))","v":""}]
[null,null,null,null,null,null,null,null,null,null,null,null,null,null,null,null,null,null,null,null,null,null,null,null,null,null,null,null,"","","",99999,{"$f":"IF(AF92=99999,\"\",RANK(AF92,Top:Bottom,1))","v":""}]
[null,null,null,null,null,null,null,null,null,null,null,null,null,null,null,null,null,null,null,null,null,null,null,null,null,null,null,null,"","","",99999,{"$f":"IF(AF93=99999,\"\",RANK(AF93,Top:Bottom,1))","v":""}]
[null,null,null,null,null,null,null,null,null,null,null,null,null,null,null,null,null,null,null,null,null,null,null,null,null,null,null,null,"","","",99999,{"$f":"IF(AF94=99999,\"\",RANK(AF94,Top:Bottom,1))","v":""}]
[null,null,null,null,null,null,null,null,null,null,null,null,null,null,null,null,null,null,null,null,null,null,null,null,null,null,null,null,"","","",99999,{"$f":"IF(AF95=99999,\"\",RANK(AF95,Top:Bottom,1))","v":""}]
[null,null,null,null,null,null,null,null,null,null,null,null,null,null,null,null,null,null,null,null,null,null,null,null,null,null,null,null,"","","",99999,{"$f":"IF(AF96=99999,\"\",RANK(AF96,Top:Bottom,1))","v":""}]
[null,null,null,null,null,null,null,null,null,null,null,null,null,null,null,null,null,null,null,null,null,null,null,null,null,null,null,null,"","","",99999,{"$f":"IF(AF97=99999,\"\",RANK(AF97,Top:Bottom,1))","v":""}]
[null,null,null,null,null,null,null,null,null,null,null,null,null,null,null,null,null,null,null,null,null,null,null,null,null,null,null,null,"","","",99999,{"$f":"IF(AF98=99999,\"\",RANK(AF98,Top:Bottom,1))","v":""}]
[null,null,null,null,null,null,null,null,null,null,null,null,null,null,null,null,null,null,null,null,null,null,null,null,null,null,null,null,"","","",99999,{"$f":"IF(AF99=99999,\"\",RANK(AF99,Top:Bottom,1))","v":""}]
[null,null,null,null,null,null,null,null,null,null,null,null,null,null,null,null,null,null,null,null,null,null,null,null,null,null,null,null,{"$f":"IF(AA100=\"\",\"\",AB100-AA100)","v":""},{"$f":"IF(AC100=\"\",\"\",ABS(AC100-BogeyTime))","v":""},"",{"$f":"IF(OR(AA100=\"\",AE100=\"E\"),99999,(IF(AC100<BogeyTime,AD100*86401,AD100*86400)+AE100*100))","v":99999},{"$f":"IF(AF100=99999,\"\",RANK(AF100,Top:Bottom,1))","v":""}]
[null,null,null,null,null,null,null,null,null,null,null,null,null,null,null,null,null,null,null,null,null,null,null,null,null,null,null,null,{"$f":"IF(AA101=\"\",\"\",AB101-AA101)","v":""},{"$f":"IF(AC101=\"\",\"\",ABS(AC101-BogeyTime))","v":""},"",{"$f":"IF(OR(AA101=\"\",AE101=\"E\"),99999,(IF(AC101<BogeyTime,AD101*86401,AD101*86400)+AE101*100))","v":99999},{"$f":"IF(AF101=99999,\"\",RANK(AF101,Top:Bottom,1))","v":""}]
[null,null,null,null,null,null,null,null,null,null,null,null,null,null,null,null,null,null,null,null,null,null,null,null,null,null,null,null,{"$f":"IF(AA102=\"\",\"\",AB102-AA102)","v":""},{"$f":"IF(AC102=\"\",\"\",ABS(AC102-BogeyTime))","v":""},"",{"$f":"IF(OR(AA102=\"\",AE102=\"E\"),99999,(IF(AC102<BogeyTime,AD102*86401,AD102*86400)+AE102*100))","v":99999},{"$f":"IF(AF102=99999,\"\",RANK(AF102,Top:Bottom,1))","v":""}]
["PJLH 15/03"]

{"sheet":"Class 5","index":5,"n_rows":103,"n_cols":33,"rows_kept":103,"cut":false,"hidden":false,"merged":[[1,20,2,20],[1,21,2,21],[1,22,2,22],[1,23,2,23],[1,31,2,31],[1,32,2,32],[1,24,2,24],[1,25,2,25],[1,26,1,28],[1,30,2,30],[1,14,2,14],[1,15,2,15],[1,16,2,16],[1,17,2,17],[1,18,2,18],[1,19,2,19],[1,8,2,8],[1,9,2,9],[1,10,2,10],[1,11,2,11],[1,12,2,12],[1,13,2,13],[0,23,0,25],[0,29,0,30],[1,0,2,0],[1,1,2,1],[1,2,2,2],[1,3,2,3],[1,4,2,4],[1,5,2,5],[1,6,2,6],[1,7,2,7],[0,0,0,9],[0,10,0,11],[0,12,0,14],[0,15,0,16],[0,18,0,20],[0,21,0,22]]}
["Hunter Trials Scoresheet",null,null,null,null,null,null,null,null,null,"Date:",null,"26/07/15",null,null,"Class:",null,"5","Height\nCm:",null,null,90,null,"Speed\nMpm",null,null,{"$f":"(IF(Height=80,435,IF(Height=90,450,IF(Height=100,475,250))))","v":450},"Timed \nDist (mtr)",600,"T/S Optimum:",null,null,{"$f":"TIME(INT((Distance*60/Speed)/3600),INT(MOD((Distance*60/Speed),3600)/60),MOD(MOD((Distance*60/Speed),3600),60))","v":"00:01:20"}]
["No.",1,2,3,4,5,6,7,8,9,10,11,12,13,14,15,16,17,null,"Pairs F3","Pairs F16",null,null,null,null,null,"Timed Section",null,null,null,"Jump Total","Total Penalties","Position"]
[null,null,null,null,null,null,null,null,null,null,null,null,null,null,null,null,null,null,null,null,null,null,null,null,null,null,"Start","End","Elapsed","Variance"]
[null,null,null,null,null,null,null,null,null,null,null,null,null,null,null,null,null,null,null,null,null,null,null,null,null,null,0,null,{"$f":"IF(AA4=\"\",\"\",AB4-AA4)","v":"00:00:00"},{"$f":"IF(AC4=\"\",\"\",ABS(AC4-BogeyTime))","v":9.2592592592592585E-4},{"$f":"IF(COUNTIF(B4:Z4,\"e\")>0,\"E\",(IF(AA4=\"\",\"\",SUM(B4:Z4))))","v":0},{"$f":"IF(OR(AA4=\"\",AE4=\"E\"),99999,(IF(AC4<BogeyTime,AD4*86401,AD4*86400)+AE4*100))","v":80.000925925925927},{"$f":"IF(AF4=99999,\"\",RANK(AF4,Top:Bottom,1))","v":1}]
[null,null,null,null,null,null,null,null,null,null,null,null,null,null,null,null,null,null,null,null,null,null,null,null,null,null,null,null,"","","",99999,{"$f":"IF(AF5=99999,\"\",RANK(AF5,Top:Bottom,1))","v":""}]
[null,null,null,null,null,null,null,null,null,null,null,null,null,null,null,null,null,null,null,null,null,null,null,null,null,null,null,null,"","","",99999,{"$f":"IF(AF6=99999,\"\",RANK(AF6,Top:Bottom,1))","v":""}]
[null,null,null,null,null,null,null,null,null,null,null,null,null,null,null,null,null,null,null,null,null,null,null,null,null,null,null,null,"","","",99999,{"$f":"IF(AF7=99999,\"\",RANK(AF7,Top:Bottom,1))","v":""}]
[null,null,null,null,null,null,null,null,null,null,null,null,null,null,null,null,null,null,null,null,null,null,null,null,null,null,null,null,"","","",99999,{"$f":"IF(AF8=99999,\"\",RANK(AF8,Top:Bottom,1))","v":""}]
[null,null,null,null,null,null,null,null,null,null,null,null,null,null,null,null,null,null,null,null,null,null,null,null,null,null,null,null,"","","",99999,{"$f":"IF(AF9=99999,\"\",RANK(AF9,Top:Bottom,1))","v":""}]
[null,null,null,null,null,null,null,null,null,null,null,null,null,null,null,null,null,null,null,null,null,null,null,null,null,null,null,null,"","","",99999,{"$f":"IF(AF10=99999,\"\",RANK(AF10,Top:Bottom,1))","v":""}]
[null,null,null,null,null,null,null,null,null,null,null,null,null,null,null,null,null,null,null,null,null,null,null,null,null,null,null,null,"","","",99999,{"$f":"IF(AF11=99999,\"\",RANK(AF11,Top:Bottom,1))","v":""}]
[null,null,null,null,null,null,null,null,null,null,null,null,null,null,null,null,null,null,null,null,null,null,null,null,null,null,null,null,"","","",99999,{"$f":"IF(AF12=99999,\"\",RANK(AF12,Top:Bottom,1))","v":""}]
[null,null,null,null,null,null,null,null,null,null,null,null,null,null,null,null,null,null,null,null,null,null,null,null,null,null,null,null,"","","",99999,{"$f":"IF(AF13=99999,\"\",RANK(AF13,Top:Bottom,1))","v":""}]
[null,null,null,null,null,null,null,null,null,null,null,null,null,null,null,null,null,null,null,null,null,null,null,null,null,null,null,null,"","","",99999,{"$f":"IF(AF14=99999,\"\",RANK(AF14,Top:Bottom,1))","v":""}]
[null,null,null,null,null,null,null,null,null,null,null,null,null,null,null,null,null,null,null,null,null,null,null,null,null,null,null,null,"","","",99999,{"$f":"IF(AF15=99999,\"\",RANK(AF15,Top:Bottom,1))","v":""}]
[null,null,null,null,null,null,null,null,null,null,null,null,null,null,null,null,null,null,null,null,null,null,null,null,null,null,null,null,"","","",99999,{"$f":"IF(AF16=99999,\"\",RANK(AF16,Top:Bottom,1))","v":""}]
[null,null,null,null,null,null,null,null,null,null,null,null,null,null,null,null,null,null,null,null,null,null,null,null,null,null,null,null,"","","",99999,{"$f":"IF(AF17=99999,\"\",RANK(AF17,Top:Bottom,1))","v":""}]
[null,null,null,null,null,null,null,null,null,null,null,null,null,null,null,null,null,null,null,null,null,null,null,null,null,null,null,null,"","","",99999,{"$f":"IF(AF18=99999,\"\",RANK(AF18,Top:Bottom,1))","v":""}]
[null,null,null,null,null,null,null,null,null,null,null,null,null,null,null,null,null,null,null,null,null,null,null,null,null,null,null,null,"","","",99999,{"$f":"IF(AF19=99999,\"\",RANK(AF19,Top:Bottom,1))","v":""}]
[null,null,null,null,null,null,null,null,null,null,null,null,null,null,null,null,null,null,null,null,null,null,null,null,null,null,null,null,"","","",99999,{"$f":"IF(AF20=99999,\"\",RANK(AF20,Top:Bottom,1))","v":""}]
[null,null,null,null,null,null,null,null,null,null,null,null,null,null,null,null,null,null,null,null,null,null,null,null,null,null,null,null,"","","",99999,{"$f":"IF(AF21=99999,\"\",RANK(AF21,Top:Bottom,1))","v":""}]
[null,null,null,null,null,null,null,null,null,null,null,null,null,null,null,null,null,null,null,null,null,null,null,null,null,null,null,null,"","","",99999,{"$f":"IF(AF22=99999,\"\",RANK(AF22,Top:Bottom,1))","v":""}]
[null,null,null,null,null,null,null,null,null,null,null,null,null,null,null,null,null,null,null,null,null,null,null,null,null,null,null,null,"","","",99999,{"$f":"IF(AF23=99999,\"\",RANK(AF23,Top:Bottom,1))","v":""}]
[null,null,null,null,null,null,null,null,null,null,null,null,null,null,null,null,null,null,null,null,null,null,null,null,null,null,null,null,"","","",99999,{"$f":"IF(AF24=99999,\"\",RANK(AF24,Top:Bottom,1))","v":""}]
[null,null,null,null,null,null,null,null,null,null,null,null,null,null,null,null,null,null,null,null,null,null,null,null,null,null,null,null,"","","",99999,{"$f":"IF(AF25=99999,\"\",RANK(AF25,Top:Bottom,1))","v":""}]
[null,null,null,null,null,null,null,null,null,null,null,null,null,null,null,null,null,null,null,null,null,null,null,null,null,null,null,null,"","","",99999,{"$f":"IF(AF26=99999,\"\",RANK(AF26,Top:Bottom,1))","v":""}]
[null,null,null,null,null,null,null,null,null,null,null,null,null,null,null,null,null,null,null,null,null,null,null,null,null,null,null,null,"","","",99999,{"$f":"IF(AF27=99999,\"\",RANK(AF27,Top:Bottom,1))","v":""}]
[null,null,null,null,null,null,null,null,null,null,null,null,null,null,null,null,null,null,null,null,null,null,null,null,null,null,null,null,"","","",99999,{"$f":"IF(AF28=99999,\"\",RANK(AF28,Top:Bottom,1))","v":""}]
[null,null,null,null,null,null,null,null,null,null,null,null,null,null,null,null,null,null,null,null,null,null,null,null,null,null,null,null,"","","",99999,{"$f":"IF(AF29=99999,\"\",RANK(AF29,Top:Bottom,1))","v":""}]
[null,null,null,null,null,null,null,null,null,null,null,null,null,null,null,null,null,null,null,null,null,null,null,null,null,null,null,null,"","","",99999,{"$f":"IF(AF30=99999,\"\",RANK(AF30,Top:Bottom,1))","v":""}]
[null,null,null,null,null,null,null,null,null,null,null,null,null,null,null,null,null,null,null,null,null,null,null,null,null,null,null,null,"","","",99999,{"$f":"IF(AF31=99999,\"\",RANK(AF31,Top:Bottom,1))","v":""}]
[null,null,null,null,null,null,null,null,null,null,null,null,null,null,null,null,null,null,null,null,null,null,null,null,null,null,null,null,"","","",99999,{"$f":"IF(AF32=99999,\"\",RANK(AF32,Top:Bottom,1))","v":""}]
[null,null,null,null,null,null,null,null,null,null,null,null,null,null,null,null,null,null,null,null,null,null,null,null,null,null,null,null,"","","",99999,{"$f":"IF(AF33=99999,\"\",RANK(AF33,Top:Bottom,1))","v":""}]
[null,null,null,null,null,null,null,null,null,null,null,null,null,null,null,null,null,null,null,null,null,null,null,null,null,null,null,null,"","","",99999,{"$f":"IF(AF34=99999,\"\",RANK(AF34,Top:Bottom,1))","v":""}]
[null,null,null,null,null,null,null,null,null,null,null,null,null,null,null,null,null,null,null,null,null,null,null,null,null,null,null,null,"","","",99999,{"$f":"IF(AF35=99999,\"\",RANK(AF35,Top:Bottom,1))","v":""}]
[null,null,null,null,null,null,null,null,null,null,null,null,null,null,null,null,null,null,null,null,null,null,null,null,null,null,null,null,{"$f":"IF(AA36=\"\",\"\",AB36-AA36)","v":""},{"$f":"IF(AC36=\"\",\"\",ABS(AC36-BogeyTime))","v":""},{"$f":"IF(COUNTIF(B36:Z36,\"e\")>0,\"E\",(IF(AA36=\"\",\"\",SUM(B36:Z36))))","v":""},{"$f":"IF(OR(AA36=\"\",AE36=\"E\"),99999,(IF(AC36<BogeyTime,AD36*86401,AD36*86400)+AE36*100))","v":99999},{"$f":"IF(AF36=99999,\"\",RANK(AF36,Top:Bottom,1))","v":""}]
[null,null,null,null,null,null,null,null,null,null,null,null,null,null,null,null,null,null,null,null,null,null,null,null,null,null,null,null,"","","",99999,{"$f":"IF(AF37=99999,\"\",RANK(AF37,Top:Bottom,1))","v":""}]
[null,null,null,null,null,null,null,null,null,null,null,null,null,null,null,null,null,null,null,null,null,null,null,null,null,null,null,null,"","","",99999,{"$f":"IF(AF38=99999,\"\",RANK(AF38,Top:Bottom,1))","v":""}]
[null,null,null,null,null,null,null,null,null,null,null,null,null,null,null,null,null,null,null,null,null,null,null,null,null,null,null,null,"","","",99999,{"$f":"IF(AF39=99999,\"\",RANK(AF39,Top:Bottom,1))","v":""}]
[null,null,null,null,null,null,null,null,null,null,null,null,null,null,null,null,null,null,null,null,null,null,null,null,null,null,null,null,"","","",99999,{"$f":"IF(AF40=99999,\"\",RANK(AF40,Top:Bottom,1))","v":""}]
[null,null,null,null,null,null,null,null,null,null,null,null,null,null,null,null,null,null,null,null,null,null,null,null,null,null,null,null,"","","",99999,{"$f":"IF(AF41=99999,\"\",RANK(AF41,Top:Bottom,1))","v":""}]
[null,null,null,null,null,null,null,null,null,null,null,null,null,null,null,null,null,null,null,null,null,null,null,null,null,null,null,null,"","","",99999,{"$f":"IF(AF42=99999,\"\",RANK(AF42,Top:Bottom,1))","v":""}]
[null,null,null,null,null,null,null,null,null,null,null,null,null,null,null,null,null,null,null,null,null,null,null,null,null,null,null,null,"","","",99999,{"$f":"IF(AF43=99999,\"\",RANK(AF43,Top:Bottom,1))","v":""}]
[null,null,null,null,null,null,null,null,null,null,null,null,null,null,null,null,null,null,null,null,null,null,null,null,null,null,null,null,"","","",99999,{"$f":"IF(AF44=99999,\"\",RANK(AF44,Top:Bottom,1))","v":""}]
[null,null,null,null,null,null,null,null,null,null,null,null,null,null,null,null,null,null,null,null,null,null,null,null,null,null,null,null,"","","",99999,{"$f":"IF(AF45=99999,\"\",RANK(AF45,Top:Bottom,1))","v":""}]
[null,null,null,null,null,null,null,null,null,null,null,null,null,null,null,null,null,null,null,null,null,null,null,null,null,null,null,null,"","","",99999,{"$f":"IF(AF46=99999,\"\",RANK(AF46,Top:Bottom,1))","v":""}]
[null,null,null,null,null,null,null,null,null,null,null,null,null,null,null,null,null,null,null,null,null,null,null,null,null,null,null,null,"","","",99999,{"$f":"IF(AF47=99999,\"\",RANK(AF47,Top:Bottom,1))","v":""}]
[null,null,null,null,null,null,null,null,null,null,null,null,null,null,null,null,null,null,null,null,null,null,null,null,null,null,null,null,"","","",99999,{"$f":"IF(AF48=99999,\"\",RANK(AF48,Top:Bottom,1))","v":""}]
[null,null,null,null,null,null,null,null,null,null,null,null,null,null,null,null,null,null,null,null,null,null,null,null,null,null,null,null,"","","",99999,{"$f":"IF(AF49=99999,\"\",RANK(AF49,Top:Bottom,1))","v":""}]
[null,null,null,null,null,null,null,null,null,null,null,null,null,null,null,null,null,null,null,null,null,null,null,null,null,null,null,null,"","","",99999,{"$f":"IF(AF50=99999,\"\",RANK(AF50,Top:Bottom,1))","v":""}]
[null,null,null,null,null,null,null,null,null,null,null,null,null,null,null,null,null,null,null,null,null,null,null,null,null,null,null,null,"","","",99999,{"$f":"IF(AF51=99999,\"\",RANK(AF51,Top:Bottom,1))","v":""}]
[null,null,null,null,null,null,null,null,null,null,null,null,null,null,null,null,null,null,null,null,null,null,null,null,null,null,null,null,"","","",99999,{"$f":"IF(AF52=99999,\"\",RANK(AF52,Top:Bottom,1))","v":""}]
[null,null,null,null,null,null,null,null,null,null,null,null,null,null,null,null,null,null,null,null,null,null,null,null,null,null,null,null,"","","",99999,{"$f":"IF(AF53=99999,\"\",RANK(AF53,Top:Bottom,1))","v":""}]
[null,null,null,null,null,null,null,null,null,null,null,null,null,null,null,null,null,null,null,null,null,null,null,null,null,null,null,null,"","","",99999,{"$f":"IF(AF54=99999,\"\",RANK(AF54,Top:Bottom,1))","v":""}]
[null,null,null,null,null,null,null,null,null,null,null,null,null,null,null,null,null,null,null,null,null,null,null,null,null,null,null,null,"","","",99999,{"$f":"IF(AF55=99999,\"\",RANK(AF55,Top:Bottom,1))","v":""}]
[null,null,null,null,null,null,null,null,null,null,null,null,null,null,null,null,null,null,null,null,null,null,null,null,null,null,null,null,"","","",99999,{"$f":"IF(AF56=99999,\"\",RANK(AF56,Top:Bottom,1))","v":""}]
[null,null,null,null,null,null,null,null,null,null,null,null,null,null,null,null,null,null,null,null,null,null,null,null,null,null,null,null,"","","",99999,{"$f":"IF(AF57=99999,\"\",RANK(AF57,Top:Bottom,1))","v":""}]
[null,null,null,null,null,null,null,null,null,null,null,null,null,null,null,null,null,null,null,null,null,null,null,null,null,null,null,null,"","","",99999,{"$f":"IF(AF58=99999,\"\",RANK(AF58,Top:Bottom,1))","v":""}]
[null,null,null,null,null,null,null,null,null,null,null,null,null,null,null,null,null,null,null,null,null,null,null,null,null,null,null,null,"","","",99999,{"$f":"IF(AF59=99999,\"\",RANK(AF59,Top:Bottom,1))","v":""}]
[null,null,null,null,null,null,null,null,null,null,null,null,null,null,null,null,null,null,null,null,null,null,null,null,null,null,null,null,"","","",99999,{"$f":"IF(AF60=99999,\"\",RANK(AF60,Top:Bottom,1))","v":""}]
[null,null,null,null,null,null,null,null,null,null,null,null,null,null,null,null,null,null,null,null,null,null,null,null,null,null,null,null,"","","",99999,{"$f":"IF(AF61=99999,\"\",RANK(AF61,Top:Bottom,1))","v":""}]
[null,null,null,null,null,null,null,null,null,null,null,null,null,null,null,null,null,null,null,null,null,null,null,null,null,null,null,null,"","","",99999,{"$f":"IF(AF62=99999,\"\",RANK(AF62,Top:Bottom,1))","v":""}]
[null,null,null,null,null,null,null,null,null,null,null,null,null,null,null,null,null,null,null,null,null,null,null,null,null,null,null,null,"","","",99999,{"$f":"IF(AF63=99999,\"\",RANK(AF63,Top:Bottom,1))","v":""}]
[null,null,null,null,null,null,null,null,null,null,null,null,null,null,null,null,null,null,null,null,null,null,null,null,null,null,null,null,"","","",99999,{"$f":"IF(AF64=99999,\"\",RANK(AF64,Top:Bottom,1))","v":""}]
[null,null,null,null,null,null,null,null,null,null,null,null,null,null,null,null,null,null,null,null,null,null,null,null,null,null,null,null,"","","",99999,{"$f":"IF(AF65=99999,\"\",RANK(AF65,Top:Bottom,1))","v":""}]
[null,null,null,null,null,null,null,null,null,null,null,null,null,null,null,null,null,null,null,null,null,null,null,null,null,null,null,null,"","","",99999,{"$f":"IF(AF66=99999,\"\",RANK(AF66,Top:Bottom,1))","v":""}]
[null,null,null,null,null,null,null,null,null,null,null,null,null,null,null,null,null,null,null,null,null,null,null,null,null,null,null,null,"","","",99999,{"$f":"IF(AF67=99999,\"\",RANK(AF67,Top:Bottom,1))","v":""}]
[null,null,null,null,null,null,null,null,null,null,null,null,null,null,null,null,null,null,null,null,null,null,null,null,null,null,null,null,{"$f":"IF(AA68=\"\",\"\",AB68-AA68)","v":""},{"$f":"IF(AC68=\"\",\"\",ABS(AC68-BogeyTime))","v":""},{"$f":"IF(COUNTIF(B68:Z68,\"e\")>0,\"E\",(IF(AA68=\"\",\"\",SUM(B68:Z68))))","v":""},{"$f":"IF(OR(AA68=\"\",AE68=\"E\"),99999,(IF(AC68<BogeyTime,AD68*86401,AD68*86400)+AE68*100))","v":99999},{"$f":"IF(AF68=99999,\"\",RANK(AF68,Top:Bottom,1))","v":""}]
[null,null,null,null,null,null,null,null,null,null,null,null,null,null,null,null,null,null,null,null,null,null,null,null,null,null,null,null,"","","",99999,{"$f":"IF(AF69=99999,\"\",RANK(AF69,Top:Bottom,1))","v":""}]
[null,null,null,null,null,null,null,null,null,null,null,null,null,null,null,null,null,null,null,null,null,null,null,null,null,null,null,null,"","","",99999,{"$f":"IF(AF70=99999,\"\",RANK(AF70,Top:Bottom,1))","v":""}]
[null,null,null,null,null,null,null,null,null,null,null,null,null,null,null,null,null,null,null,null,null,null,null,null,null,null,null,null,"","","",99999,{"$f":"IF(AF71=99999,\"\",RANK(AF71,Top:Bottom,1))","v":""}]
[null,null,null,null,null,null,null,null,null,null,null,null,null,null,null,null,null,null,null,null,null,null,null,null,null,null,null,null,"","","",99999,{"$f":"IF(AF72=99999,\"\",RANK(AF72,Top:Bottom,1))","v":""}]
[null,null,null,null,null,null,null,null,null,null,null,null,null,null,null,null,null,null,null,null,null,null,null,null,null,null,null,null,"","","",99999,{"$f":"IF(AF73=99999,\"\",RANK(AF73,Top:Bottom,1))","v":""}]
[null,null,null,null,null,null,null,null,null,null,null,null,null,null,null,null,null,null,null,null,null,null,null,null,null,null,null,null,"","","",99999,{"$f":"IF(AF74=99999,\"\",RANK(AF74,Top:Bottom,1))","v":""}]
[null,null,null,null,null,null,null,null,null,null,null,null,null,null,null,null,null,null,null,null,null,null,null,null,null,null,null,null,"","","",99999,{"$f":"IF(AF75=99999,\"\",RANK(AF75,Top:Bottom,1))","v":""}]
[null,null,null,null,null,null,null,null,null,null,null,null,null,null,null,null,null,null,null,null,null,null,null,null,null,null,null,null,"","","",99999,{"$f":"IF(AF76=99999,\"\",RANK(AF76,Top:Bottom,1))","v":""}]
[null,null,null,null,null,null,null,null,null,null,null,null,null,null,null,null,null,null,null,null,null,null,null,null,null,null,null,null,"","","",99999,{"$f":"IF(AF77=99999,\"\",RANK(AF77,Top:Bottom,1))","v":""}]
[null,null,null,null,null,null,null,null,null,null,null,null,null,null,null,null,null,null,null,null,null,null,null,null,null,null,null,null,"","","",99999,{"$f":"IF(AF78=99999,\"\",RANK(AF78,Top:Bottom,1))","v":""}]
[null,null,null,null,null,null,null,null,null,null,null,null,null,null,null,null,null,null,null,null,null,null,null,null,null,null,null,null,"","","",99999,{"$f":"IF(AF79=99999,\"\",RANK(AF79,Top:Bottom,1))","v":""}]
[null,null,null,null,null,null,null,null,null,null,null,null,null,null,null,null,null,null,null,null,null,null,null,null,null,null,null,null,"","","",99999,{"$f":"IF(AF80=99999,\"\",RANK(AF80,Top:Bottom,1))","v":""}]
[null,null,null,null,null,null,null,null,null,null,null,null,null,null,null,null,null,null,null,null,null,null,null,null,null,null,null,null,"","","",99999,{"$f":"IF(AF81=99999,\"\",RANK(AF81,Top:Bottom,1))","v":""}]
[null,null,null,null,null,null,null,null,null,null,null,null,null,null,null,null,null,null,null,null,null,null,null,null,null,null,null,null,"","","",99999,{"$f":"IF(AF82=99999,\"\",RANK(AF82,Top:Bottom,1))","v":""}]
[null,null,null,null,null,null,null,null,null,null,null,null,null,null,null,null,null,null,null,null,null,null,null,null,null,null,null,null,"","","",99999,{"$f":"IF(AF83=99999,\"\",RANK(AF83,Top:Bottom,1))","v":""}]
[null,null,null,null,null,null,null,null,null,null,null,null,null,null,null,null,null,null,null,null,null,null,null,null,null,null,null,null,"","","",99999,{"$f":"IF(AF84=99999,\"\",RANK(AF84,Top:Bottom,1))","v":""}]
[null,null,null,null,null,null,null,null,null,null,null,null,null,null,null,null,null,null,null,null,null,null,null,null,null,null,null,null,"","","",99999,{"$f":"IF(AF85=99999,\"\",RANK(AF85,Top:Bottom,1))","v":""}]
[null,null,null,null,null,null,null,null,null,null,null,null,null,null,null,null,null,null,null,null,null,null,null,null,null,null,null,null,"","","",99999,{"$f":"IF(AF86=99999,\"\",RANK(AF86,Top:Bottom,1))","v":""}]
[null,null,null,null,null,null,null,null,null,null,null,null,null,null,null,null,null,null,null,null,null,null,null,null,null,null,null,null,"","","",99999,{"$f":"IF(AF87=99999,\"\",RANK(AF87,Top:Bottom,1))","v":""}]
[null,null,null,null,null,null,null,null,null,null,null,null,null,null,null,null,null,null,null,null,null,null,null,null,null,null,null,null,"","","",99999,{"$f":"IF(AF88=99999,\"\",RANK(AF88,Top:Bottom,1))","v":""}]
[null,null,null,null,null,null,null,null,null,null,null,null,null,null,null,null,null,null,null,null,null,null,null,null,null,null,null,null,"","","",99999,{"$f":"IF(AF89=99999,\"\",RANK(AF89,Top:Bottom,1))","v":""}]
[null,null,null,null,null,null,null,null,null,null,null,null,null,null,null,null,null,null,null,null,null,null,null,null,null,null,null,null,"","","",99999,{"$f":"IF(AF90=99999,\"\",RANK(AF90,Top:Bottom,1))","v":""}]
[null,null,null,null,null,null,null,null,null,null,null,null,null,null,null,null,null,null,null,null,null,null,null,null,null,null,null,null,"","","",99999,{"$f":"IF(AF91=99999,\"\",RANK(AF91,Top:Bottom,1))","v":""}]
[null,null,null,null,null,null,null,null,null,null,null,null,null,null,null,null,null,null,null,null,null,null,null,null,null,null,null,null,"","","",99999,{"$f":"IF(AF92=99999,\"\",RANK(AF92,Top:Bottom,1))","v":""}]
[null,null,null,null,null,null,null,null,null,null,null,null,null,null,null,null,null,null,null,null,null,null,null,null,null,null,null,null,"","","",99999,{"$f":"IF(AF93=99999,\"\",RANK(AF93,Top:Bottom,1))","v":""}]
[null,null,null,null,null,null,null,null,null,null,null,null,null,null,null,null,null,null,null,null,null,null,null,null,null,null,null,null,"","","",99999,{"$f":"IF(AF94=99999,\"\",RANK(AF94,Top:Bottom,1))","v":""}]
[null,null,null,null,null,null,null,null,null,null,null,null,null,null,null,null,null,null,null,null,null,null,null,null,null,null,null,null,"","","",99999,{"$f":"IF(AF95=99999,\"\",RANK(AF95,Top:Bottom,1))","v":""}]
[null,null,null,null,null,null,null,null,null,null,null,null,null,null,null,null,null,null,null,null,null,null,null,null,null,null,null,null,"","","",99999,{"$f":"IF(AF96=99999,\"\",RANK(AF96,Top:Bottom,1))","v":""}]
[null,null,null,null,null,null,null,null,null,null,null,null,null,null,null,null,null,null,null,null,null,null,null,null,null,null,null,null,"","","",99999,{"$f":"IF(AF97=99999,\"\",RANK(AF97,Top:Bottom,1))","v":""}]
[null,null,null,null,null,null,null,null,null,null,null,null,null,null,null,null,null,null,null,null,null,null,null,null,null,null,null,null,"","","",99999,{"$f":"IF(AF98=99999,\"\",RANK(AF98,Top:Bottom,1))","v":""}]
[null,null,null,null,null,null,null,null,null,null,null,null,null,null,null,null,null,null,null,null,null,null,null,null,null,null,null,null,"","","",99999,{"$f":"IF(AF99=99999,\"\",RANK(AF99,Top:Bottom,1))","v":""}]
[null,null,null,null,null,null,null,null,null,null,null,null,null,null,null,null,null,null,null,null,null,null,null,null,null,null,null,null,{"$f":"IF(AA100=\"\",\"\",AB100-AA100)","v":""},{"$f":"IF(AC100=\"\",\"\",ABS(AC100-BogeyTime))","v":""},"",{"$f":"IF(OR(AA100=\"\",AE100=\"E\"),99999,(IF(AC100<BogeyTime,AD100*86401,AD100*86400)+AE100*100))","v":99999},{"$f":"IF(AF100=99999,\"\",RANK(AF100,Top:Bottom,1))","v":""}]
[null,null,null,null,null,null,null,null,null,null,null,null,null,null,null,null,null,null,null,null,null,null,null,null,null,null,null,null,{"$f":"IF(AA101=\"\",\"\",AB101-AA101)","v":""},{"$f":"IF(AC101=\"\",\"\",ABS(AC101-BogeyTime))","v":""},"",{"$f":"IF(OR(AA101=\"\",AE101=\"E\"),99999,(IF(AC101<BogeyTime,AD101*86401,AD101*86400)+AE101*100))","v":99999},{"$f":"IF(AF101=99999,\"\",RANK(AF101,Top:Bottom,1))","v":""}]
[null,null,null,null,null,null,null,null,null,null,null,null,null,null,null,null,null,null,null,null,null,null,null,null,null,null,null,null,{"$f":"IF(AA102=\"\",\"\",AB102-AA102)","v":""},{"$f":"IF(AC102=\"\",\"\",ABS(AC102-BogeyTime))","v":""},"",{"$f":"IF(OR(AA102=\"\",AE102=\"E\"),99999,(IF(AC102<BogeyTime,AD102*86401,AD102*86400)+AE102*100))","v":99999},{"$f":"IF(AF102=99999,\"\",RANK(AF102,Top:Bottom,1))","v":""}]
["PJLH 15/03"]

{"sheet":"Class 6","index":6,"n_rows":103,"n_cols":33,"rows_kept":103,"cut":false,"hidden":false,"merged":[[1,20,2,20],[1,21,2,21],[1,22,2,22],[1,23,2,23],[1,31,2,31],[1,32,2,32],[1,24,2,24],[1,25,2,25],[1,26,1,28],[1,30,2,30],[1,14,2,14],[1,15,2,15],[1,16,2,16],[1,17,2,17],[1,18,2,18],[1,19,2,19],[1,8,2,8],[1,9,2,9],[1,10,2,10],[1,11,2,11],[1,12,2,12],[1,13,2,13],[0,23,0,25],[0,29,0,30],[1,0,2,0],[1,1,2,1],[1,2,2,2],[1,3,2,3],[1,4,2,4],[1,5,2,5],[1,6,2,6],[1,7,2,7],[0,0,0,9],[0,10,0,11],[0,12,0,14],[0,15,0,16],[0,18,0,20],[0,21,0,22]]}
["Hunter Trials Scoresheet",null,null,null,null,null,null,null,null,null,"Date:",null,"26/07/15",null,null,"Class:",null,"6","Height\nCm:",null,null,100,null,"Speed\nMpm",null,null,437,"Timed \nDist (mtr)",515,"T/S Optimum:",null,null,{"$f":"TIME(INT((Distance*60/Speed)/3600),INT(MOD((Distance*60/Speed),3600)/60),MOD(MOD((Distance*60/Speed),3600),60))","v":"00:01:10"}]
["No.",1,2,3,4,5,6,7,8,9,10,11,12,13,14,15,16,17,18,19,20,21,null,null,null,null,"Timed Section",null,null,null,"Jump Total","Total Penalties","Position"]
[null,null,null,null,null,null,null,null,null,null,null,null,null,null,null,null,null,null,null,null,null,null,null,null,null,null,"Start","End","Elapsed","Variance"]
[616,0,0,20,60,0,65,0,null,null,null,null,null,null,0,0,0,0,0,0,0,0,null,null,null,null,0,"00:01:33",{"$f":"IF(AA4=\"\",\"\",AB4-AA4)","v":"00:01:33"},{"$f":"IF(AC4=\"\",\"\",ABS(AC4-BogeyTime))","v":2.6620370370370372E-4},{"$f":"IF(COUNTIF(B4:Z4,\"e\")>0,\"E\",(IF(AA4=\"\",\"\",SUM(B4:Z4))))","v":145},{"$f":"IF(OR(AA4=\"\",AE4=\"E\"),99999,(IF(AC4<BogeyTime,AD4*86401,AD4*86400)+AE4*100))","v":14523},{"$f":"IF(AF4=99999,\"\",RANK(AF4,Top:Bottom,1))","v":4}]
[617,0,0,0,20,0,0,"E",null,null,null,null,null,null,0,0,0,0,0,0,0,0,null,null,null,null,0,null,"00:00:00",8.1018518518518516E-4,"E",99999,{"$f":"IF(AF5=99999,\"\",RANK(AF5,Top:Bottom,1))","v":""}]
[610,0,0,0,0,0,0,0,null,null,null,null,null,null,0,0,0,0,0,0,0,0,null,null,null,null,0,"00:01:15","00:01:15",5.7870370370370345E-5,0,4.9999999999999982,{"$f":"IF(AF6=99999,\"\",RANK(AF6,Top:Bottom,1))","v":1}]
[614,0,0,0,0,0,0,0,null,null,null,null,null,null,0,20,0,0,0,0,0,0,null,null,null,null,"00:00:00","00:01:14","00:01:14",4.6296296296296341E-5,20,2004,{"$f":"IF(AF7=99999,\"\",RANK(AF7,Top:Bottom,1))","v":3}]
[615,0,0,0,0,0,0,0,null,null,null,null,null,null,0,0,0,0,0,0,0,0,null,null,null,null,"00:00:00","00:01:20","00:01:20",1.1574074074074069E-4,0,9.9999999999999964,{"$f":"IF(AF8=99999,\"\",RANK(AF8,Top:Bottom,1))","v":2}]
[null,null,null,null,null,null,null,null,null,null,null,null,null,null,null,null,null,null,null,null,null,null,null,null,null,null,null,null,"","","",99999,{"$f":"IF(AF9=99999,\"\",RANK(AF9,Top:Bottom,1))","v":""}]
[null,null,null,null,null,null,null,null,null,null,null,null,null,null,null,null,null,null,null,null,null,null,null,null,null,null,null,null,"","","",99999,{"$f":"IF(AF10=99999,\"\",RANK(AF10,Top:Bottom,1))","v":""}]
[null,null,null,null,null,null,null,null,null,null,null,null,null,null,null,null,null,null,null,null,null,null,null,null,null,null,null,null,"","","",99999,{"$f":"IF(AF11=99999,\"\",RANK(AF11,Top:Bottom,1))","v":""}]
[null,null,null,null,null,null,null,null,null,null,null,null,null,null,null,null,null,null,null,null,null,null,null,null,null,null,null,null,"","","",99999,{"$f":"IF(AF12=99999,\"\",RANK(AF12,Top:Bottom,1))","v":""}]
[null,null,null,null,null,null,null,null,null,null,null,null,null,null,null,null,null,null,null,null,null,null,null,null,null,null,null,null,"","","",99999,{"$f":"IF(AF13=99999,\"\",RANK(AF13,Top:Bottom,1))","v":""}]
[null,null,null,null,null,null,null,null,null,null,null,null,null,null,null,null,null,null,null,null,null,null,null,null,null,null,null,null,"","","",99999,{"$f":"IF(AF14=99999,\"\",RANK(AF14,Top:Bottom,1))","v":""}]
[null,null,null,null,null,null,null,null,null,null,null,null,null,null,null,null,null,null,null,null,null,null,null,null,null,null,null,null,"","","",99999,{"$f":"IF(AF15=99999,\"\",RANK(AF15,Top:Bottom,1))","v":""}]
[null,null,null,null,null,null,null,null,null,null,null,null,null,null,null,null,null,null,null,null,null,null,null,null,null,null,null,null,"","","",99999,{"$f":"IF(AF16=99999,\"\",RANK(AF16,Top:Bottom,1))","v":""}]
[null,null,null,null,null,null,null,null,null,null,null,null,null,null,null,null,null,null,null,null,null,null,null,null,null,null,null,null,"","","",99999,{"$f":"IF(AF17=99999,\"\",RANK(AF17,Top:Bottom,1))","v":""}]
[null,null,null,null,null,null,null,null,null,null,null,null,null,null,null,null,null,null,null,null,null,null,null,null,null,null,null,null,"","","",99999,{"$f":"IF(AF18=99999,\"\",RANK(AF18,Top:Bottom,1))","v":""}]
[null,null,null,null,null,null,null,null,null,null,null,null,null,null,null,null,null,null,null,null,null,null,null,null,null,null,null,null,"","","",99999,{"$f":"IF(AF19=99999,\"\",RANK(AF19,Top:Bottom,1))","v":""}]
[null,null,null,null,null,null,null,null,null,null,null,null,null,null,null,null,null,null,null,null,null,null,null,null,null,null,null,null,"","","",99999,{"$f":"IF(AF20=99999,\"\",RANK(AF20,Top:Bottom,1))","v":""}]
[null,null,null,null,null,null,null,null,null,null,null,null,null,null,null,null,null,null,null,null,null,null,null,null,null,null,null,null,"","","",99999,{"$f":"IF(AF21=99999,\"\",RANK(AF21,Top:Bottom,1))","v":""}]
[null,null,null,null,null,null,null,null,null,null,null,null,null,null,null,null,null,null,null,null,null,null,null,null,null,null,null,null,"","","",99999,{"$f":"IF(AF22=99999,\"\",RANK(AF22,Top:Bottom,1))","v":""}]
[null,null,null,null,null,null,null,null,null,null,null,null,null,null,null,null,null,null,null,null,null,null,null,null,null,null,null,null,"","","",99999,{"$f":"IF(AF23=99999,\"\",RANK(AF23,Top:Bottom,1))","v":""}]
[null,null,null,null,null,null,null,null,null,null,null,null,null,null,null,null,null,null,null,null,null,null,null,null,null,null,null,null,"","","",99999,{"$f":"IF(AF24=99999,\"\",RANK(AF24,Top:Bottom,1))","v":""}]
[null,null,null,null,null,null,null,null,null,null,null,null,null,null,null,null,null,null,null,null,null,null,null,null,null,null,null,null,"","","",99999,{"$f":"IF(AF25=99999,\"\",RANK(AF25,Top:Bottom,1))","v":""}]
[null,null,null,null,null,null,null,null,null,null,null,null,null,null,null,null,null,null,null,null,null,null,null,null,null,null,null,null,"","","",99999,{"$f":"IF(AF26=99999,\"\",RANK(AF26,Top:Bottom,1))","v":""}]
[null,null,null,null,null,null,null,null,null,null,null,null,null,null,null,null,null,null,null,null,null,null,null,null,null,null,null,null,"","","",99999,{"$f":"IF(AF27=99999,\"\",RANK(AF27,Top:Bottom,1))","v":""}]
[null,null,null,null,null,null,null,null,null,null,null,null,null,null,null,null,null,null,null,null,null,null,null,null,null,null,null,null,"","","",99999,{"$f":"IF(AF28=99999,\"\",RANK(AF28,Top:Bottom,1))","v":""}]
[null,null,null,null,null,null,null,null,null,null,null,null,null,null,null,null,null,null,null,null,null,null,null,null,null,null,null,null,"","","",99999,{"$f":"IF(AF29=99999,\"\",RANK(AF29,Top:Bottom,1))","v":""}]
[null,null,null,null,null,null,null,null,null,null,null,null,null,null,null,null,null,null,null,null,null,null,null,null,null,null,null,null,"","","",99999,{"$f":"IF(AF30=99999,\"\",RANK(AF30,Top:Bottom,1))","v":""}]
[null,null,null,null,null,null,null,null,null,null,null,null,null,null,null,null,null,null,null,null,null,null,null,null,null,null,null,null,"","","",99999,{"$f":"IF(AF31=99999,\"\",RANK(AF31,Top:Bottom,1))","v":""}]
[null,null,null,null,null,null,null,null,null,null,null,null,null,null,null,null,null,null,null,null,null,null,null,null,null,null,null,null,"","","",99999,{"$f":"IF(AF32=99999,\"\",RANK(AF32,Top:Bottom,1))","v":""}]
[null,null,null,null,null,null,null,null,null,null,null,null,null,null,null,null,null,null,null,null,null,null,null,null,null,null,null,null,"","","",99999,{"$f":"IF(AF33=99999,\"\",RANK(AF33,Top:Bottom,1))","v":""}]
[null,null,null,null,null,null,null,null,null,null,null,null,null,null,null,null,null,null,null,null,null,null,null,null,null,null,null,null,"","","",99999,{"$f":"IF(AF34=99999,\"\",RANK(AF34,Top:Bottom,1))","v":""}]
[null,null,null,null,null,null,null,null,null,null,null,null,null,null,null,null,null,null,null,null,null,null,null,null,null,null,null,null,"","","",99999,{"$f":"IF(AF35=99999,\"\",RANK(AF35,Top:Bottom,1))","v":""}]
[null,null,null,null,null,null,null,null,null,null,null,null,null,null,null,null,null,null,null,null,null,null,null,null,null,null,null,null,{"$f":"IF(AA36=\"\",\"\",AB36-AA36)","v":""},{"$f":"IF(AC36=\"\",\"\",ABS(AC36-BogeyTime))","v":""},{"$f":"IF(COUNTIF(B36:Z36,\"e\")>0,\"E\",(IF(AA36=\"\",\"\",SUM(B36:Z36))))","v":""},{"$f":"IF(OR(AA36=\"\",AE36=\"E\"),99999,(IF(AC36<BogeyTime,AD36*86401,AD36*86400)+AE36*100))","v":99999},{"$f":"IF(AF36=99999,\"\",RANK(AF36,Top:Bottom,1))","v":""}]
[null,null,null,null,null,null,null,null,null,null,null,null,null,null,null,null,null,null,null,null,null,null,null,null,null,null,null,null,"","","",99999,{"$f":"IF(AF37=99999,\"\",RANK(AF37,Top:Bottom,1))","v":""}]
[null,null,null,null,null,null,null,null,null,null,null,null,null,null,null,null,null,null,null,null,null,null,null,null,null,null,null,null,"","","",99999,{"$f":"IF(AF38=99999,\"\",RANK(AF38,Top:Bottom,1))","v":""}]
[null,null,null,null,null,null,null,null,null,null,null,null,null,null,null,null,null,null,null,null,null,null,null,null,null,null,null,null,"","","",99999,{"$f":"IF(AF39=99999,\"\",RANK(AF39,Top:Bottom,1))","v":""}]
[null,null,null,null,null,null,null,null,null,null,null,null,null,null,null,null,null,null,null,null,null,null,null,null,null,null,null,null,"","","",99999,{"$f":"IF(AF40=99999,\"\",RANK(AF40,Top:Bottom,1))","v":""}]
[null,null,null,null,null,null,null,null,null,null,null,null,null,null,null,null,null,null,null,null,null,null,null,null,null,null,null,null,"","","",99999,{"$f":"IF(AF41=99999,\"\",RANK(AF41,Top:Bottom,1))","v":""}]
[null,null,null,null,null,null,null,null,null,null,null,null,null,null,null,null,null,null,null,null,null,null,null,null,null,null,null,null,"","","",99999,{"$f":"IF(AF42=99999,\"\",RANK(AF42,Top:Bottom,1))","v":""}]
[null,null,null,null,null,null,null,null,null,null,null,null,null,null,null,null,null,null,null,null,null,null,null,null,null,null,null,null,"","","",99999,{"$f":"IF(AF43=99999,\"\",RANK(AF43,Top:Bottom,1))","v":""}]
[null,null,null,null,null,null,null,null,null,null,null,null,null,null,null,null,null,null,null,null,null,null,null,null,null,null,null,null,"","","",99999,{"$f":"IF(AF44=99999,\"\",RANK(AF44,Top:Bottom,1))","v":""}]
[null,null,null,null,null,null,null,null,null,null,null,null,null,null,null,null,null,null,null,null,null,null,null,null,null,null,null,null,"","","",99999,{"$f":"IF(AF45=99999,\"\",RANK(AF45,Top:Bottom,1))","v":""}]
[null,null,null,null,null,null,null,null,null,null,null,null,null,null,null,null,null,null,null,null,null,null,null,null,null,null,null,null,"","","",99999,{"$f":"IF(AF46=99999,\"\",RANK(AF46,Top:Bottom,1))","v":""}]
[null,null,null,null,null,null,null,null,null,null,null,null,null,null,null,null,null,null,null,null,null,null,null,null,null,null,null,null,"","","",99999,{"$f":"IF(AF47=99999,\"\",RANK(AF47,Top:Bottom,1))","v":""}]
[null,null,null,null,null,null,null,null,null,null,null,null,null,null,null,null,null,null,null,null,null,null,null,null,null,null,null,null,"","","",99999,{"$f":"IF(AF48=99999,\"\",RANK(AF48,Top:Bottom,1))","v":""}]
[null,null,null,null,null,null,null,null,null,null,null,null,null,null,null,null,null,null,null,null,null,null,null,null,null,null,null,null,"","","",99999,{"$f":"IF(AF49=99999,\"\",RANK(AF49,Top:Bottom,1))","v":""}]
[null,null,null,null,null,null,null,null,null,null,null,null,null,null,null,null,null,null,null,null,null,null,null,null,null,null,null,null,"","","",99999,{"$f":"IF(AF50=99999,\"\",RANK(AF50,Top:Bottom,1))","v":""}]
[null,null,null,null,null,null,null,null,null,null,null,null,null,null,null,null,null,null,null,null,null,null,null,null,null,null,null,null,"","","",99999,{"$f":"IF(AF51=99999,\"\",RANK(AF51,Top:Bottom,1))","v":""}]
[null,null,null,null,null,null,null,null,null,null,null,null,null,null,null,null,null,null,null,null,null,null,null,null,null,null,null,null,"","","",99999,{"$f":"IF(AF52=99999,\"\",RANK(AF52,Top:Bottom,1))","v":""}]
[null,null,null,null,null,null,null,null,null,null,null,null,null,null,null,null,null,null,null,null,null,null,null,null,null,null,null,null,"","","",99999,{"$f":"IF(AF53=99999,\"\",RANK(AF53,Top:Bottom,1))","v":""}]
[null,null,null,null,null,null,null,null,null,null,null,null,null,null,null,null,null,null,null,null,null,null,null,null,null,null,null,null,"","","",99999,{"$f":"IF(AF54=99999,\"\",RANK(AF54,Top:Bottom,1))","v":""}]
[null,null,null,null,null,null,null,null,null,null,null,null,null,null,null,null,null,null,null,null,null,null,null,null,null,null,null,null,"","","",99999,{"$f":"IF(AF55=99999,\"\",RANK(AF55,Top:Bottom,1))","v":""}]
[null,null,null,null,null,null,null,null,null,null,null,null,null,null,null,null,null,null,null,null,null,null,null,null,null,null,null,null,"","","",99999,{"$f":"IF(AF56=99999,\"\",RANK(AF56,Top:Bottom,1))","v":""}]
[null,null,null,null,null,null,null,null,null,null,null,null,null,null,null,null,null,null,null,null,null,null,null,null,null,null,null,null,"","","",99999,{"$f":"IF(AF57=99999,\"\",RANK(AF57,Top:Bottom,1))","v":""}]
[null,null,null,null,null,null,null,null,null,null,null,null,null,null,null,null,null,null,null,null,null,null,null,null,null,null,null,null,"","","",99999,{"$f":"IF(AF58=99999,\"\",RANK(AF58,Top:Bottom,1))","v":""}]
[null,null,null,null,null,null,null,null,null,null,null,null,null,null,null,null,null,null,null,null,null,null,null,null,null,null,null,null,"","","",99999,{"$f":"IF(AF59=99999,\"\",RANK(AF59,Top:Bottom,1))","v":""}]
[null,null,null,null,null,null,null,null,null,null,null,null,null,null,null,null,null,null,null,null,null,null,null,null,null,null,null,null,"","","",99999,{"$f":"IF(AF60=99999,\"\",RANK(AF60,Top:Bottom,1))","v":""}]
[null,null,null,null,null,null,null,null,null,null,null,null,null,null,null,null,null,null,null,null,null,null,null,null,null,null,null,null,"","","",99999,{"$f":"IF(AF61=99999,\"\",RANK(AF61,Top:Bottom,1))","v":""}]
[null,null,null,null,null,null,null,null,null,null,null,null,null,null,null,null,null,null,null,null,null,null,null,null,null,null,null,null,"","","",99999,{"$f":"IF(AF62=99999,\"\",RANK(AF62,Top:Bottom,1))","v":""}]
[null,null,null,null,null,null,null,null,null,null,null,null,null,null,null,null,null,null,null,null,null,null,null,null,null,null,null,null,"","","",99999,{"$f":"IF(AF63=99999,\"\",RANK(AF63,Top:Bottom,1))","v":""}]
[null,null,null,null,null,null,null,null,null,null,null,null,null,null,null,null,null,null,null,null,null,null,null,null,null,null,null,null,"","","",99999,{"$f":"IF(AF64=99999,\"\",RANK(AF64,Top:Bottom,1))","v":""}]
[null,null,null,null,null,null,null,null,null,null,null,null,null,null,null,null,null,null,null,null,null,null,null,null,null,null,null,null,"","","",99999,{"$f":"IF(AF65=99999,\"\",RANK(AF65,Top:Bottom,1))","v":""}]
[null,null,null,null,null,null,null,null,null,null,null,null,null,null,null,null,null,null,null,null,null,null,null,null,null,null,null,null,"","","",99999,{"$f":"IF(AF66=99999,\"\",RANK(AF66,Top:Bottom,1))","v":""}]
[null,null,null,null,null,null,null,null,null,null,null,null,null,null,null,null,null,null,null,null,null,null,null,null,null,null,null,null,"","","",99999,{"$f":"IF(AF67=99999,\"\",RANK(AF67,Top:Bottom,1))","v":""}]
[null,null,null,null,null,null,null,null,null,null,null,null,null,null,null,null,null,null,null,null,null,null,null,null,null,null,null,null,{"$f":"IF(AA68=\"\",\"\",AB68-AA68)","v":""},{"$f":"IF(AC68=\"\",\"\",ABS(AC68-BogeyTime))","v":""},{"$f":"IF(COUNTIF(B68:Z68,\"e\")>0,\"E\",(IF(AA68=\"\",\"\",SUM(B68:Z68))))","v":""},{"$f":"IF(OR(AA68=\"\",AE68=\"E\"),99999,(IF(AC68<BogeyTime,AD68*86401,AD68*86400)+AE68*100))","v":99999},{"$f":"IF(AF68=99999,\"\",RANK(AF68,Top:Bottom,1))","v":""}]
[null,null,null,null,null,null,null,null,null,null,null,null,null,null,null,null,null,null,null,null,null,null,null,null,null,null,null,null,"","","",99999,{"$f":"IF(AF69=99999,\"\",RANK(AF69,Top:Bottom,1))","v":""}]
[null,null,null,null,null,null,null,null,null,null,null,null,null,null,null,null,null,null,null,null,null,null,null,null,null,null,null,null,"","","",99999,{"$f":"IF(AF70=99999,\"\",RANK(AF70,Top:Bottom,1))","v":""}]
[null,null,null,null,null,null,null,null,null,null,null,null,null,null,null,null,null,null,null,null,null,null,null,null,null,null,null,null,"","","",99999,{"$f":"IF(AF71=99999,\"\",RANK(AF71,Top:Bottom,1))","v":""}]
[null,null,null,null,null,null,null,null,null,null,null,null,null,null,null,null,null,null,null,null,null,null,null,null,null,null,null,null,"","","",99999,{"$f":"IF(AF72=99999,\"\",RANK(AF72,Top:Bottom,1))","v":""}]
[null,null,null,null,null,null,null,null,null,null,null,null,null,null,null,null,null,null,null,null,null,null,null,null,null,null,null,null,"","","",99999,{"$f":"IF(AF73=99999,\"\",RANK(AF73,Top:Bottom,1))","v":""}]
[null,null,null,null,null,null,null,null,null,null,null,null,null,null,null,null,null,null,null,null,null,null,null,null,null,null,null,null,"","","",99999,{"$f":"IF(AF74=99999,\"\",RANK(AF74,Top:Bottom,1))","v":""}]
[null,null,null,null,null,null,null,null,null,null,null,null,null,null,null,null,null,null,null,null,null,null,null,null,null,null,null,null,"","","",99999,{"$f":"IF(AF75=99999,\"\",RANK(AF75,Top:Bottom,1))","v":""}]
[null,null,null,null,null,null,null,null,null,null,null,null,null,null,null,null,null,null,null,null,null,null,null,null,null,null,null,null,"","","",99999,{"$f":"IF(AF76=99999,\"\",RANK(AF76,Top:Bottom,1))","v":""}]
[null,null,null,null,null,null,null,null,null,null,null,null,null,null,null,null,null,null,null,null,null,null,null,null,null,null,null,null,"","","",99999,{"$f":"IF(AF77=99999,\"\",RANK(AF77,Top:Bottom,1))","v":""}]
[null,null,null,null,null,null,null,null,null,null,null,null,null,null,null,null,null,null,null,null,null,null,null,null,null,null,null,null,"","","",99999,{"$f":"IF(AF78=99999,\"\",RANK(AF78,Top:Bottom,1))","v":""}]
[null,null,null,null,null,null,null,null,null,null,null,null,null,null,null,null,null,null,null,null,null,null,null,null,null,null,null,null,"","","",99999,{"$f":"IF(AF79=99999,\"\",RANK(AF79,Top:Bottom,1))","v":""}]
[null,null,null,null,null,null,null,null,null,null,null,null,null,null,null,null,null,null,null,null,null,null,null,null,null,null,null,null,"","","",99999,{"$f":"IF(AF80=99999,\"\",RANK(AF80,Top:Bottom,1))","v":""}]
[null,null,null,null,null,null,null,null,null,null,null,null,null,null,null,null,null,null,null,null,null,null,null,null,null,null,null,null,"","","",99999,{"$f":"IF(AF81=99999,\"\",RANK(AF81,Top:Bottom,1))","v":""}]
[null,null,null,null,null,null,null,null,null,null,null,null,null,null,null,null,null,null,null,null,null,null,null,null,null,null,null,null,"","","",99999,{"$f":"IF(AF82=99999,\"\",RANK(AF82,Top:Bottom,1))","v":""}]
[null,null,null,null,null,null,null,null,null,null,null,null,null,null,null,null,null,null,null,null,null,null,null,null,null,null,null,null,"","","",99999,{"$f":"IF(AF83=99999,\"\",RANK(AF83,Top:Bottom,1))","v":""}]
[null,null,null,null,null,null,null,null,null,null,null,null,null,null,null,null,null,null,null,null,null,null,null,null,null,null,null,null,"","","",99999,{"$f":"IF(AF84=99999,\"\",RANK(AF84,Top:Bottom,1))","v":""}]
[null,null,null,null,null,null,null,null,null,null,null,null,null,null,null,null,null,null,null,null,null,null,null,null,null,null,null,null,"","","",99999,{"$f":"IF(AF85=99999,\"\",RANK(AF85,Top:Bottom,1))","v":""}]
[null,null,null,null,null,null,null,null,null,null,null,null,null,null,null,null,null,null,null,null,null,null,null,null,null,null,null,null,"","","",99999,{"$f":"IF(AF86=99999,\"\",RANK(AF86,Top:Bottom,1))","v":""}]
[null,null,null,null,null,null,null,null,null,null,null,null,null,null,null,null,null,null,null,null,null,null,null,null,null,null,null,null,"","","",99999,{"$f":"IF(AF87=99999,\"\",RANK(AF87,Top:Bottom,1))","v":""}]
[null,null,null,null,null,null,null,null,null,null,null,null,null,null,null,null,null,null,null,null,null,null,null,null,null,null,null,null,"","","",99999,{"$f":"IF(AF88=99999,\"\",RANK(AF88,Top:Bottom,1))","v":""}]
[null,null,null,null,null,null,null,null,null,null,null,null,null,null,null,null,null,null,null,null,null,null,null,null,null,null,null,null,"","","",99999,{"$f":"IF(AF89=99999,\"\",RANK(AF89,Top:Bottom,1))","v":""}]
[null,null,null,null,null,null,null,null,null,null,null,null,null,null,null,null,null,null,null,null,null,null,null,null,null,null,null,null,"","","",99999,{"$f":"IF(AF90=99999,\"\",RANK(AF90,Top:Bottom,1))","v":""}]
[null,null,null,null,null,null,null,null,null,null,null,null,null,null,null,null,null,null,null,null,null,null,null,null,null,null,null,null,"","","",99999,{"$f":"IF(AF91=99999,\"\",RANK(AF91,Top:Bottom,1))","v":""}]
[null,null,null,null,null,null,null,null,null,null,null,null,null,null,null,null,null,null,null,null,null,null,null,null,null,null,null,null,"","","",99999,{"$f":"IF(AF92=99999,\"\",RANK(AF92,Top:Bottom,1))","v":""}]
[null,null,null,null,null,null,null,null,null,null,null,null,null,null,null,null,null,null,null,null,null,null,null,null,null,null,null,null,"","","",99999,{"$f":"IF(AF93=99999,\"\",RANK(AF93,Top:Bottom,1))","v":""}]
[null,null,null,null,null,null,null,null,null,null,null,null,null,null,null,null,null,null,null,null,null,null,null,null,null,null,null,null,"","","",99999,{"$f":"IF(AF94=99999,\"\",RANK(AF94,Top:Bottom,1))","v":""}]
[null,null,null,null,null,null,null,null,null,null,null,null,null,null,null,null,null,null,null,null,null,null,null,null,null,null,null,null,"","","",99999,{"$f":"IF(AF95=99999,\"\",RANK(AF95,Top:Bottom,1))","v":""}]
[null,null,null,null,null,null,null,null,null,null,null,null,null,null,null,null,null,null,null,null,null,null,null,null,null,null,null,null,"","","",99999,{"$f":"IF(AF96=99999,\"\",RANK(AF96,Top:Bottom,1))","v":""}]
[null,null,null,null,null,null,null,null,null,null,null,null,null,null,null,null,null,null,null,null,null,null,null,null,null,null,null,null,"","","",99999,{"$f":"IF(AF97=99999,\"\",RANK(AF97,Top:Bottom,1))","v":""}]
[null,null,null,null,null,null,null,null,null,null,null,null,null,null,null,null,null,null,null,null,null,null,null,null,null,null,null,null,"","","",99999,{"$f":"IF(AF98=99999,\"\",RANK(AF98,Top:Bottom,1))","v":""}]
[null,null,null,null,null,null,null,null,null,null,null,null,null,null,null,null,null,null,null,null,null,null,null,null,null,null,null,null,"","","",99999,{"$f":"IF(AF99=99999,\"\",RANK(AF99,Top:Bottom,1))","v":""}]
[null,null,null,null,null,null,null,null,null,null,null,null,null,null,null,null,null,null,null,null,null,null,null,null,null,null,null,null,{"$f":"IF(AA100=\"\",\"\",AB100-AA100)","v":""},{"$f":"IF(AC100=\"\",\"\",ABS(AC100-BogeyTime))","v":""},"",{"$f":"IF(OR(AA100=\"\",AE100=\"E\"),99999,(IF(AC100<BogeyTime,AD100*86401,AD100*86400)+AE100*100))","v":99999},{"$f":"IF(AF100=99999,\"\",RANK(AF100,Top:Bottom,1))","v":""}]
[null,null,null,null,null,null,null,null,null,null,null,null,null,null,null,null,null,null,null,null,null,null,null,null,null,null,null,null,{"$f":"IF(AA101=\"\",\"\",AB101-AA101)","v":""},{"$f":"IF(AC101=\"\",\"\",ABS(AC101-BogeyTime))","v":""},"",{"$f":"IF(OR(AA101=\"\",AE101=\"E\"),99999,(IF(AC101<BogeyTime,AD101*86401,AD101*86400)+AE101*100))","v":99999},{"$f":"IF(AF101=99999,\"\",RANK(AF101,Top:Bottom,1))","v":""}]
[null,null,null,null,null,null,null,null,null,null,null,null,null,null,null,null,null,null,null,null,null,null,null,null,null,null,null,null,{"$f":"IF(AA102=\"\",\"\",AB102-AA102)","v":""},{"$f":"IF(AC102=\"\",\"\",ABS(AC102-BogeyTime))","v":""},"",{"$f":"IF(OR(AA102=\"\",AE102=\"E\"),99999,(IF(AC102<BogeyTime,AD102*86401,AD102*86400)+AE102*100))","v":99999},{"$f":"IF(AF102=99999,\"\",RANK(AF102,Top:Bottom,1))","v":""}]
["PJLH 15/03"]

{"sheet":"Test Sheet","index":7,"n_rows":103,"n_cols":33,"rows_kept":103,"cut":false,"hidden":false,"merged":[[1,20,2,20],[1,21,2,21],[1,22,2,22],[1,23,2,23],[1,31,2,31],[1,32,2,32],[1,24,2,24],[1,25,2,25],[1,26,1,28],[1,30,2,30],[1,14,2,14],[1,15,2,15],[1,16,2,16],[1,17,2,17],[1,18,2,18],[1,19,2,19],[1,8,2,8],[1,9,2,9],[1,10,2,10],[1,11,2,11],[1,12,2,12],[1,13,2,13],[0,23,0,25],[0,29,0,30],[1,0,2,0],[1,1,2,1],[1,2,2,2],[1,3,2,3],[1,4,2,4],[1,5,2,5],[1,6,2,6],[1,7,2,7],[0,0,0,9],[0,10,0,11],[0,12,0,14],[0,15,0,16],[0,18,0,20],[0,21,0,22]]}
["Hunter Trials Scoresheet",null,null,null,null,null,null,null,null,null,"Date:",null,null,null,null,"Class:",null,null,"Height\nCm:",null,null,"Min",null,"Speed\nMpm",null,null,{"$f":"(IF(Height=80,435,IF(Height=90,450,IF(Height=100,475,250))))","v":250},"Timed \nDist (mtr)",529,"T/S Optimum:",null,null,{"$f":"TIME(INT((Distance*60/Speed)/3600),INT(MOD((Distance*60/Speed),3600)/60),MOD(MOD((Distance*60/Speed),3600),60))","v":"00:02:06"}]
["No.",1,2,3,4,5,6,7,8,9,10,11,12,13,14,15,16,17,18,19,20,21,22,23,24,25,"Timed Section",null,null,null,"Jump Total","Total Penalties","Position"]
[null,null,null,null,null,null,null,null,null,null,null,null,null,null,null,null,null,null,null,null,null,null,null,null,null,null,"Start","End","Elapsed","Variance"]
[null,0,0,0,0,0,0,0,0,0,0,0,0,0,0,0,20,null,null,null,null,null,null,null,null,null,0,"00:02:10",{"$f":"IF(AA4=\"\",\"\",AB4-AA4)","v":"00:02:10"},{"$f":"IF(AC4=\"\",\"\",ABS(AC4-BogeyTime))","v":4.6296296296296016E-5},{"$f":"IF(COUNTIF(B4:Z4,\"e\")>0,\"E\",(IF(AA4=\"\",\"\",SUM(B4:Z4))))","v":20},{"$f":"IF(OR(AA4=\"\",AE4=\"E\"),99999,(IF(AC4<BogeyTime,AD4*86401,AD4*86400)+AE4*100))","v":2004},{"$f":"IF(AF4=99999,\"\",RANK(AF4,Top:Bottom,1))","v":2}]
[null,20,20,0,0,0,0,0,0,0,0,0,0,0,0,0,0,null,null,null,null,null,null,null,null,null,0,"00:03:06","00:03:06",6.9444444444444436E-4,40,4060,{"$f":"IF(AF5=99999,\"\",RANK(AF5,Top:Bottom,1))","v":3}]
[null,0,0,0,0,0,0,0,"E",null,null,null,null,null,null,null,null,null,null,null,null,null,null,null,null,null,null,null,"","","E",99999,{"$f":"IF(AF6=99999,\"\",RANK(AF6,Top:Bottom,1))","v":""}]
[null,0,0,0,0,0,0,0,0,0,0,0,0,0,0,0,0,null,null,null,null,null,null,null,null,null,"00:00:00","00:03:00","00:03:00",6.249999999999999E-4,0,53.999999999999993,{"$f":"IF(AF7=99999,\"\",RANK(AF7,Top:Bottom,1))","v":1}]
[null,null,null,null,null,null,null,null,null,null,null,null,null,null,null,null,null,null,null,null,null,null,null,null,null,null,null,null,"","","",99999,{"$f":"IF(AF8=99999,\"\",RANK(AF8,Top:Bottom,1))","v":""}]
[null,null,null,null,null,null,null,null,null,null,null,null,null,null,null,null,null,null,null,null,null,null,null,null,null,null,null,null,"","","",99999,{"$f":"IF(AF9=99999,\"\",RANK(AF9,Top:Bottom,1))","v":""}]
[null,null,null,null,null,null,null,null,null,null,null,null,null,null,null,null,null,null,null,null,null,null,null,null,null,null,null,null,"","","",99999,{"$f":"IF(AF10=99999,\"\",RANK(AF10,Top:Bottom,1))","v":""}]
[null,null,null,null,null,null,null,null,null,null,null,null,null,null,null,null,null,null,null,null,null,null,null,null,null,null,null,null,"","","",99999,{"$f":"IF(AF11=99999,\"\",RANK(AF11,Top:Bottom,1))","v":""}]
[null,null,null,null,null,null,null,null,null,null,null,null,null,null,null,null,null,null,null,null,null,null,null,null,null,null,null,null,"","","",99999,{"$f":"IF(AF12=99999,\"\",RANK(AF12,Top:Bottom,1))","v":""}]
[null,null,null,null,null,null,null,null,null,null,null,null,null,null,null,null,null,null,null,null,null,null,null,null,null,null,null,null,"","","",99999,{"$f":"IF(AF13=99999,\"\",RANK(AF13,Top:Bottom,1))","v":""}]
[null,null,null,null,null,null,null,null,null,null,null,null,null,null,null,null,null,null,null,null,null,null,null,null,null,null,null,null,"","","",99999,{"$f":"IF(AF14=99999,\"\",RANK(AF14,Top:Bottom,1))","v":""}]
[null,null,null,null,null,null,null,null,null,null,null,null,null,null,null,null,null,null,null,null,null,null,null,null,null,null,null,null,"","","",99999,{"$f":"IF(AF15=99999,\"\",RANK(AF15,Top:Bottom,1))","v":""}]
[null,null,null,null,null,null,null,null,null,null,null,null,null,null,null,null,null,null,null,null,null,null,null,null,null,null,null,null,"","","",99999,{"$f":"IF(AF16=99999,\"\",RANK(AF16,Top:Bottom,1))","v":""}]
[null,null,null,null,null,null,null,null,null,null,null,null,null,null,null,null,null,null,null,null,null,null,null,null,null,null,null,null,"","","",99999,{"$f":"IF(AF17=99999,\"\",RANK(AF17,Top:Bottom,1))","v":""}]
[null,null,null,null,null,null,null,null,null,null,null,null,null,null,null,null,null,null,null,null,null,null,null,null,null,null,null,null,"","","",99999,{"$f":"IF(AF18=99999,\"\",RANK(AF18,Top:Bottom,1))","v":""}]
[null,null,null,null,null,null,null,null,null,null,null,null,null,null,null,null,null,null,null,null,null,null,null,null,null,null,null,null,"","","",99999,{"$f":"IF(AF19=99999,\"\",RANK(AF19,Top:Bottom,1))","v":""}]
[null,null,null,null,null,null,null,null,null,null,null,null,null,null,null,null,null,null,null,null,null,null,null,null,null,null,null,null,"","","",99999,{"$f":"IF(AF20=99999,\"\",RANK(AF20,Top:Bottom,1))","v":""}]
[null,null,null,null,null,null,null,null,null,null,null,null,null,null,null,null,null,null,null,null,null,null,null,null,null,null,null,null,"","","",99999,{"$f":"IF(AF21=99999,\"\",RANK(AF21,Top:Bottom,1))","v":""}]
[null,null,null,null,null,null,null,null,null,null,null,null,null,null,null,null,null,null,null,null,null,null,null,null,null,null,null,null,"","","",99999,{"$f":"IF(AF22=99999,\"\",RANK(AF22,Top:Bottom,1))","v":""}]
[null,null,null,null,null,null,null,null,null,null,null,null,null,null,null,null,null,null,null,null,null,null,null,null,null,null,null,null,"","","",99999,{"$f":"IF(AF23=99999,\"\",RANK(AF23,Top:Bottom,1))","v":""}]
[null,null,null,null,null,null,null,null,null,null,null,null,null,null,null,null,null,null,null,null,null,null,null,null,null,null,null,null,"","","",99999,{"$f":"IF(AF24=99999,\"\",RANK(AF24,Top:Bottom,1))","v":""}]
[null,null,null,null,null,null,null,null,null,null,null,null,null,null,null,null,null,null,null,null,null,null,null,null,null,null,null,null,"","","",99999,{"$f":"IF(AF25=99999,\"\",RANK(AF25,Top:Bottom,1))","v":""}]
[null,null,null,null,null,null,null,null,null,null,null,null,null,null,null,null,null,null,null,null,null,null,null,null,null,null,null,null,"","","",99999,{"$f":"IF(AF26=99999,\"\",RANK(AF26,Top:Bottom,1))","v":""}]
[null,null,null,null,null,null,null,null,null,null,null,null,null,null,null,null,null,null,null,null,null,null,null,null,null,null,null,null,"","","",99999,{"$f":"IF(AF27=99999,\"\",RANK(AF27,Top:Bottom,1))","v":""}]
[null,null,null,null,null,null,null,null,null,null,null,null,null,null,null,null,null,null,null,null,null,null,null,null,null,null,null,null,"","","",99999,{"$f":"IF(AF28=99999,\"\",RANK(AF28,Top:Bottom,1))","v":""}]
[null,null,null,null,null,null,null,null,null,null,null,null,null,null,null,null,null,null,null,null,null,null,null,null,null,null,null,null,"","","",99999,{"$f":"IF(AF29=99999,\"\",RANK(AF29,Top:Bottom,1))","v":""}]
[null,null,null,null,null,null,null,null,null,null,null,null,null,null,null,null,null,null,null,null,null,null,null,null,null,null,null,null,"","","",99999,{"$f":"IF(AF30=99999,\"\",RANK(AF30,Top:Bottom,1))","v":""}]
[null,null,null,null,null,null,null,null,null,null,null,null,null,null,null,null,null,null,null,null,null,null,null,null,null,null,null,null,"","","",99999,{"$f":"IF(AF31=99999,\"\",RANK(AF31,Top:Bottom,1))","v":""}]
[null,null,null,null,null,null,null,null,null,null,null,null,null,null,null,null,null,null,null,null,null,null,null,null,null,null,null,null,"","","",99999,{"$f":"IF(AF32=99999,\"\",RANK(AF32,Top:Bottom,1))","v":""}]
[null,null,null,null,null,null,null,null,null,null,null,null,null,null,null,null,null,null,null,null,null,null,null,null,null,null,null,null,"","","",99999,{"$f":"IF(AF33=99999,\"\",RANK(AF33,Top:Bottom,1))","v":""}]
[null,null,null,null,null,null,null,null,null,null,null,null,null,null,null,null,null,null,null,null,null,null,null,null,null,null,null,null,"","","",99999,{"$f":"IF(AF34=99999,\"\",RANK(AF34,Top:Bottom,1))","v":""}]
[null,null,null,null,null,null,null,null,null,null,null,null,null,null,null,null,null,null,null,null,null,null,null,null,null,null,null,null,"","","",99999,{"$f":"IF(AF35=99999,\"\",RANK(AF35,Top:Bottom,1))","v":""}]
[null,null,null,null,null,null,null,null,null,null,null,null,null,null,null,null,null,null,null,null,null,null,null,null,null,null,null,null,{"$f":"IF(AA36=\"\",\"\",AB36-AA36)","v":""},{"$f":"IF(AC36=\"\",\"\",ABS(AC36-BogeyTime))","v":""},{"$f":"IF(COUNTIF(B36:Z36,\"e\")>0,\"E\",(IF(AA36=\"\",\"\",SUM(B36:Z36))))","v":""},{"$f":"IF(OR(AA36=\"\",AE36=\"E\"),99999,(IF(AC36<BogeyTime,AD36*86401,AD36*86400)+AE36*100))","v":99999},{"$f":"IF(AF36=99999,\"\",RANK(AF36,Top:Bottom,1))","v":""}]
[null,null,null,null,null,null,null,null,null,null,null,null,null,null,null,null,null,null,null,null,null,null,null,null,null,null,null,null,"","","",99999,{"$f":"IF(AF37=99999,\"\",RANK(AF37,Top:Bottom,1))","v":""}]
[null,null,null,null,null,null,null,null,null,null,null,null,null,null,null,null,null,null,null,null,null,null,null,null,null,null,null,null,"","","",99999,{"$f":"IF(AF38=99999,\"\",RANK(AF38,Top:Bottom,1))","v":""}]
[null,null,null,null,null,null,null,null,null,null,null,null,null,null,null,null,null,null,null,null,null,null,null,null,null,null,null,null,"","","",99999,{"$f":"IF(AF39=99999,\"\",RANK(AF39,Top:Bottom,1))","v":""}]
[null,null,null,null,null,null,null,null,null,null,null,null,null,null,null,null,null,null,null,null,null,null,null,null,null,null,null,null,"","","",99999,{"$f":"IF(AF40=99999,\"\",RANK(AF40,Top:Bottom,1))","v":""}]
[null,null,null,null,null,null,null,null,null,null,null,null,null,null,null,null,null,null,null,null,null,null,null,null,null,null,null,null,"","","",99999,{"$f":"IF(AF41=99999,\"\",RANK(AF41,Top:Bottom,1))","v":""}]
[null,null,null,null,null,null,null,null,null,null,null,null,null,null,null,null,null,null,null,null,null,null,null,null,null,null,null,null,"","","",99999,{"$f":"IF(AF42=99999,\"\",RANK(AF42,Top:Bottom,1))","v":""}]
[null,null,null,null,null,null,null,null,null,null,null,null,null,null,null,null,null,null,null,null,null,null,null,null,null,null,null,null,"","","",99999,{"$f":"IF(AF43=99999,\"\",RANK(AF43,Top:Bottom,1))","v":""}]
[null,null,null,null,null,null,null,null,null,null,null,null,null,null,null,null,null,null,null,null,null,null,null,null,null,null,null,null,"","","",99999,{"$f":"IF(AF44=99999,\"\",RANK(AF44,Top:Bottom,1))","v":""}]
[null,null,null,null,null,null,null,null,null,null,null,null,null,null,null,null,null,null,null,null,null,null,null,null,null,null,null,null,"","","",99999,{"$f":"IF(AF45=99999,\"\",RANK(AF45,Top:Bottom,1))","v":""}]
[null,null,null,null,null,null,null,null,null,null,null,null,null,null,null,null,null,null,null,null,null,null,null,null,null,null,null,null,"","","",99999,{"$f":"IF(AF46=99999,\"\",RANK(AF46,Top:Bottom,1))","v":""}]
[null,null,null,null,null,null,null,null,null,null,null,null,null,null,null,null,null,null,null,null,null,null,null,null,null,null,null,null,"","","",99999,{"$f":"IF(AF47=99999,\"\",RANK(AF47,Top:Bottom,1))","v":""}]
[null,null,null,null,null,null,null,null,null,null,null,null,null,null,null,null,null,null,null,null,null,null,null,null,null,null,null,null,"","","",99999,{"$f":"IF(AF48=99999,\"\",RANK(AF48,Top:Bottom,1))","v":""}]
[null,null,null,null,null,null,null,null,null,null,null,null,null,null,null,null,null,null,null,null,null,null,null,null,null,null,null,null,"","","",99999,{"$f":"IF(AF49=99999,\"\",RANK(AF49,Top:Bottom,1))","v":""}]
[null,null,null,null,null,null,null,null,null,null,null,null,null,null,null,null,null,null,null,null,null,null,null,null,null,null,null,null,"","","",99999,{"$f":"IF(AF50=99999,\"\",RANK(AF50,Top:Bottom,1))","v":""}]
[null,null,null,null,null,null,null,null,null,null,null,null,null,null,null,null,null,null,null,null,null,null,null,null,null,null,null,null,"","","",99999,{"$f":"IF(AF51=99999,\"\",RANK(AF51,Top:Bottom,1))","v":""}]
[null,null,null,null,null,null,null,null,null,null,null,null,null,null,null,null,null,null,null,null,null,null,null,null,null,null,null,null,"","","",99999,{"$f":"IF(AF52=99999,\"\",RANK(AF52,Top:Bottom,1))","v":""}]
[null,null,null,null,null,null,null,null,null,null,null,null,null,null,null,null,null,null,null,null,null,null,null,null,null,null,null,null,"","","",99999,{"$f":"IF(AF53=99999,\"\",RANK(AF53,Top:Bottom,1))","v":""}]
[null,null,null,null,null,null,null,null,null,null,null,null,null,null,null,null,null,null,null,null,null,null,null,null,null,null,null,null,"","","",99999,{"$f":"IF(AF54=99999,\"\",RANK(AF54,Top:Bottom,1))","v":""}]
[null,null,null,null,null,null,null,null,null,null,null,null,null,null,null,null,null,null,null,null,null,null,null,null,null,null,null,null,"","","",99999,{"$f":"IF(AF55=99999,\"\",RANK(AF55,Top:Bottom,1))","v":""}]
[null,null,null,null,null,null,null,null,null,null,null,null,null,null,null,null,null,null,null,null,null,null,null,null,null,null,null,null,"","","",99999,{"$f":"IF(AF56=99999,\"\",RANK(AF56,Top:Bottom,1))","v":""}]
[null,null,null,null,null,null,null,null,null,null,null,null,null,null,null,null,null,null,null,null,null,null,null,null,null,null,null,null,"","","",99999,{"$f":"IF(AF57=99999,\"\",RANK(AF57,Top:Bottom,1))","v":""}]
[null,null,null,null,null,null,null,null,null,null,null,null,null,null,null,null,null,null,null,null,null,null,null,null,null,null,null,null,"","","",99999,{"$f":"IF(AF58=99999,\"\",RANK(AF58,Top:Bottom,1))","v":""}]
[null,null,null,null,null,null,null,null,null,null,null,null,null,null,null,null,null,null,null,null,null,null,null,null,null,null,null,null,"","","",99999,{"$f":"IF(AF59=99999,\"\",RANK(AF59,Top:Bottom,1))","v":""}]
[null,null,null,null,null,null,null,null,null,null,null,null,null,null,null,null,null,null,null,null,null,null,null,null,null,null,null,null,"","","",99999,{"$f":"IF(AF60=99999,\"\",RANK(AF60,Top:Bottom,1))","v":""}]
[null,null,null,null,null,null,null,null,null,null,null,null,null,null,null,null,null,null,null,null,null,null,null,null,null,null,null,null,"","","",99999,{"$f":"IF(AF61=99999,\"\",RANK(AF61,Top:Bottom,1))","v":""}]
[null,null,null,null,null,null,null,null,null,null,null,null,null,null,null,null,null,null,null,null,null,null,null,null,null,null,null,null,"","","",99999,{"$f":"IF(AF62=99999,\"\",RANK(AF62,Top:Bottom,1))","v":""}]
[null,null,null,null,null,null,null,null,null,null,null,null,null,null,null,null,null,null,null,null,null,null,null,null,null,null,null,null,"","","",99999,{"$f":"IF(AF63=99999,\"\",RANK(AF63,Top:Bottom,1))","v":""}]
[null,null,null,null,null,null,null,null,null,null,null,null,null,null,null,null,null,null,null,null,null,null,null,null,null,null,null,null,"","","",99999,{"$f":"IF(AF64=99999,\"\",RANK(AF64,Top:Bottom,1))","v":""}]
[null,null,null,null,null,null,null,null,null,null,null,null,null,null,null,null,null,null,null,null,null,null,null,null,null,null,null,null,"","","",99999,{"$f":"IF(AF65=99999,\"\",RANK(AF65,Top:Bottom,1))","v":""}]
[null,null,null,null,null,null,null,null,null,null,null,null,null,null,null,null,null,null,null,null,null,null,null,null,null,null,null,null,"","","",99999,{"$f":"IF(AF66=99999,\"\",RANK(AF66,Top:Bottom,1))","v":""}]
[null,null,null,null,null,null,null,null,null,null,null,null,null,null,null,null,null,null,null,null,null,null,null,null,null,null,null,null,"","","",99999,{"$f":"IF(AF67=99999,\"\",RANK(AF67,Top:Bottom,1))","v":""}]
[null,null,null,null,null,null,null,null,null,null,null,null,null,null,null,null,null,null,null,null,null,null,null,null,null,null,null,null,{"$f":"IF(AA68=\"\",\"\",AB68-AA68)","v":""},{"$f":"IF(AC68=\"\",\"\",ABS(AC68-BogeyTime))","v":""},{"$f":"IF(COUNTIF(B68:Z68,\"e\")>0,\"E\",(IF(AA68=\"\",\"\",SUM(B68:Z68))))","v":""},{"$f":"IF(OR(AA68=\"\",AE68=\"E\"),99999,(IF(AC68<BogeyTime,AD68*86401,AD68*86400)+AE68*100))","v":99999},{"$f":"IF(AF68=99999,\"\",RANK(AF68,Top:Bottom,1))","v":""}]
[null,null,null,null,null,null,null,null,null,null,null,null,null,null,null,null,null,null,null,null,null,null,null,null,null,null,null,null,"","","",99999,{"$f":"IF(AF69=99999,\"\",RANK(AF69,Top:Bottom,1))","v":""}]
[null,null,null,null,null,null,null,null,null,null,null,null,null,null,null,null,null,null,null,null,null,null,null,null,null,null,null,null,"","","",99999,{"$f":"IF(AF70=99999,\"\",RANK(AF70,Top:Bottom,1))","v":""}]
[null,null,null,null,null,null,null,null,null,null,null,null,null,null,null,null,null,null,null,null,null,null,null,null,null,null,null,null,"","","",99999,{"$f":"IF(AF71=99999,\"\",RANK(AF71,Top:Bottom,1))","v":""}]
[null,null,null,null,null,null,null,null,null,null,null,null,null,null,null,null,null,null,null,null,null,null,null,null,null,null,null,null,"","","",99999,{"$f":"IF(AF72=99999,\"\",RANK(AF72,Top:Bottom,1))","v":""}]
[null,null,null,null,null,null,null,null,null,null,null,null,null,null,null,null,null,null,null,null,null,null,null,null,null,null,null,null,"","","",99999,{"$f":"IF(AF73=99999,\"\",RANK(AF73,Top:Bottom,1))","v":""}]
[null,null,null,null,null,null,null,null,null,null,null,null,null,null,null,null,null,null,null,null,null,null,null,null,null,null,null,null,"","","",99999,{"$f":"IF(AF74=99999,\"\",RANK(AF74,Top:Bottom,1))","v":""}]
[null,null,null,null,null,null,null,null,null,null,null,null,null,null,null,null,null,null,null,null,null,null,null,null,null,null,null,null,"","","",99999,{"$f":"IF(AF75=99999,\"\",RANK(AF75,Top:Bottom,1))","v":""}]
[null,null,null,null,null,null,null,null,null,null,null,null,null,null,null,null,null,null,null,null,null,null,null,null,null,null,null,null,"","","",99999,{"$f":"IF(AF76=99999,\"\",RANK(AF76,Top:Bottom,1))","v":""}]
[null,null,null,null,null,null,null,null,null,null,null,null,null,null,null,null,null,null,null,null,null,null,null,null,null,null,null,null,"","","",99999,{"$f":"IF(AF77=99999,\"\",RANK(AF77,Top:Bottom,1))","v":""}]
[null,null,null,null,null,null,null,null,null,null,null,null,null,null,null,null,null,null,null,null,null,null,null,null,null,null,null,null,"","","",99999,{"$f":"IF(AF78=99999,\"\",RANK(AF78,Top:Bottom,1))","v":""}]
[null,null,null,null,null,null,null,null,null,null,null,null,null,null,null,null,null,null,null,null,null,null,null,null,null,null,null,null,"","","",99999,{"$f":"IF(AF79=99999,\"\",RANK(AF79,Top:Bottom,1))","v":""}]
[null,null,null,null,null,null,null,null,null,null,null,null,null,null,null,null,null,null,null,null,null,null,null,null,null,null,null,null,"","","",99999,{"$f":"IF(AF80=99999,\"\",RANK(AF80,Top:Bottom,1))","v":""}]
[null,null,null,null,null,null,null,null,null,null,null,null,null,null,null,null,null,null,null,null,null,null,null,null,null,null,null,null,"","","",99999,{"$f":"IF(AF81=99999,\"\",RANK(AF81,Top:Bottom,1))","v":""}]
[null,null,null,null,null,null,null,null,null,null,null,null,null,null,null,null,null,null,null,null,null,null,null,null,null,null,null,null,"","","",99999,{"$f":"IF(AF82=99999,\"\",RANK(AF82,Top:Bottom,1))","v":""}]
[null,null,null,null,null,null,null,null,null,null,null,null,null,null,null,null,null,null,null,null,null,null,null,null,null,null,null,null,"","","",99999,{"$f":"IF(AF83=99999,\"\",RANK(AF83,Top:Bottom,1))","v":""}]
[null,null,null,null,null,null,null,null,null,null,null,null,null,null,null,null,null,null,null,null,null,null,null,null,null,null,null,null,"","","",99999,{"$f":"IF(AF84=99999,\"\",RANK(AF84,Top:Bottom,1))","v":""}]
[null,null,null,null,null,null,null,null,null,null,null,null,null,null,null,null,null,null,null,null,null,null,null,null,null,null,null,null,"","","",99999,{"$f":"IF(AF85=99999,\"\",RANK(AF85,Top:Bottom,1))","v":""}]
[null,null,null,null,null,null,null,null,null,null,null,null,null,null,null,null,null,null,null,null,null,null,null,null,null,null,null,null,"","","",99999,{"$f":"IF(AF86=99999,\"\",RANK(AF86,Top:Bottom,1))","v":""}]
[null,null,null,null,null,null,null,null,null,null,null,null,null,null,null,null,null,null,null,null,null,null,null,null,null,null,null,null,"","","",99999,{"$f":"IF(AF87=99999,\"\",RANK(AF87,Top:Bottom,1))","v":""}]
[null,null,null,null,null,null,null,null,null,null,null,null,null,null,null,null,null,null,null,null,null,null,null,null,null,null,null,null,"","","",99999,{"$f":"IF(AF88=99999,\"\",RANK(AF88,Top:Bottom,1))","v":""}]
[null,null,null,null,null,null,null,null,null,null,null,null,null,null,null,null,null,null,null,null,null,null,null,null,null,null,null,null,"","","",99999,{"$f":"IF(AF89=99999,\"\",RANK(AF89,Top:Bottom,1))","v":""}]
[null,null,null,null,null,null,null,null,null,null,null,null,null,null,null,null,null,null,null,null,null,null,null,null,null,null,null,null,"","","",99999,{"$f":"IF(AF90=99999,\"\",RANK(AF90,Top:Bottom,1))","v":""}]
[null,null,null,null,null,null,null,null,null,null,null,null,null,null,null,null,null,null,null,null,null,null,null,null,null,null,null,null,"","","",99999,{"$f":"IF(AF91=99999,\"\",RANK(AF91,Top:Bottom,1))","v":""}]
[null,null,null,null,null,null,null,null,null,null,null,null,null,null,null,null,null,null,null,null,null,null,null,null,null,null,null,null,"","","",99999,{"$f":"IF(AF92=99999,\"\",RANK(AF92,Top:Bottom,1))","v":""}]
[null,null,null,null,null,null,null,null,null,null,null,null,null,null,null,null,null,null,null,null,null,null,null,null,null,null,null,null,"","","",99999,{"$f":"IF(AF93=99999,\"\",RANK(AF93,Top:Bottom,1))","v":""}]
[null,null,null,null,null,null,null,null,null,null,null,null,null,null,null,null,null,null,null,null,null,null,null,null,null,null,null,null,"","","",99999,{"$f":"IF(AF94=99999,\"\",RANK(AF94,Top:Bottom,1))","v":""}]
[null,null,null,null,null,null,null,null,null,null,null,null,null,null,null,null,null,null,null,null,null,null,null,null,null,null,null,null,"","","",99999,{"$f":"IF(AF95=99999,\"\",RANK(AF95,Top:Bottom,1))","v":""}]
[null,null,null,null,null,null,null,null,null,null,null,null,null,null,null,null,null,null,null,null,null,null,null,null,null,null,null,null,"","","",99999,{"$f":"IF(AF96=99999,\"\",RANK(AF96,Top:Bottom,1))","v":""}]
[null,null,null,null,null,null,null,null,null,null,null,null,null,null,null,null,null,null,null,null,null,null,null,null,null,null,null,null,"","","",99999,{"$f":"IF(AF97=99999,\"\",RANK(AF97,Top:Bottom,1))","v":""}]
[null,null,null,null,null,null,null,null,null,null,null,null,null,null,null,null,null,null,null,null,null,null,null,null,null,null,null,null,"","","",99999,{"$f":"IF(AF98=99999,\"\",RANK(AF98,Top:Bottom,1))","v":""}]
[null,null,null,null,null,null,null,null,null,null,null,null,null,null,null,null,null,null,null,null,null,null,null,null,null,null,null,null,"","","",99999,{"$f":"IF(AF99=99999,\"\",RANK(AF99,Top:Bottom,1))","v":""}]
[null,null,null,null,null,null,null,null,null,null,null,null,null,null,null,null,null,null,null,null,null,null,null,null,null,null,null,null,{"$f":"IF(AA100=\"\",\"\",AB100-AA100)","v":""},{"$f":"IF(AC100=\"\",\"\",ABS(AC100-BogeyTime))","v":""},"",{"$f":"IF(OR(AA100=\"\",AE100=\"E\"),99999,(IF(AC100<BogeyTime,AD100*86401,AD100*86400)+AE100*100))","v":99999},{"$f":"IF(AF100=99999,\"\",RANK(AF100,Top:Bottom,1))","v":""}]
[null,null,null,null,null,null,null,null,null,null,null,null,null,null,null,null,null,null,null,null,null,null,null,null,null,null,null,null,{"$f":"IF(AA101=\"\",\"\",AB101-AA101)","v":""},{"$f":"IF(AC101=\"\",\"\",ABS(AC101-BogeyTime))","v":""},"",{"$f":"IF(OR(AA101=\"\",AE101=\"E\"),99999,(IF(AC101<BogeyTime,AD101*86401,AD101*86400)+AE101*100))","v":99999},{"$f":"IF(AF101=99999,\"\",RANK(AF101,Top:Bottom,1))","v":""}]
[null,null,null,null,null,null,null,null,null,null,null,null,null,null,null,null,null,null,null,null,null,null,null,null,null,null,null,null,{"$f":"IF(AA102=\"\",\"\",AB102-AA102)","v":""},{"$f":"IF(AC102=\"\",\"\",ABS(AC102-BogeyTime))","v":""},"",{"$f":"IF(OR(AA102=\"\",AE102=\"E\"),99999,(IF(AC102<BogeyTime,AD102*86401,AD102*86400)+AE102*100))","v":99999},{"$f":"IF(AF102=99999,\"\",RANK(AF102,Top:Bottom,1))","v":""}]
["PJLH 15/03"]